{"text_format":"1","workbook":"xlsx","n_sheets":15,"sheets":["Accueil Produits","Produits","SP","MP","Référentiels","Accueil Menus","BD Menus","Saisie MMR","Modif MMR","Menus MMR","Jours Fériés","Menus VWE","Saisie VWE","Modif VWE","Saisie MJ"],"not_rendered":{"charts":0,"images":2,"macros":1,"external_links":1,"defined_names":67,"comments":4,"pivot_tables":0},"unopened":[],"bounds":{"document_bytes":16777216,"sheet_cells":100000,"rows_first":2000,"rows_last":500,"rows_between":2000,"halvings":0,"cell_chars":16384,"cell_head_chars":4096},"cells_cut":0,"cells_raw":0,"read":"whole","date_system":"1900"}

{"sheet":"Accueil Produits","index":0,"n_rows":3,"n_cols":5,"rows_kept":3,"cut":false,"hidden":false,"merged":[]}
["Accueil Produits"]
[]
[null,null,"Choix Catégorie",null,"Choix Produit"]

{"sheet":"Produits","index":1,"n_rows":146,"n_cols":15,"rows_kept":146,"cut":false,"hidden":false,"merged":[]}
["Intitulé","Numéro création","Code catégorie","Nom catégorie","Code produit","Nom produit","Code jour","Nom jour","Code conditionnement","Nom conditionnement","Code destination","Nom destination","Code à modifier","Nom à modifier","Date création"]
["DMR01-1",1,"CC01","DMR","DMR01","Pomme","CJ05","Lundi à vendredi midis","COCO16","1 sachet de 2 kilogrammes. 1 pomme pour 1 repas","CD02","Menus midi retraite","LCÀM01","Non","2019-08-20"]
["DS01-1",1,"CC02","DS","DS01","Pomme","CJ06","lundi à vendredi soirs","COCO16","1 sachet de 2 kilogrammes. 1 pomme pour 1 repas","CD01","Menus journaliers","LCÀM01","Non","2019-08-20"]
["DWE01-1",1,"CC03","DWE","DWE01","Ananas","CJ10","Samedi et dimanche midis et soirs","COCO30","Unité : 1 pour 4 repas","CD01","Menus journaliers","LCÀM01","Non","2019-08-20"]
["DWE02-2",2,"CC03","DWE","DWE02","Autres fruits","CJ10","Samedi et dimanche midis et soirs","COCO32","Unité : 2 à 4 pour 1 repas","CD01","Menus journaliers","LCÀM01","Non","2019-08-20"]
["DWE03-3",3,"CC03","DWE","DWE03","Avocats","CJ10","Samedi et dimanche midis et soirs","COCO28","Unité : 1 pour 1 repas","CD01","Menus journaliers","LCÀM01","Non","2019-08-20"]
["DWE04-4",4,"CC03","DWE","DWE04","Bananes","CJ10","Samedi et dimanche midis et soirs","COCO28","Unité : 1 pour 1 repas","CD01","Menus journaliers","LCÀM01","Non","2019-08-20"]
["DWE05-5",5,"CC03","DWE","DWE05","Clémentines","CJ10","Samedi et dimanche midis et soirs","COCO32","Unité : 2 à 4 pour 1 repas","CD01","Menus journaliers","LCÀM01","Non","2019-08-20"]
["DWE06-6",6,"CC03","DWE","DWE06","Crème","CJ10","Samedi et dimanche midis et soirs","COCO10","1 pack de 4 pots pour le week-end. 1 pot pour 1 repas","CD01","Menus journaliers","LCÀM01","Non","2019-08-20"]
["DWE07-7",7,"CC03","DWE","DWE07","Dattes","CJ10","Samedi et dimanche midis et soirs","COCO15","1 paquet pour 4 repas","CD01","Menus journaliers","LCÀM01","Non","2019-08-20"]
["DWE08-8",8,"CC03","DWE","DWE08","Figues","CJ10","Samedi et dimanche midis et soirs","COCO15","1 paquet pour 4 repas","CD01","Menus journaliers","LCÀM01","Non","2019-08-20"]
["DWE09-9",9,"CC03","DWE","DWE09","Fromage blanc","CJ10","Samedi et dimanche midis et soirs","COCO10","1 pack de 4 pots pour le week-end. 1 pot pour 1 repas","CD01","Menus journaliers","LCÀM01","Non","2019-08-20"]
["DWE10-10",10,"CC03","DWE","DWE10","Fruits au sirop","CJ10","Samedi et dimanche midis et soirs","COCO05","1 boîte pour 2 repas","CD01","Menus journaliers","LCÀM01","Non","2019-08-20"]
["DWE11-11",11,"CC03","DWE","DWE11","Fruits de saison","CJ10","Samedi et dimanche midis et soirs","COCO32","Unité : 2 à 4 pour 1 repas","CD01","Menus journaliers","LCÀM01","Non","2019-08-20"]
["DWE12-12",12,"CC03","DWE","DWE12","Gâteau de riz","CJ10","Samedi et dimanche midis et soirs","COCO10","1 pack de 4 pots pour le week-end. 1 pot pour 1 repas","CD01","Menus journaliers","LCÀM01","Non","2019-08-20"]
["DWE13-13",13,"CC03","DWE","DWE13","Gâteau de semoule","CJ10","Samedi et dimanche midis et soirs","COCO10","1 pack de 4 pots pour le week-end. 1 pot pour 1 repas","CD01","Menus journaliers","LCÀM01","Non","2019-08-20"]
["DWE14-14",14,"CC03","DWE","DWE14","Gâteaux samedi dimanche","CJ10","Samedi et dimanche midis et soirs","COCO13","1 paquet pour 2 repas","CD01","Menus journaliers","LCÀM01","Non","2019-08-20"]
["DWE15-15",15,"CC03","DWE","DWE15","Mousse au chocolat","CJ10","Samedi et dimanche midis et soirs","COCO10","1 pack de 4 pots pour le week-end. 1 pot pour 1 repas","CD01","Menus journaliers","LCÀM01","Non","2019-08-20"]
["DWE16-16",16,"CC03","DWE","DWE16","Oranges","CJ10","Samedi et dimanche midis et soirs","COCO28","Unité : 1 pour 1 repas","CD01","Menus journaliers","LCÀM01","Non","2019-08-20"]
["DWE17-17",17,"CC03","DWE","DWE17","Petits suisses","CJ10","Samedi et dimanche midis et soirs","COCO11","1 pack de 6 pots. 3 pots pour 1 repas","CD01","Menus journaliers","LCÀM01","Non","2019-08-20"]
["DWE18-18",18,"CC03","DWE","DWE18","Pruneaux","CJ10","Samedi et dimanche midis et soirs","COCO15","1 paquet pour 4 repas","CD01","Menus journaliers","LCÀM01","Non","2019-08-20"]
["DWE19-19",19,"CC03","DWE","DWE19","Riz au lait","CJ10","Samedi et dimanche midis et soirs","COCO10","1 pack de 4 pots pour le week-end. 1 pot pour 1 repas","CD01","Menus journaliers","LCÀM01","Non","2019-08-20"]
["DWE20-20",20,"CC03","DWE","DWE20","Tapioca","CJ10","Samedi et dimanche midis et soirs","COCO23","25 grammes pour 1 repas","CD01","Menus journaliers","LCÀM01","Non","2019-08-20"]
["DWE21-21",21,"CC03","DWE","DWE21","Yaourts","CJ10","Samedi et dimanche midis et soirs","COCO10","1 pack de 4 pots pour le week-end. 1 pot pour 1 repas","CD01","Menus journaliers","LCÀM01","Non","2019-08-20"]
["LMR01-1",1,"CC04","LMR","LMR01","Asperges","CJ05","Lundi à vendredi midis","COCO01","1 bocal ou 1 boîte pour 1 repas","CD02","Menus midi retraite","LCÀM01","Non","2019-08-20"]
["LMR02-2",2,"CC04","LMR","LMR02","Avocat","CJ05","Lundi à vendredi midis","COCO28","Unité : 1 pour 1 repas","CD02","Menus midi retraite","LCÀM01","Non","2019-08-20"]
["LMR03-3",3,"CC04","LMR","LMR03","Carottes","CJ05","Lundi à vendredi midis","COCO33","Unité : 2 pour 1 repas","CD02","Menus midi retraite","LCÀM01","Non","2019-08-20"]
["LMR04-4",4,"CC04","LMR","LMR04","Céleri","CJ05","Lundi à vendredi midis","COCO26","Unité : 1 branche pour 1 repas","CD02","Menus midi retraite","LCÀM01","Non","2019-08-20"]
["LMR05-5",5,"CC04","LMR","LMR05","Champignons","CJ05","Lundi à vendredi midis","COCO04","1 boîte pour 1 repas","CD02","Menus midi retraite","LCÀM01","Non","2019-08-20"]
["LMR06-6",6,"CC04","LMR","LMR06","Concombre","CJ05","Lundi à vendredi midis","COCO28","Unité : 1 pour 1 repas","CD02","Menus midi retraite","LCÀM01","Non","2019-08-20"]
["LMR07-7",7,"CC04","LMR","LMR07","Couscous","CJ05","Lundi à vendredi midis","COCO23","25 grammes pour 1 repas","CD02","Menus midi retraite","LCÀM01","Non","2019-08-20"]
["LMR08-8",8,"CC04","LMR","LMR08","Maïs","CJ05","Lundi à vendredi midis","COCO04","1 boîte pour 1 repas","CD02","Menus midi retraite","LCÀM01","Non","2019-08-20"]
["LMR09-9",9,"CC04","LMR","LMR09","Pâtes à la sauce tomates","CJ05","Lundi à vendredi midis","COCO25","5 cuillères pour 1 repas","CD02","Menus midi retraite","LCÀM01","Non","2019-08-20"]
["LMR10-10",10,"CC04","LMR","LMR10","Pâtes au beurre","CJ05","Lundi à vendredi midis","COCO25","5 cuillères pour 1 repas","CD02","Menus midi retraite","LCÀM01","Non","2019-08-20"]
["LMR11-11",11,"CC04","LMR","LMR11","Poireau","CJ05","Lundi à vendredi midis","COCO28","Unité : 1 pour 1 repas","CD02","Menus midi retraite","LCÀM01","Non","2019-08-20"]
["LMR12-12",12,"CC04","LMR","LMR12","Pomme de terre","CJ05","Lundi à vendredi midis","COCO28","Unité : 1 pour 1 repas","CD02","Menus midi retraite","LCÀM01","Non","2019-08-20"]
["LMR13-13",13,"CC04","LMR","LMR13","Purée","CJ05","Lundi à vendredi midis","COCO23","25 grammes pour 1 repas","CD02","Menus midi retraite","LCÀM01","Non","2019-08-20"]
["LMR14-14",14,"CC04","LMR","LMR14","Radis","CJ05","Lundi à vendredi midis","COCO07","1 botte ou 1 sachet pour 2 repas","CD02","Menus midi retraite","LCÀM01","Non","2019-08-20"]
["LMR15-15",15,"CC04","LMR","LMR15","Riz","CJ05","Lundi à vendredi midis","COCO23","25 grammes pour 1 repas","CD02","Menus midi retraite","LCÀM01","Non","2019-08-20"]
["LMR16-16",16,"CC04","LMR","LMR16","Salade","CJ05","Lundi à vendredi midis","COCO31","Unité : 1 tête pour 1 repas","CD02","Menus midi retraite","LCÀM01","Non","2019-08-20"]
["LMR17-17",17,"CC04","LMR","LMR17","Tomates","CJ05","Lundi à vendredi midis","COCO33","Unité : 2 pour 1 repas","CD02","Menus midi retraite","LCÀM01","Non","2019-08-20"]
["LSLM01-1",1,"CC05","LSLM","LSLM01","Cassoulet","CJ07","Lundi et mardi soirs","COCO05","1 boîte pour 2 repas","CD01","Menus journaliers","LCÀM01","Non","2019-08-20"]
["LSLM02-2",2,"CC05","LSLM","LSLM02","Choucroute","CJ07","Lundi et mardi soirs","COCO05","1 boîte pour 2 repas","CD01","Menus journaliers","LCÀM01","Non","2019-08-20"]
["LSLM03-3",3,"CC05","LSLM","LSLM03","Chou-fleur","CJ07","Lundi et mardi soirs","COCO29","Unité : 1 pour 2 repas","CD01","Menus journaliers","LCÀM01","Non","2019-08-20"]
["LSLM04-4",4,"CC05","LSLM","LSLM04","Choux de Bruxelles","CJ07","Lundi et mardi soirs","COCO05","1 boîte pour 2 repas","CD01","Menus journaliers","LCÀM01","Non","2019-08-20"]
["LSLM05-5",5,"CC05","LSLM","LSLM05","Couscous","CJ07","Lundi et mardi soirs","COCO23","25 grammes pour 1 repas","CD01","Menus journaliers","LCÀM01","Non","2019-08-20"]
["LSLM06-6",6,"CC05","LSLM","LSLM06","Endives","CJ07","Lundi et mardi soirs","COCO05","1 boîte pour 2 repas","CD01","Menus journaliers","LCÀM01","Non","2019-08-20"]
["LSLM07-7",7,"CC05","LSLM","LSLM07","Haricots verts","CJ07","Lundi et mardi soirs","COCO05","1 boîte pour 2 repas","CD01","Menus journaliers","LCÀM01","Non","2019-08-20"]
["LSLM08-8",8,"CC05","LSLM","LSLM08","Maïs","CJ07","Lundi et mardi soirs","COCO05","1 boîte pour 2 repas","CD01","Menus journaliers","LCÀM01","Non","2019-08-20"]
["LSLM09-9",9,"CC05","LSLM","LSLM09","Paella","CJ07","Lundi et mardi soirs","COCO13","1 paquet pour 2 repas","CD01","Menus journaliers","LCÀM01","Non","2019-08-20"]
["LSLM10-10",10,"CC05","LSLM","LSLM10","Poireau","CJ07","Lundi et mardi soirs","COCO28","Unité : 1 pour 1 repas","CD01","Menus journaliers","LCÀM01","Non","2019-08-20"]
["LSLM11-11",11,"CC05","LSLM","LSLM11","Pomme de terre","CJ07","Lundi et mardi soirs","COCO28","Unité : 1 pour 1 repas","CD01","Menus journaliers","LCÀM01","Non","2019-08-20"]
["LSLM12-12",12,"CC05","LSLM","LSLM12","Purée","CJ07","Lundi et mardi soirs","COCO23","25 grammes pour 1 repas","CD01","Menus journaliers","LCÀM01","Non","2019-08-20"]
["LSLM13-13",13,"CC05","LSLM","LSLM13","Quenelles","CJ07","Lundi et mardi soirs","COCO05","1 boîte pour 2 repas","CD01","Menus journaliers","LCÀM01","Non","2019-08-20"]
["LSLM14-14",14,"CC05","LSLM","LSLM14","Riz","CJ07","Lundi et mardi soirs","COCO23","25 grammes pour 1 repas","CD01","Menus journaliers","LCÀM01","Non","2019-08-20"]
["LSMJ01-1",1,"CC06","LSMJ","LSMJ01","Macédoine de légumes","CJ08","Mercredi et jeudi soirs","COCO05","1 boîte pour 2 repas","CD01","Menus journaliers","LCÀM01","Non","2019-08-20"]
["LSMJ02-2",2,"CC06","LSMJ","LSMJ02","Petits pois","CJ08","Mercredi et jeudi soirs","COCO05","1 boîte pour 2 repas","CD01","Menus journaliers","LCÀM01","Non","2019-08-20"]
["LSMJ03-3",3,"CC06","LSMJ","LSMJ03","Petits pois et jeunes carottes","CJ08","Mercredi et jeudi soirs","COCO05","1 boîte pour 2 repas","CD01","Menus journaliers","LCÀM01","Non","2019-08-20"]
["LSMJ04-4",4,"CC06","LSMJ","LSMJ04","Ratatouille","CJ08","Mercredi et jeudi soirs","COCO05","1 boîte pour 2 repas","CD01","Menus journaliers","LCÀM01","Non","2019-08-20"]
["LSMJ05-5",5,"CC06","LSMJ","LSMJ05","Raviolis","CJ08","Mercredi et jeudi soirs","COCO05","1 boîte pour 2 repas","CD01","Menus journaliers","LCÀM01","Non","2019-08-20"]
["LSMJ06-6",6,"CC06","LSMJ","LSMJ06","Tomates pelées","CJ08","Mercredi et jeudi soirs","COCO05","1 boîte pour 2 repas","CD01","Menus journaliers","LCÀM01","Non","2019-08-20"]
["LSV01-1",1,"CC07","LSV","LSV01","Asperges","CJ12","Vendredi soir","COCO01","1 bocal ou 1 boîte pour 1 repas","CD01","Menus journaliers","LCÀM01","Non","2019-08-20"]
["LSV02-2",2,"CC07","LSV","LSV02","Avocat","CJ12","Vendredi soir","COCO28","Unité : 1 pour 1 repas","CD01","Menus journaliers","LCÀM01","Non","2019-08-20"]
["LSV03-3",3,"CC07","LSV","LSV03","Betterave rouge","CJ12","Vendredi soir","COCO16","1 paquet pour 5 repas (betteraves rouges)","CD01","Menus journaliers","LCÀM01","Non","2019-08-20"]
["LSV04-4",4,"CC07","LSV","LSV04","Carottes","CJ12","Vendredi soir","COCO34","Unité : 2 pour 1 repas","CD01","Menus journaliers","LCÀM01","Non","2019-08-20"]
["LSV05-5",5,"CC07","LSV","LSV05","Céleri","CJ12","Vendredi soir","COCO27","Unité : 1 branche pour 1 repas","CD01","Menus journaliers","LCÀM01","Non","2019-08-20"]
["LSV06-6",6,"CC07","LSV","LSV06","Champignons","CJ12","Vendredi soir","COCO04","1 boîte pour 1 repas","CD01","Menus journaliers","LCÀM01","Non","2019-08-20"]
["LSV07-7",7,"CC07","LSV","LSV07","Concombre","CJ12","Vendredi soir","COCO29","Unité : 1 pour 1 repas","CD01","Menus journaliers","LCÀM01","Non","2019-08-20"]
["LSV08-8",8,"CC07","LSV","LSV08","Radis","CJ12","Vendredi soir","COCO06","1 botte ou 1 sachet pour 1 repas","CD01","Menus journaliers","LCÀM01","Non","2019-08-20"]
["LSV09-9",9,"CC07","LSV","LSV09","Salade","CJ12","Vendredi soir","COCO32","Unité : 1 tête pour 1 repas","CD01","Menus journaliers","LCÀM01","Non","2019-08-20"]
["LSV10-10",10,"CC07","LSV","LSV10","Salsifis","CJ12","Vendredi soir","COCO04","1 boîte pour 1 repas","CD01","Menus journaliers","LCÀM01","Non","2019-08-20"]
["LSV11-11",11,"CC07","LSV","LSV11","Tomates ","CJ12","Vendredi soir","COCO34","Unité : 2 pour 1 repas","CD01","Menus journaliers","LCÀM01","Non","2019-08-20"]
["LWED01-1",1,"CC08","LWED","LWED01","Asperges","CJ03","Dimanche soir","COCO04","1 boîte pour 1 repas","CD01","Menus journaliers","LCÀM01","Non","2019-08-20"]
["LWED02-2",2,"CC08","LWED","LWED02","Chips","CJ02","Dimanche midi et soir","COCO18","1 sachet pour 2 repas","CD01","Menus journaliers","LCÀM01","Non","2019-08-20"]
["LWED03-3",3,"CC08","LWED","LWED03","Frites","CJ01","Dimanche midi","COCO23","20 frites pour 1 repas","CD01","Menus journaliers","LCÀM01","Non","2019-08-20"]
["LWED04-4",4,"CC08","LWED","LWED04","Haricots verts","CJ02","Dimanche midi et soir","COCO05","1 boîte pour 2 repas","CD01","Menus journaliers","LCÀM01","Non","2019-08-20"]
["LWES01-1",1,"CC09","LWES","LWES01","Pâtes à la sauce tomates","CJ11","Samedi midi et soir","COCO26","5 cuillères pour 1 repas","CD01","Menus journaliers","LCÀM01","Non","2019-08-20"]
["LWES02-2",2,"CC09","LWES","LWES02","Pâtes au beurre","CJ11","Samedi midi et soir","COCO26","5 cuillères pour 1 repas","CD01","Menus journaliers","LCÀM01","Non","2019-08-20"]
["LWES03-3",3,"CC09","LWES","LWES03","Pâtes au fromage râpé","CJ11","Samedi midi et soir","COCO26","5 cuillères pour 1 repas","CD01","Menus journaliers","LCÀM01","Non","2019-08-20"]
["O01-1",1,"CC10","OBSE","O01","Armistice du 11 novembre 1918",null,"-",null,"-",null,"-","LCÀM01","Non","2019-08-21"]
["O02-2",2,"CC10","OBSE","O02","Ascension",null,"-",null,"-",null,"-","LCÀM01","Non","2019-08-21"]
["O03-3",3,"CC10","OBSE","O03","Assomption",null,"-",null,"-",null,"-","LCÀM01","Non","2019-08-21"]
["O04-4",4,"CC10","OBSE","O04","Fête du travail",null,"-",null,"-",null,"-","LCÀM01","Non","2019-08-21"]
["O05-5",5,"CC10","OBSE","O05","Fête nationale",null,"-",null,"-",null,"-","LCÀM01","Non","2019-08-21"]
["O06-6",6,"CC10","OBSE","O06","Jour de l'an",null,"-",null,"-",null,"-","LCÀM01","Non","2019-08-21"]
["O07-7",7,"CC10","OBSE","O07","Lundi de Pâques",null,"-",null,"-",null,"-","LCÀM01","Non","2019-08-21"]
["O08-8",8,"CC10","OBSE","O08","Lundi de Pentecôte",null,"-",null,"-",null,"-","LCÀM01","Non","2019-08-21"]
["O09-9",9,"CC10","OBSE","O09","Noël",null,"-",null,"-",null,"-","LCÀM01","Non","2019-08-21"]
["O10-10",10,"CC10","OBSE","O10","Pâques",null,"-",null,"-",null,"-","LCÀM01","Non","2019-08-21"]
["O11-11",11,"CC10","OBSE","O11","Pentecôte",null,"-",null,"-",null,"-","LCÀM01","Non","2019-08-21"]
["O12-12",12,"CC10","OBSE","O12","Toussaint",null,"-",null,"-",null,"-","LCÀM01","Non","2019-08-21"]
["O13-13",13,"CC10","OBSE","O13","Victoire du 08 mai 1945",null,"-",null,"-",null,"-","LCÀM01","Non","2019-08-21"]
["PC01-1",1,"CC11","PC","PC01","Janvier",null,"-",null,"-",null,"-","LCÀM01","Non","2019-08-21"]
["PC02-2",2,"CC11","PC","PC02","Février",null,"-",null,"-",null,"-","LCÀM01","Non","2019-08-21"]
["PC03-3",3,"CC11","PC","PC03","Mars",null,"-",null,"-",null,"-","LCÀM01","Non","2019-08-21"]
["PC04-4",4,"CC11","PC","PC04","Avril",null,"-",null,"-",null,"-","LCÀM01","Non","2019-08-21"]
["PC05-5",5,"CC11","PC","PC05","Mai",null,"-",null,"-",null,"-","LCÀM01","Non","2019-08-21"]
["PC06-6",6,"CC11","PC","PC06","Juin",null,"-",null,"-",null,"-","LCÀM01","Non","2019-08-21"]
["PC07-7",7,"CC11","PC","PC07","Juillet",null,"-",null,"-",null,"-","LCÀM01","Non","2019-08-21"]
["PC08-8",8,"CC11","PC","PC08","Août",null,"-",null,"-",null,"-","LCÀM01","Non","2019-08-21"]
["PC09-9",9,"CC11","PC","PC09","Septembre",null,"-",null,"-",null,"-","LCÀM01","Non","2019-08-21"]
["PC10-10",10,"CC11","PC","PC10","Octobre",null,"-",null,"-",null,"-","LCÀM01","Non","2019-08-21"]
["PC11-11",11,"CC11","PC","PC11","Novembre",null,"-",null,"-",null,"-","LCÀM01","Non","2019-08-21"]
["PC12-12",12,"CC11","PC","PC12","Décembre",null,"-",null,"-",null,"-","LCÀM01","Non","2019-08-21"]
["PVWE01-1",1,"CC12","PVWE","PVWE01","Viande weekend premier semestre",null,"-",null,"-",null,"-","LCÀM01","Non","2019-08-21"]
["PVWE02-2",2,"CC12","PVWE","PVWE02","Viande weekend deuxième semestre",null,"-",null,"-",null,"-","LCÀM01","Non","2019-08-21"]
["VMR01-1",1,"CC13","VMR","VMR01","Rôti d'agneau","CJ05","Lundi à vendredi midis","COCO09","1 morceau de 500 grammes pour 5 repas","CD02","Menus midi retraite","LCÀM01","Non","2019-08-21"]
["VMR02-2",2,"CC13","VMR","VMR02","Rôti de bœuf","CJ05","Lundi à vendredi midis","COCO09","1 morceau de 500 grammes pour 5 repas","CD02","Menus midi retraite","LCÀM01","Non","2019-08-21"]
["VMR03-3",3,"CC13","VMR","VMR03","Rôti de cheval","CJ05","Lundi à vendredi midis","COCO09","1 morceau de 500 grammes pour 5 repas","CD02","Menus midi retraite","LCÀM01","Non","2019-08-21"]
["VMR04-4",4,"CC13","VMR","VMR04","Rôti de porc","CJ05","Lundi à vendredi midis","COCO09","1 morceau de 500 grammes pour 5 repas","CD02","Menus midi retraite","LCÀM01","Non","2019-08-21"]
["VMR05-5",5,"CC13","VMR","VMR05","Rôti de veau","CJ05","Lundi à vendredi midis","COCO09","1 morceau de 500 grammes pour 5 repas","CD02","Menus midi retraite","LCÀM01","Non","2019-08-21"]
["VS01-1",1,"CC14","VS","VS01","Bifteck haché de bœuf","CJ04","Lundi à dimanche soirs","COCO13","1 paquet pour 2 repas","CD01","Menus journaliers","LCÀM01","Non","2019-08-21"]
["VS02-2",2,"CC14","VS","VS02","Bifteck haché de cheval","CJ04","Lundi à dimanche soirs","COCO13","1 paquet pour 2 repas","CD01","Menus journaliers","LCÀM01","Non","2019-08-21"]
["VS03-3",3,"CC14","VS","VS03","Bifteck haché de veau","CJ04","Lundi à dimanche soirs","COCO13","1 paquet pour 2 repas","CD01","Menus journaliers","LCÀM01","Non","2019-08-21"]
["VS04-4",4,"CC14","VS","VS04","Bouchée à la reine","CJ04","Lundi à dimanche soirs","COCO05","1 boîte pour 2 repas","CD01","Menus journaliers","LCÀM01","Non","2019-08-21"]
["VS05-5",5,"CC14","VS","VS05","Boudin","CJ04","Lundi à dimanche soirs","COCO13","1 paquet pour 2 repas","CD01","Menus journaliers","LCÀM01","Non","2019-08-21"]
["VS06-6",6,"CC14","VS","VS06","Cervelas","CJ04","Lundi à dimanche soirs","COCO13","1 paquet pour 2 repas","CD01","Menus journaliers","LCÀM01","Non","2019-08-21"]
["VS07-7",7,"CC14","VS","VS07","Cœur","CJ04","Lundi à dimanche soirs","COCO13","1 paquet pour 2 repas","CD01","Menus journaliers","LCÀM01","Non","2019-08-21"]
["VS08-8",8,"CC14","VS","VS08","Croque-monsieur","CJ04","Lundi à dimanche soirs","COCO05","1 boîte pour 2 repas","CD01","Menus journaliers","LCÀM01","Non","2019-08-21"]
["VS09-9",9,"CC14","VS","VS09","Foie","CJ04","Lundi à dimanche soirs","COCO13","1 paquet pour 2 repas","CD01","Menus journaliers","LCÀM01","Non","2019-08-21"]
["VS10-10",10,"CC14","VS","VS10","Fromage de tête","CJ04","Lundi à dimanche soirs","COCO21","1 tranche pour 2 repas","CD01","Menus journaliers","LCÀM01","Non","2019-08-21"]
["VS11-11",11,"CC14","VS","VS11","Jambon","CJ04","Lundi à dimanche soirs","COCO13","1 paquet pour 2 repas","CD01","Menus journaliers","LCÀM01","Non","2019-08-21"]
["VS12-12",12,"CC14","VS","VS12","Jambonneau","CJ04","Lundi à dimanche soirs","COCO13","1 paquet pour 2 repas","CD01","Menus journaliers","LCÀM01","Non","2019-08-21"]
["VS13-13",13,"CC14","VS","VS13","Mortadelle","CJ04","Lundi à dimanche soirs","COCO13","1 paquet pour 2 repas","CD01","Menus journaliers","LCÀM01","Non","2019-08-21"]
["VS14-14",14,"CC14","VS","VS14","Œufs","CJ04","Lundi à dimanche soirs","COCO02","1 boîte de six œufs. 3 œufs pour 1 repas","CD01","Menus journaliers","LCÀM01","Non","2019-08-21"]
["VS15-15",15,"CC14","VS","VS15","Pizza","CJ04","Lundi à dimanche soirs","COCO13","1 paquet pour 2 repas","CD01","Menus journaliers","LCÀM01","Non","2019-08-21"]
["VS16-16",16,"CC14","VS","VS16","Poisson","CJ04","Lundi à dimanche soirs","COCO29","Unité : 1 pour 1 repas","CD01","Menus journaliers","LCÀM01","Non","2019-08-21"]
["VS17-17",17,"CC14","VS","VS17","Quiche lorraine","CJ04","Lundi à dimanche soirs","COCO05","1 boîte pour 2 repas","CD01","Menus journaliers","LCÀM01","Non","2019-08-21"]
["VS18-18",18,"CC14","VS","VS18","Roulade à la pistache","CJ04","Lundi à dimanche soirs","COCO25","3 tranches pour 1 repas","CD01","Menus journaliers","LCÀM01","Non","2019-08-21"]
["VS19-19",19,"CC14","VS","VS19","Roulé au fromage","CJ04","Lundi à dimanche soirs","COCO05","1 boîte pour 2 repas","CD01","Menus journaliers","LCÀM01","Non","2019-08-21"]
["VS20-20",20,"CC14","VS","VS20","Salami","CJ04","Lundi à dimanche soirs","COCO13","1 paquet pour 2 repas","CD01","Menus journaliers","LCÀM01","Non","2019-08-21"]
["VS21-21",21,"CC14","VS","VS21","Saucisses","CJ04","Lundi à dimanche soirs","COCO14","1 paquet pour 2 repas. 1 ou 2 saucisses pour 1 repas","CD01","Menus journaliers","LCÀM01","Non","2019-08-21"]
["VS22-22",22,"CC14","VS","VS22","Saucisson","CJ04","Lundi à dimanche soirs","COCO08","1 morceau de 400 grammes (Leclerc) pour 3 repas","CD01","Menus journaliers","LCÀM01","Non","2019-08-21"]
["VS23-23",23,"CC14","VS","VS23","Tête persillée","CJ04","Lundi à dimanche soirs","COCO21","1 tranche pour 2 repas","CD01","Menus journaliers","LCÀM01","Non","2019-08-21"]
["VS24-24",24,"CC14","VS","VS24","Tête roulée","CJ04","Lundi à dimanche soirs","COCO21","1 tranche pour 2 repas","CD01","Menus journaliers","LCÀM01","Non","2019-08-21"]
["VS25-25",25,"CC14","VS","VS25","Thon","CJ04","Lundi à dimanche soirs","COCO04","1 boîte pour 1 repas","CD01","Menus journaliers","LCÀM01","Non","2019-08-21"]
["VS26-26",26,"CC14","VS","VS26","Viande cassoulet","CJ07","Lundi et mardi soirs","COCO05","1 boîte pour 2 repas","CD01","Menus journaliers","LCÀM01","Non","2019-08-21"]
["VS27-27",27,"CC14","VS","VS27","Viande choucroute","CJ07","Lundi et mardi soirs","COCO05","1 boîte pour 2 repas","CD01","Menus journaliers","LCÀM01","Non","2019-08-21"]
["VS28-28",28,"CC14","VS","VS28","Viande paella","CJ07","Lundi et mardi soirs","COCO05","1 boîte pour 2 repas","CD01","Menus journaliers","LCÀM01","Non","2019-08-21"]
["VWE01-1",1,"CC15","VWE","VWE01","Agneau","CJ09","Samedi et dimanche midis","COCO20","1 tranche pour 1 repas","CD03","Menus viandes weekend","LCÀM01","Non","2019-08-21"]
["VWE02-2",2,"CC15","VWE","VWE02","Bœuf","CJ09","Samedi et dimanche midis","COCO20","1 tranche pour 1 repas","CD03","Menus viandes weekend","LCÀM01","Non","2019-08-21"]
["VWE03-3",3,"CC15","VWE","VWE03","Cheval","CJ09","Samedi et dimanche midis","COCO20","1 tranche pour 1 repas","CD03","Menus viandes weekend","LCÀM01","Non","2019-08-21"]
["VWE04-4",4,"CC15","VWE","VWE04","Dinde","CJ09","Samedi et dimanche midis","COCO20","1 tranche pour 1 repas","CD03","Menus viandes weekend","LCÀM01","Non","2019-08-21"]
["VWE05-5",5,"CC15","VWE","VWE05","Poisson","CJ09","Samedi et dimanche midis","COCO29","Unité : 1 pour 1 repas","CD03","Menus viandes weekend","LCÀM01","Non","2019-08-21"]
["VWE06-6",6,"CC15","VWE","VWE06","Porc","CJ09","Samedi et dimanche midis","COCO20","1 tranche pour 1 repas","CD03","Menus viandes weekend","LCÀM01","Non","2019-08-21"]
["VWE07-7",7,"CC15","VWE","VWE07","Veau","CJ09","Samedi et dimanche midis","COCO20","1 tranche pour 1 repas","CD03","Menus viandes weekend","LCÀM01","Non","2019-08-21"]

{"sheet":"SP","index":2,"n_rows":16,"n_cols":2,"rows_kept":16,"cut":false,"hidden":true,"merged":[[0,0,0,1]]}
["Création d'un produit"]
[]
["Numéro création",{"$f":"MAX(IF(TableProduits[Code catégorie]=$B$4,TableProduits[Numéro création]))+1","v":1}]
["Code catégorie"]
["Nom catégorie",{"$f":"IFERROR(INDEX(Nom_catégorie,MATCH($B$4,Code_catégorie,0)),\"-\")","v":"-"}]
["Code produit"]
["Nom produit",{"$f":"IFERROR(INDEX(Nom_produit,MATCH($B$6,Code_produit,0)),\"-\")","v":"-"}]
["Code jour"]
["Nom jour",{"$f":"IFERROR(INDEX(Nom_jour,MATCH($B$8,Code_jour,0)),\"-\")","v":"-"}]
["Code conditionnement"]
["Nom conditionnement",{"$f":"IFERROR(INDEX(Nom_conditionnement,MATCH($B$10,Code_conditionnement,0)),\"-\")","v":"-"}]
["Code destination"]
["Nom destination",{"$f":"IFERROR(INDEX(Nom_destination,MATCH($B$12,Code_destination,0)),\"-\")","v":"-"}]
["Code à modifier","LCÀM02"]
["Nom à modifier",{"$f":"IFERROR(INDEX(Nom_à_modifier,MATCH($B$14,Code_à_modifier,0)),\"-\")","v":"Oui"}]
["Date création",{"$f":"TODAY()","v":"2019-09-26"}]

{"sheet":"MP","index":3,"n_rows":16,"n_cols":2,"rows_kept":16,"cut":false,"hidden":true,"merged":[[0,0,0,1]]}
["Modification d'un produit"]
[]
["Numéro création",3]
["Code catégorie","CC04"]
["Nom catégorie","LMR"]
["Code produit","LMR03"]
["Nom produit","Carottes"]
["Code jour"]
["Nom jour","-"]
["Code conditionnement"]
["Nom conditionnement","-"]
["Code destination"]
["Nom destination","-"]
["Code à modifier"]
["Nom à modifier","-"]
["Date création","2019-08-20"]

{"sheet":"Référentiels","index":4,"n_rows":146,"n_cols":69,"rows_kept":146,"cut":false,"hidden":false,"merged":[]}
["Code catégorie","Nom catégorie","Code produit","Nom produit","Code jour","Nom jour","Code conditionnement","Nom conditionnement","Code destination","Nom destination","Code à modifier","Nom à modifier",null,"Code destination","Nom destination",null,"Code catégorie","Nom catégorie",null,"Code LMR","Nom LMR",null,"Code VMR","Nom VMR",null,"Code DMR","Nom DMR",null,"Code à modifier","Nom à modifier",null,"Code mois","Nom mois",null,"Code férié","Nom férié",null,"Numéro jour","Noms jours",null,"Code VWE","Nom VWE",null,"Code PVWE","Nom PVWE",null,"Code LSLM","Nom LSLM",null,"Code LSMJ","Nom LSMJ",null,"Code LSV","Nom LSV",null,"Code LWED","Nom LWED",null,"Code LWES","Nom LWES",null,"Code VS","Nom VS",null,"Code DS","Nom DS",null,"Code DS","Nom DS"]
["CC01","DMR","DMR01","Pomme","CJ01","Dimanche midi","COCO01","1 bocal ou 1 boîte pour 1 repas","CD01","Menus journaliers","LCÀM01","Non",null,"CD01","Menus journaliers",null,"CC01","DMR",null,"LMR01","Asperges",null,"VMR01","Rôti d'agneau",null,"DMR01","Pomme",null,"LCÀM01","Non",null,"CM01","Janvier",null,"CF01","Jour de l'an",null,"NJ01",1,null,"VWE01","Agneau",null,"PVWE01","premier semestre",null,"LSLM01","Cassoulet",null,"LSMJ01","Macédoine de légumes",null,"LSV01","Asperges",null,"LWED01","Asperges",null,"LWES01","Pâtes à la sauce tomates",null,"VS01","Bifteck haché de bœuf",null,"DS01","Pomme",null,"DWE01","Ananas"]
["CC02","DS","DS01","Pomme","CJ02","Dimanche midi et soir","COCO02","1 boîte de six œufs. 3 œufs pour 1 repas","CD02","Menus midi retraite","LCÀM02","Oui",null,"CD02","Menus midi retraite",null,"CC02","DS",null,"LMR02","Avocat",null,"VMR02","Rôti de bœuf",null,null,null,null,"LCÀM02","Oui",null,"CM02","Février",null,"CF02","Pâques",null,"NJ02",2,null,"VWE02","Bœuf",null,"PVWE02","deuxième semestre",null,"LSLM02","Choucroute",null,"LSMJ02","Petits pois",null,"LSV02","Avocat",null,"LWED02","Chips",null,"LWES02","Pâtes au beurre",null,"VS02","Bifteck haché de cheval",null,null,null,null,"DWE02","Autres fruits"]
["CC03","DWE","DWE01","Ananas","CJ03","Dimanche soir","COCO03","1 boîte ou 1 pot pour 1 repas","CD03","Menus viandes weekend",null,null,null,"CD03","Menus viandes weekend",null,"CC03","DWE",null,"LMR03","Carottes",null,"VMR03","Rôti de cheval",null,null,null,null,null,null,null,"CM03","Mars",null,"CF03","Lundi de Pâques",null,"NJ03",3,null,"VWE03","Cheval",null,null,null,null,"LSLM03","Chou-fleur",null,"LSMJ03","Petits pois et jeunes carottes",null,"LSV03","Betterave rouge",null,"LWED03","Frites",null,"LWES03","Pâtes au fromage râpé",null,"VS03","Bifteck haché de veau",null,null,null,null,"DWE03","Avocats"]
["CC04","LMR","DWE02","Autres fruits","CJ04","Lundi à dimanche soirs","COCO04","1 boîte pour 1 repas",null,null,null,null,null,null,null,null,"CC04","LMR",null,"LMR04","Céleri",null,"VMR04","Rôti de porc",null,null,null,null,null,null,null,"CM04","Avril",null,"CF04","Fête du travail",null,"NJ04",4,null,"VWE04","Dinde",null,null,null,null,"LSLM04","Choux de Bruxelles",null,"LSMJ04","Ratatouille",null,"LSV04","Carottes",null,"LWED04","Haricots verts",null,null,null,null,"VS04","Bouchée à la reine",null,null,null,null,"DWE04","Bananes"]
["CC05","LSLM","DWE03","Avocats","CJ05","Lundi à vendredi midis","COCO05","1 boîte pour 2 repas",null,null,null,null,null,null,null,null,"CC05","LSLM",null,"LMR05","Champignons",null,"VMR05","Rôti de veau",null,null,null,null,null,null,null,"CM05","Mai",null,"CF05","Victoire 1945",null,"NJ05",5,null,"VWE05","Poisson",null,null,null,null,"LSLM05","Couscous",null,"LSMJ05","Raviolis",null,"LSV05","Céleri",null,null,null,null,null,null,null,"VS05","Boudin",null,null,null,null,"DWE05","Clémentines"]
["CC06","LSMJ","DWE04","Bananes","CJ06","lundi à vendredi soirs","COCO06","1 botte ou 1 sachet pour 1 repas",null,null,null,null,null,null,null,null,"CC06","LSMJ",null,"LMR06","Concombre",null,null,null,null,null,null,null,null,null,null,"CM06","Juin",null,"CF06","Jeudi de l'ascension",null,"NJ06",6,null,"VWE06","Porc",null,null,null,null,"LSLM06","Endives",null,"LSMJ06","Tomates pelées",null,"LSV06","Champignons",null,null,null,null,null,null,null,"VS06","Cervelas",null,null,null,null,"DWE06","Crème"]
["CC07","LSV","DWE05","Clémentines","CJ07","Lundi et mardi soirs","COCO07","1 botte ou 1 sachet pour 2 repas",null,null,null,null,null,null,null,null,"CC07","LSV",null,"LMR07","Couscous",null,null,null,null,null,null,null,null,null,null,"CM07","Juillet",null,"CF07","Pentecôte",null,"NJ07",7,null,"VWE07","Veau",null,null,null,null,"LSLM07","Haricots verts",null,null,null,null,"LSV07","Concombre",null,null,null,null,null,null,null,"VS07","Cœur",null,null,null,null,"DWE07","Dattes"]
["CC08","LWED","DWE06","Crème","CJ08","Mercredi et jeudi soirs","COCO08","1 morceau de 400 grammes (Leclerc) pour 3 repas",null,null,null,null,null,null,null,null,"CC08","LWED",null,"LMR08","Maïs",null,null,null,null,null,null,null,null,null,null,"CM08","Août",null,"CF08","Lundi de Pentecôte",null,"NJ08",8,null,null,null,null,null,null,null,"LSLM08","Maïs",null,null,null,null,"LSV08","Radis",null,null,null,null,null,null,null,"VS08","Croque-monsieur",null,null,null,null,"DWE08","Figues"]
["CC09","LWES","DWE07","Dattes","CJ09","Samedi et dimanche midis","COCO09","1 morceau de 500 grammes pour 5 repas",null,null,null,null,null,null,null,null,"CC09","LWES",null,"LMR09","Pâtes à la sauce tomates",null,null,null,null,null,null,null,null,null,null,"CM09","Septembre",null,"CF09","Fête nationale",null,"NJ09",9,null,null,null,null,null,null,null,"LSLM09","Paella",null,null,null,null,"LSV09","Salade",null,null,null,null,null,null,null,"VS09","Foie",null,null,null,null,"DWE09","Fromage blanc"]
["CC10","OBSE","DWE08","Figues","CJ10","Samedi et dimanche midis et soirs","COCO10","1 pack de 4 pots pour le week-end. 1 pot pour 1 repas",null,null,null,null,null,null,null,null,"CC10","OBSE",null,"LMR10","Pâtes au beurre",null,null,null,null,null,null,null,null,null,null,"CM10","Octobre",null,"CF10","Assomption",null,"NJ10",10,null,null,null,null,null,null,null,"LSLM10","Poireau",null,null,null,null,"LSV10","Salsifis",null,null,null,null,null,null,null,"VS10","Fromage de tête",null,null,null,null,"DWE10","Fruits au sirop"]
["CC11","PC","DWE09","Fromage blanc","CJ11","Samedi midi et soir","COCO11","1 pack de 6 pots. 3 pots pour 1 repas",null,null,null,null,null,null,null,null,"CC11","PC",null,"LMR11","Poireau",null,null,null,null,null,null,null,null,null,null,"CM11","Novembre",null,"CF11","Toussaint",null,"NJ11",11,null,null,null,null,null,null,null,"LSLM11","Pomme de terre",null,null,null,null,"LSV11","Tomates ",null,null,null,null,null,null,null,"VS11","Jambon",null,null,null,null,"DWE11","Fruits de saison"]
["CC12","PVWE","DWE10","Fruits au sirop","CJ12","Vendredi soir","COCO12","1 paquet pour 1 repas",null,null,null,null,null,null,null,null,"CC12","PVWE",null,"LMR12","Pomme de terre",null,null,null,null,null,null,null,null,null,null,"CM12","Décembre",null,"CF12","Armistice 1918",null,"NJ12",12,null,null,null,null,null,null,null,"LSLM12","Purée",null,null,null,null,null,null,null,null,null,null,null,null,null,"VS12","Jambonneau",null,null,null,null,"DWE12","Gâteau de riz"]
["CC13","VMR","DWE11","Fruits de saison",null,null,"COCO13","1 paquet pour 2 repas",null,null,null,null,null,null,null,null,"CC13","VMR",null,"LMR13","Purée",null,null,null,null,null,null,null,null,null,null,null,null,null,"CF13","Noël",null,"NJ13",13,null,null,null,null,null,null,null,"LSLM13","Quenelles",null,null,null,null,null,null,null,null,null,null,null,null,null,"VS13","Mortadelle",null,null,null,null,"DWE13","Gâteau de semoule"]
["CC14","VS","DWE12","Gâteau de riz",null,null,"COCO14","1 paquet pour 2 repas. 1 ou 2 saucisses pour 1 repas",null,null,null,null,null,null,null,null,"CC14","VS",null,"LMR14","Radis",null,null,null,null,null,null,null,null,null,null,null,null,null,null,null,null,"NJ14",14,null,null,null,null,null,null,null,"LSLM14","Riz",null,null,null,null,null,null,null,null,null,null,null,null,null,"VS14","Œufs",null,null,null,null,"DWE14","Gâteaux samedi dimanche"]
["CC15","VWE","DWE13","Gâteau de semoule",null,null,"COCO15","1 paquet pour 4 repas",null,null,null,null,null,null,null,null,"CC15","VWE",null,"LMR15","Riz",null,null,null,null,null,null,null,null,null,null,null,null,null,null,null,null,"NJ15",15,null,null,null,null,null,null,null,null,null,null,null,null,null,null,null,null,null,null,null,null,null,null,"VS15","Pizza",null,null,null,null,"DWE15","Mousse au chocolat"]
[null,null,"DWE14","Gâteaux samedi dimanche",null,null,"COCO16","1 paquet pour 5 repas (betteraves rouges)",null,null,null,null,null,null,null,null,null,null,null,"LMR16","Salade",null,null,null,null,null,null,null,null,null,null,null,null,null,null,null,null,"NJ16",16,null,null,null,null,null,null,null,null,null,null,null,null,null,null,null,null,null,null,null,null,null,null,"VS16","Poisson",null,null,null,null,"DWE16","Oranges"]
[null,null,"DWE15","Mousse au chocolat",null,null,"COCO17","1 sachet de 2 kilogrammes. 1 pomme pour 1 repas",null,null,null,null,null,null,null,null,null,null,null,"LMR17","Tomates",null,null,null,null,null,null,null,null,null,null,null,null,null,null,null,null,"NJ17",17,null,null,null,null,null,null,null,null,null,null,null,null,null,null,null,null,null,null,null,null,null,null,"VS17","Quiche lorraine",null,null,null,null,"DWE17","Petits suisses"]
[null,null,"DWE16","Oranges",null,null,"COCO18","1 sachet pour 2 repas",null,null,null,null,null,null,null,null,null,null,null,null,null,null,null,null,null,null,null,null,null,null,null,null,null,null,null,null,null,"NJ18",18,null,null,null,null,null,null,null,null,null,null,null,null,null,null,null,null,null,null,null,null,null,null,"VS18","Roulade à la pistache",null,null,null,null,"DWE18","Pruneaux"]
[null,null,"DWE17","Petits suisses",null,null,"COCO19","1 sachet pour 4 repas",null,null,null,null,null,null,null,null,null,null,null,null,null,null,null,null,null,null,null,null,null,null,null,null,null,null,null,null,null,"NJ19",19,null,null,null,null,null,null,null,null,null,null,null,null,null,null,null,null,null,null,null,null,null,null,"VS19","Roulé au fromage",null,null,null,null,"DWE19","Riz au lait"]
[null,null,"DWE18","Pruneaux",null,null,"COCO20","1 tranche pour 1 repas",null,null,null,null,null,null,null,null,null,null,null,null,null,null,null,null,null,null,null,null,null,null,null,null,null,null,null,null,null,"NJ20",20,null,null,null,null,null,null,null,null,null,null,null,null,null,null,null,null,null,null,null,null,null,null,"VS20","Salami",null,null,null,null,"DWE20","Tapioca"]
[null,null,"DWE19","Riz au lait",null,null,"COCO21","1 tranche pour 2 repas",null,null,null,null,null,null,null,null,null,null,null,null,null,null,null,null,null,null,null,null,null,null,null,null,null,null,null,null,null,"NJ21",21,null,null,null,null,null,null,null,null,null,null,null,null,null,null,null,null,null,null,null,null,null,null,"VS21","Saucisses",null,null,null,null,"DWE21","Yaourts"]
[null,null,"DWE20","Tapioca",null,null,"COCO22","125 grammes pour 1 repas",null,null,null,null,null,null,null,null,null,null,null,null,null,null,null,null,null,null,null,null,null,null,null,null,null,null,null,null,null,"NJ22",22,null,null,null,null,null,null,null,null,null,null,null,null,null,null,null,null,null,null,null,null,null,null,"VS22","Saucisson"]
[null,null,"DWE21","Yaourts",null,null,"COCO23","20 frites pour 1 repas",null,null,null,null,null,null,null,null,null,null,null,null,null,null,null,null,null,null,null,null,null,null,null,null,null,null,null,null,null,"NJ23",23,null,null,null,null,null,null,null,null,null,null,null,null,null,null,null,null,null,null,null,null,null,null,"VS23","Tête persillée"]
[null,null,"LMR01","Asperges",null,null,"COCO24","25 grammes pour 1 repas",null,null,null,null,null,null,null,null,null,null,null,null,null,null,null,null,null,null,null,null,null,null,null,null,null,null,null,null,null,"NJ24",24,null,null,null,null,null,null,null,null,null,null,null,null,null,null,null,null,null,null,null,null,null,null,"VS24","Tête roulée"]
[null,null,"LMR02","Avocat",null,null,"COCO25","3 tranches pour 1 repas",null,null,null,null,null,null,null,null,null,null,null,null,null,null,null,null,null,null,null,null,null,null,null,null,null,null,null,null,null,"NJ25",25,null,null,null,null,null,null,null,null,null,null,null,null,null,null,null,null,null,null,null,null,null,null,"VS25","Thon"]
[null,null,"LMR03","Carottes",null,null,"COCO26","5 cuillères pour 1 repas",null,null,null,null,null,null,null,null,null,null,null,null,null,null,null,null,null,null,null,null,null,null,null,null,null,null,null,null,null,"NJ26",26,null,null,null,null,null,null,null,null,null,null,null,null,null,null,null,null,null,null,null,null,null,null,"VS26","Viande cassoulet"]
[null,null,"LMR04","Céleri",null,null,"COCO27","Unité : 1 branche pour 1 repas",null,null,null,null,null,null,null,null,null,null,null,null,null,null,null,null,null,null,null,null,null,null,null,null,null,null,null,null,null,"NJ27",27,null,null,null,null,null,null,null,null,null,null,null,null,null,null,null,null,null,null,null,null,null,null,"VS27","Viande choucroute"]
[null,null,"LMR05","Champignons",null,null,"COCO28","Unité : 1 morceau pour 2 repas",null,null,null,null,null,null,null,null,null,null,null,null,null,null,null,null,null,null,null,null,null,null,null,null,null,null,null,null,null,"NJ28",28,null,null,null,null,null,null,null,null,null,null,null,null,null,null,null,null,null,null,null,null,null,null,"VS28","Viande paella"]
[null,null,"LMR06","Concombre",null,null,"COCO29","Unité : 1 pour 1 repas",null,null,null,null,null,null,null,null,null,null,null,null,null,null,null,null,null,null,null,null,null,null,null,null,null,null,null,null,null,"NJ29",29]
[null,null,"LMR07","Couscous",null,null,"COCO30","Unité : 1 pour 2 repas",null,null,null,null,null,null,null,null,null,null,null,null,null,null,null,null,null,null,null,null,null,null,null,null,null,null,null,null,null,"NJ30",30]
[null,null,"LMR08","Maïs",null,null,"COCO31","Unité : 1 pour 4 repas",null,null,null,null,null,null,null,null,null,null,null,null,null,null,null,null,null,null,null,null,null,null,null,null,null,null,null,null,null,"NJ31",31]
[null,null,"LMR09","Pâtes à la sauce tomates",null,null,"COCO32","Unité : 1 tête pour 1 repas"]
[null,null,"LMR10","Pâtes au beurre",null,null,"COCO33","Unité : 2 à 4 pour 1 repas"]
[null,null,"LMR11","Poireau",null,null,"COCO34","Unité : 2 pour 1 repas"]
[null,null,"LMR12","Pomme de terre"]
[null,null,"LMR13","Purée"]
[null,null,"LMR14","Radis"]
[null,null,"LMR15","Riz"]
[null,null,"LMR16","Salade"]
[null,null,"LMR17","Tomates"]
[null,null,"LSLM01","Cassoulet"]
[null,null,"LSLM02","Choucroute"]
[null,null,"LSLM03","Chou-fleur"]
[null,null,"LSLM04","Choux de Bruxelles"]
[null,null,"LSLM05","Couscous"]
[null,null,"LSLM06","Endives"]
[null,null,"LSLM07","Haricots verts"]
[null,null,"LSLM08","Maïs"]
[null,null,"LSLM09","Paella"]
[null,null,"LSLM10","Poireau"]
[null,null,"LSLM11","Pomme de terre"]
[null,null,"LSLM12","Purée"]
[null,null,"LSLM13","Quenelles"]
[null,null,"LSLM14","Riz"]
[null,null,"LSMJ01","Macédoine de légumes"]
[null,null,"LSMJ02","Petits pois"]
[null,null,"LSMJ03","Petits pois et jeunes carottes"]
[null,null,"LSMJ04","Ratatouille"]
[null,null,"LSMJ05","Raviolis"]
[null,null,"LSMJ06","Tomates pelées"]
[null,null,"LSV01","Asperges"]
[null,null,"LSV02","Avocat"]
[null,null,"LSV03","Betterave rouge"]
[null,null,"LSV04","Carottes"]
[null,null,"LSV05","Céleri"]
[null,null,"LSV06","Champignons"]
[null,null,"LSV07","Concombre"]
[null,null,"LSV08","Radis"]
[null,null,"LSV09","Salade"]
[null,null,"LSV10","Salsifis"]
[null,null,"LSV11","Tomates "]
[null,null,"LWED01","Asperges"]
[null,null,"LWED02","Chips"]
[null,null,"LWED03","Frites"]
[null,null,"LWED04","Haricots verts"]
[null,null,"LWES01","Pâtes à la sauce tomates"]
[null,null,"LWES02","Pâtes au beurre"]
[null,null,"LWES03","Pâtes au fromage râpé"]
[null,null,"O01","Armistice du 11 novembre 1918"]
[null,null,"O02","Ascension"]
[null,null,"O03","Assomption"]
[null,null,"O04","Fête du travail"]
[null,null,"O05","Fête nationale"]
[null,null,"O06","Jour de l'an"]
[null,null,"O07","Lundi de Pâques"]
[null,null,"O08","Lundi de Pentecôte"]
[null,null,"O09","Noël"]
[null,null,"O10","Pâques"]
[null,null,"O11","Pentecôte"]
[null,null,"O12","Toussaint"]
[null,null,"O13","Victoire du 08 mai 1945"]
[null,null,"PC01","Janvier"]
[null,null,"PC02","Février"]
[null,null,"PC03","Mars"]
[null,null,"PC04","Avril"]
[null,null,"PC05","Mai"]
[null,null,"PC06","Juin"]
[null,null,"PC07","Juillet"]
[null,null,"PC08","Août"]
[null,null,"PC09","Septembre"]
[null,null,"PC10","Octobre"]
[null,null,"PC11","Novembre"]
[null,null,"PC12","Décembre"]
[null,null,"PVWE01","Viande weekend premier semestre"]
[null,null,"PVWE02","Viande weekend deuxième semestre"]
[null,null,"VMR01","Rôti d'agneau"]
[null,null,"VMR02","Rôti de bœuf"]
[null,null,"VMR03","Rôti de cheval"]
[null,null,"VMR04","Rôti de porc"]
[null,null,"VMR05","Rôti de veau"]
[null,null,"VS01","Bifteck haché de bœuf"]
[null,null,"VS02","Bifteck haché de cheval"]
[null,null,"VS03","Bifteck haché de veau"]
[null,null,"VS04","Bouchée à la reine"]
[null,null,"VS05","Boudin"]
[null,null,"VS06","Cervelas"]
[null,null,"VS07","Cœur"]
[null,null,"VS08","Croque-monsieur"]
[null,null,"VS09","Foie"]
[null,null,"VS10","Fromage de tête"]
[null,null,"VS11","Jambon"]
[null,null,"VS12","Jambonneau"]
[null,null,"VS13","Mortadelle"]
[null,null,"VS14","Œufs"]
[null,null,"VS15","Pizza"]
[null,null,"VS16","Poisson"]
[null,null,"VS17","Quiche lorraine"]
[null,null,"VS18","Roulade à la pistache"]
[null,null,"VS19","Roulé au fromage"]
[null,null,"VS20","Salami"]
[null,null,"VS21","Saucisses"]
[null,null,"VS22","Saucisson"]
[null,null,"VS23","Tête persillée"]
[null,null,"VS24","Tête roulée"]
[null,null,"VS25","Thon"]
[null,null,"VS26","Viande cassoulet"]
[null,null,"VS27","Viande choucroute"]
[null,null,"VS28","Viande paella"]
[null,null,"VWE01","Agneau"]
[null,null,"VWE02","Bœuf"]
[null,null,"VWE03","Cheval"]
[null,null,"VWE04","Dinde"]
[null,null,"VWE05","Poisson"]
[null,null,"VWE06","Porc"]
[null,null,"VWE07","Veau"]

{"sheet":"Accueil Menus","index":5,"n_rows":15,"n_cols":17,"rows_kept":15,"cut":false,"hidden":false,"merged":[]}
["Accueil Menus",null,null,2020]
[]
[]
[]
[]
[]
[null,null,1,"Janvier",{"$f":"$D$1","v":2020},null,null,null,1,"Janvier",{"$f":"$D$1","v":2020},null,null,null,18,"Janvier",{"$f":"$D$1","v":2020}]
[]
[]
[]
[null,null,26,"Juin",{"$f":"$D$1","v":2020},null,null,null,1,"Janvier",{"$f":"$D$1","v":2020},null,null,null,4,"Juillet",{"$f":"$D$1","v":2020}]
[]
[]
[]
[null,null,3,"Février",{"$f":"$D$1","v":2020},null,null,null,1,"Janvier",{"$f":"$D$1","v":2020},null,null,null,12,"Avril",{"$f":"$D$1","v":2020}]

{"sheet":"BD Menus","index":6,"n_rows":23,"n_cols":39,"rows_kept":23,"cut":false,"hidden":false,"merged":[]}
["Date menu","Code menu","Nom menu","Code catégorie légume","Nom catégorie légume","Code produit légume","Nom produit légume","Code jour légume","Nom jour légume","Code conditionnement légume","Nom conditionnement légume","Quantité légume","Code catégorie viande","Nom catégorie viande","Code produit viande","Nom produit viande","Code jour viande","Nom jour viande","Code conditionnement viande","Nom conditionnement viande","Quantité viande","Code catégorie dessert","Nom catégorie dessert","Code produit dessert","Nom produit dessert","Code jour dessert","Nom jour dessert","Code conditionnement dessert","Nom conditionnement dessert","Quantité dessert","Code observation","Nom observation","Code période concernée","Nom période concernée","Date création menu","Code période viande weekend","Nom période viande weekend","Code à modifier","Nom à modifier"]
["2020-01-04","CD03","Menus viandes weekend",null,null,null,null,null,null,null,null,null,"CC15","VWE","VWE07","Veau","CJ09","Samedi et dimanche midis","COCO20","1 tranche pour 1 repas",100,null,null,null,null,null,null,null,null,null,"","","CM01","janvier","2019-09-22","PVWE01","premier semestre","LCÀM01","Non"]
["2020-01-05","CD03","Menus viandes weekend",null,null,null,null,null,null,null,null,null,"CC15","VWE","VWE01","Agneau","CJ09","Samedi et dimanche midis","COCO20","1 tranche pour 1 repas",100,null,null,null,null,null,null,null,null,null,"","","CM01","janvier","2019-09-24","PVWE01","premier semestre","LCÀM01","Non"]
["2020-01-11","CD03","Menus viandes weekend",null,null,null,null,null,null,null,null,null,"CC15","VWE","VWE04","Dinde","CJ09","Samedi et dimanche midis","COCO20","1 tranche pour 1 repas",100,null,null,null,null,null,null,null,null,null,"","","CM01","janvier","2019-09-22","PVWE01","premier semestre","LCÀM01","Non"]
["2020-01-12","CD03","Menus viandes weekend",null,null,null,null,null,null,null,null,null,"CC15","VWE","VWE05","Poisson","CJ09","Samedi et dimanche midis","COCO29","Unité : 1 pour 1 repas",100,null,null,null,null,null,null,null,null,null,"","","CM01","janvier","2019-09-23","PVWE01","premier semestre","LCÀM02","Oui"]
["2020-01-18","CD03","Menus viandes weekend",null,null,null,null,null,null,null,null,null,"CC15","VWE","VWE07","Veau","CJ09","Samedi et dimanche midis","COCO20","1 tranche pour 1 repas",100,null,null,null,null,null,null,null,null,null,"","","CM01","janvier","2019-09-25","PVWE01","premier semestre","LCÀM02","Oui"]
["2020-03-22","CD03","Menus viandes weekend",null,null,null,null,null,null,null,null,null,"CC15","VWE","VWE05","Poisson","CJ09","Samedi et dimanche midis","COCO29","Unité : 1 pour 1 repas",100,null,null,null,null,null,null,null,null,null,"","","CM03","mars","2019-09-23","PVWE01","premier semestre","LCÀM02","Oui"]
["2020-04-12","CD03","Menus viandes weekend",null,null,null,null,null,null,null,null,null,"CC15","VWE","VWE01","Agneau","CJ09","Samedi et dimanche midis","COCO20","1 tranche pour 1 repas",100,null,null,null,null,null,null,null,null,null,"CF02","Pâques","CM04","avril","2019-09-25","PVWE02","premier semestre","LCÀM02","Oui"]
["2020-05-21","CD02","Menus midi retraite","CC04","LMR","LMR02","Avocat","CJ05","Lundi à vendredi midis","COCO28","Unité : 1 pour 1 repas",1,"CC13","VMR","VMR01","Rôti d'agneau","CJ05","Lundi à vendredi midis","COCO09","1 morceau de 500 grammes pour 5 repas",100,"CC01","DMR","DMR01","Pomme","CJ05","Lundi à vendredi midis","COCO16","1 sachet de 2 kilogrammes. 1 pomme pour 1 repas",1,"CF06","Jeudi de l'ascension","CM05","mai","2019-09-21",null,null,"LCÀM02","Oui"]
["2020-05-31","CD03","Menus viandes weekend",null,null,null,null,null,null,null,null,null,"CC15","VWE","VWE02","Bœuf","CJ09","Samedi et dimanche midis","COCO20","1 tranche pour 1 repas",100,null,null,null,null,null,null,null,null,null,"CF07","Pentecôte","CM05","mai","2019-09-25","PVWE02","premier semestre","LCÀM02","Oui"]
["2020-06-26","CD02","Menus midi retraite","CC04","LMR","LMR01","Asperges","CJ05","Lundi à vendredi midis","COCO01","1 bocal ou 1 boîte pour 1 repas",1,"CC13","VMR","VMR01","Rôti d'agneau","CJ05","Lundi à vendredi midis","COCO09","1 morceau de 500 grammes pour 5 repas",100,"CC01","DMR","DMR01","Pomme","CJ05","Lundi à vendredi midis","COCO16","1 sachet de 2 kilogrammes. 1 pomme pour 1 repas",1,"","","CM06","juin","2019-09-21",null,null,"LCÀM02","Non"]
["2020-06-27","CD03","Menus viandes weekend",null,null,null,null,null,null,null,null,null,"CC15","VWE","VWE04","Dinde","CJ09","Samedi et dimanche midis","COCO20","1 tranche pour 1 repas",100,null,null,null,null,null,null,null,null,null,"","","CM06","juin","2019-09-25","PVWE01","premier semestre","LCÀM02","Oui"]
["2020-06-28","CD03","Menus viandes weekend",null,null,null,null,null,null,null,null,null,"CC15","VWE","VWE06","Porc","CJ09","Samedi et dimanche midis","COCO20","1 tranche pour 1 repas",100,null,null,null,null,null,null,null,null,null,"","","CM06","juin","2019-09-25","PVWE01","premier semestre","LCÀM02","Oui"]
["2020-07-02","CD02","Menus midi retraite","CC04","LMR","LMR01","Asperges","CJ05","Lundi à vendredi midis","COCO01","1 bocal ou 1 boîte pour 1 repas",1,"CC13","VMR","VMR01","Rôti d'agneau","CJ05","Lundi à vendredi midis","COCO09","1 morceau de 500 grammes pour 5 repas",100,"CC01","DMR","DMR01","Pomme","CJ05","Lundi à vendredi midis","COCO16","1 sachet de 2 kilogrammes. 1 pomme pour 1 repas",1,"","","CM07","juillet","2019-09-21",null,null,"LCÀM02","Oui"]
["2020-07-04","CD03","Menus viandes weekend",null,null,null,null,null,null,null,null,null,"CC15","VWE","VMR02","Rôti de bœuf","CJ05","Lundi à vendredi midis","COCO09","1 morceau de 500 grammes pour 5 repas",100,null,null,null,null,null,null,null,null,null,"","","CM07","juillet","2019-09-25","PVWE02","deuxième semestre","LCÀM01","Non"]
["2020-07-05","CD03","Menus viandes weekend",null,null,null,null,null,null,null,null,null,"CC15","VWE","VWE05","Poisson","CJ09","Samedi et dimanche midis","COCO29","Unité : 1 pour 1 repas",100,null,null,null,null,null,null,null,null,null,"","","CM07","juillet","2019-09-25","PVWE02","deuxième semestre","LCÀM01","Non"]
["2020-07-14","CD02","Menus midi retraite","CC04","LMR","LMR01","Asperges","CJ05","Lundi à vendredi midis","COCO01","1 bocal ou 1 boîte pour 1 repas",1,"CC13","VMR","VMR01","Rôti d'agneau","CJ05","Lundi à vendredi midis","COCO09","1 morceau de 500 grammes pour 5 repas",100,"CC01","DMR","DMR01","Pomme","CJ05","Lundi à vendredi midis","COCO16","1 sachet de 2 kilogrammes. 1 pomme pour 1 repas",1,"CF09","Fête nationale","CM07","juillet","2019-09-21",null,null,"LCÀM02","Oui"]
["2020-08-15","CD03","Menus viandes weekend",null,null,null,null,null,null,null,null,null,"CC15","VWE","VWE04","Dinde","CJ09","Samedi et dimanche midis","COCO20","1 tranche pour 1 repas",100,null,null,null,null,null,null,null,null,null,"CF10","Assomption","CM08","août","2019-09-21","PVWE02","deuxième semestre","LCÀM02","Oui"]
["2020-09-20","CD03","Menus viandes weekend",null,null,null,null,null,null,null,null,null,"CC15","VWE","VWE04","Dinde","CJ09","Samedi et dimanche midis","COCO20","1 tranche pour 1 repas",100,null,null,null,null,null,null,null,null,null,"","","CM09","septembre","2019-09-21","PVWE02","deuxième semestre","LCÀM02","Oui"]
["2020-11-01","CD03","Menus viandes weekend",null,null,null,null,null,null,null,null,null,"CC15","VWE","VWE06","Porc","CJ09","Samedi et dimanche midis","COCO20","1 tranche pour 1 repas",100,null,null,null,null,null,null,null,null,null,"CF11","Toussaint","CM11","novembre","2019-09-25","PVWE02","deuxième semestre","LCÀM02","Oui"]
["2020-11-29","CD03","Menus viandes weekend",null,null,null,null,null,null,null,null,null,"CC15","VWE","VWE04","Dinde","CJ09","Samedi et dimanche midis","COCO20","1 tranche pour 1 repas",100,null,null,null,null,null,null,null,null,null,"","","CM11","novembre","2019-09-25","PVWE02","deuxième semestre","LCÀM02","Oui"]
["2020-12-26","CD03","Menus viandes weekend",null,null,null,null,null,null,null,null,null,"CC15","VWE","VWE02","Bœuf","CJ09","Samedi et dimanche midis","COCO20","1 tranche pour 1 repas",100,null,null,null,null,null,null,null,null,null,"","","CM12","décembre","2019-09-25","PVWE02","deuxième semestre","LCÀM02","Oui"]
["2020-12-27","CD03","Menus viandes weekend",null,null,null,null,null,null,null,null,null,"CC15","VWE","VWE01","Agneau","CJ09","Samedi et dimanche midis","COCO20","1 tranche pour 1 repas",100,null,null,null,null,null,null,null,null,null,"","","CM12","décembre","2019-09-25","PVWE02","deuxième semestre","LCÀM02","Oui"]

{"sheet":"Saisie MMR","index":7,"n_rows":21,"n_cols":8,"rows_kept":21,"cut":false,"hidden":false,"merged":[[8,0,8,1],[8,3,8,4],[8,6,8,7]]}
[{"$f":"\"Création Menu Midi Retraite \"&'Accueil Menus'!$D$1","v":"Création Menu Midi Retraite 2020"}]
[]
["Code menu","CD02",null,"Code observation",{"$f":"IFERROR(INDEX(ListeCodesFériés,MATCH(E4,ListeNomsFériés,0)),\"\")","v":"CF01"},null,"Code à modifier","LCÀM02"]
["Nom menu",{"$f":"IFERROR(INDEX(ListeNomsDestination,MATCH(B3,ListeCodesDestination,0)),\"-\")","v":"Menus midi retraite"},null,"Nom observation",{"$f":"IF(COUNTIF('Jours Fériés'!$B$3:$B$15,B7)=0,\"\",INDEX('Jours Fériés'!$A$3:$A$15,MATCH(B7,'Jours Fériés'!$B$3:$B$15,0)))","v":"Jour de l'an"},null,"Nom à modifier",{"$f":"IFERROR(INDEX(ListeNomsAModifier,MATCH(H3,ListeCodesAModifier,0)),\"-\")","v":"Oui"}]
[null,null,null,"Code période concernée",{"$f":"IFERROR(INDEX(ListeCodesMois,MATCH(E6,ListeNomsMois,0)),\"-\")","v":"CM01"}]
[null,null,null,"Nom période concernée",{"$f":"IF(B7=\"\",\"\",TEXT(B7,\"mmmm\"))","v":"janvier"}]
["Date du menu","2020-01-01",null,"Date création menu",{"$f":"TODAY()","v":"2019-09-26"}]
[]
["Légume",null,null,"Viande",null,null,"Dessert"]
["Code catégorie","CC04",null,"Code catégorie","CC13",null,"Code catégorie","CC01"]
["Nom catégorie",{"$f":"IFERROR(INDEX(ListeNomscatégorie,MATCH(B10,ListeCodesCatégorie,0)),\"-\")","v":"LMR"},null,"Nom catégorie",{"$f":"IFERROR(INDEX(ListeNomscatégorie,MATCH(E10,ListeCodesCatégorie,0)),\"-\")","v":"VMR"},null,"Nom catégorie",{"$f":"IFERROR(INDEX(ListeNomscatégorie,MATCH(H10,ListeCodesCatégorie,0)),\"-\")","v":"DMR"}]
["Code produit","LMR02",null,"Code produit","VMR02",null,"Code produit","DMR01"]
["Nom produit",{"$f":"IFERROR(INDEX(TableProduits[#Data],MATCH(B$12,TableProduits[Code produit],0),MATCH($A13,TableProduits[#Headers],0)),\"-\")","v":"Avocat"},null,"Nom produit",{"$f":"IFERROR(INDEX(TableProduits[#Data],MATCH(E$12,TableProduits[Code produit],0),MATCH($A13,TableProduits[#Headers],0)),\"-\")","v":"Rôti de bœuf"},null,"Nom produit",{"$f":"IFERROR(INDEX(TableProduits[#Data],MATCH(H$12,TableProduits[Code produit],0),MATCH($A13,TableProduits[#Headers],0)),\"-\")","v":"Pomme"}]
["Code jour",{"$f":"IFERROR(INDEX(TableProduits[#Data],MATCH(B$12,TableProduits[Code produit],0),MATCH($A14,TableProduits[#Headers],0)),\"-\")","v":"CJ05"},null,"Code jour",{"$f":"IFERROR(INDEX(TableProduits[#Data],MATCH(E$12,TableProduits[Code produit],0),MATCH($A14,TableProduits[#Headers],0)),\"-\")","v":"CJ05"},null,"Code jour",{"$f":"IFERROR(INDEX(TableProduits[#Data],MATCH(H$12,TableProduits[Code produit],0),MATCH($A14,TableProduits[#Headers],0)),\"-\")","v":"CJ05"}]
["Nom jour",{"$f":"IFERROR(INDEX(TableProduits[#Data],MATCH(B$12,TableProduits[Code produit],0),MATCH($A15,TableProduits[#Headers],0)),\"-\")","v":"Lundi à vendredi midis"},null,"Nom jour",{"$f":"IFERROR(INDEX(TableProduits[#Data],MATCH(E$12,TableProduits[Code produit],0),MATCH($A15,TableProduits[#Headers],0)),\"-\")","v":"Lundi à vendredi midis"},null,"Nom jour",{"$f":"IFERROR(INDEX(TableProduits[#Data],MATCH(H$12,TableProduits[Code produit],0),MATCH($A15,TableProduits[#Headers],0)),\"-\")","v":"Lundi à vendredi midis"}]
["Code conditionnement",{"$f":"IFERROR(INDEX(TableProduits[#Data],MATCH(B$12,TableProduits[Code produit],0),MATCH($A16,TableProduits[#Headers],0)),\"-\")","v":"COCO28"},null,"Code conditionnement",{"$f":"IFERROR(INDEX(TableProduits[#Data],MATCH(E$12,TableProduits[Code produit],0),MATCH($A16,TableProduits[#Headers],0)),\"-\")","v":"COCO09"},null,"Code conditionnement",{"$f":"IFERROR(INDEX(TableProduits[#Data],MATCH(H$12,TableProduits[Code produit],0),MATCH($A16,TableProduits[#Headers],0)),\"-\")","v":"COCO16"}]
["Nom conditionnement",{"$f":"IFERROR(INDEX(TableProduits[#Data],MATCH(B$12,TableProduits[Code produit],0),MATCH($A17,TableProduits[#Headers],0)),\"-\")","v":"Unité : 1 pour 1 repas"},null,"Nom conditionnement",{"$f":"IFERROR(INDEX(TableProduits[#Data],MATCH(E$12,TableProduits[Code produit],0),MATCH($A17,TableProduits[#Headers],0)),\"-\")","v":"1 morceau de 500 grammes pour 5 repas"},null,"Nom conditionnement",{"$f":"IFERROR(INDEX(TableProduits[#Data],MATCH(H$12,TableProduits[Code produit],0),MATCH($A17,TableProduits[#Headers],0)),\"-\")","v":"1 sachet de 2 kilogrammes. 1 pomme pour 1 repas"}]
["Quantité légume",1,null,"Quantité viande",100,null,"Quantité dessert",1]
[]
[null,null,null,"Code période viande weekend"]
[null,null,null,"Nom période viande weekend"]

{"sheet":"Modif MMR","index":8,"n_rows":21,"n_cols":8,"rows_kept":21,"cut":false,"hidden":true,"merged":[[8,0,8,1],[8,3,8,4],[8,6,8,7]]}
[{"$f":"\"Modification Menu Midi Retraite \"&'Accueil Menus'!$D$1","v":"Modification Menu Midi Retraite 2020"}]
[]
["Code menu","CD02",null,"Code observation",{"$f":"IFERROR(INDEX(ListeCodesFériés,MATCH(E4,ListeNomsFériés,0)),\"\")","v":"CF06"},null,"Code à modifier","LCÀM02"]
["Nom menu",{"$f":"IFERROR(INDEX(ListeNomsDestination,MATCH(B3,ListeCodesDestination,0)),\"-\")","v":"Menus midi retraite"},null,"Nom observation",{"$f":"IF(COUNTIF('Jours Fériés'!$B$3:$B$15,B7)=0,\"\",INDEX('Jours Fériés'!$A$3:$A$15,MATCH(B7,'Jours Fériés'!$B$3:$B$15,0)))","v":"Jeudi de l'ascension"},null,"Nom à modifier",{"$f":"IFERROR(INDEX(ListeNomsAModifier,MATCH(H3,ListeCodesAModifier,0)),\"-\")","v":"Oui"}]
[null,null,null,"Code période concernée",{"$f":"IFERROR(INDEX(ListeCodesMois,MATCH(E6,ListeNomsMois,0)),\"-\")","v":"CM05"}]
[null,null,null,"Nom période concernée",{"$f":"IF(B7=\"\",\"\",TEXT(B7,\"mmmm\"))","v":"mai"}]
["Date du menu","2020-05-21",null,"Date création menu","2019-09-21"]
[]
["Légume",null,null,"Viande",null,null,"Dessert"]
["Code catégorie","CC04",null,"Code catégorie","CC13",null,"Code catégorie","CC01"]
["Nom catégorie",{"$f":"IFERROR(INDEX(ListeNomscatégorie,MATCH(B10,ListeCodesCatégorie,0)),\"-\")","v":"LMR"},null,"Nom catégorie",{"$f":"IFERROR(INDEX(ListeNomscatégorie,MATCH(E10,ListeCodesCatégorie,0)),\"-\")","v":"VMR"},null,"Nom catégorie",{"$f":"IFERROR(INDEX(ListeNomscatégorie,MATCH(H10,ListeCodesCatégorie,0)),\"-\")","v":"DMR"}]
["Code produit","LMR02",null,"Code produit","VMR01",null,"Code produit","DMR01"]
["Nom produit",{"$f":"IFERROR(INDEX(TableProduits[#Data],MATCH(B$12,TableProduits[Code produit],0),MATCH($A13,TableProduits[#Headers],0)),\"-\")","v":"Avocat"},null,"Nom produit",{"$f":"IFERROR(INDEX(TableProduits[#Data],MATCH(E$12,TableProduits[Code produit],0),MATCH($A13,TableProduits[#Headers],0)),\"-\")","v":"Rôti d'agneau"},null,"Nom produit",{"$f":"IFERROR(INDEX(TableProduits[#Data],MATCH(H$12,TableProduits[Code produit],0),MATCH($A13,TableProduits[#Headers],0)),\"-\")","v":"Pomme"}]
["Code jour",{"$f":"IFERROR(INDEX(TableProduits[#Data],MATCH(B$12,TableProduits[Code produit],0),MATCH($A14,TableProduits[#Headers],0)),\"-\")","v":"CJ05"},null,"Code jour",{"$f":"IFERROR(INDEX(TableProduits[#Data],MATCH(E$12,TableProduits[Code produit],0),MATCH($A14,TableProduits[#Headers],0)),\"-\")","v":"CJ05"},null,"Code jour",{"$f":"IFERROR(INDEX(TableProduits[#Data],MATCH(H$12,TableProduits[Code produit],0),MATCH($A14,TableProduits[#Headers],0)),\"-\")","v":"CJ05"}]
["Nom jour",{"$f":"IFERROR(INDEX(TableProduits[#Data],MATCH(B$12,TableProduits[Code produit],0),MATCH($A15,TableProduits[#Headers],0)),\"-\")","v":"Lundi à vendredi midis"},null,"Nom jour",{"$f":"IFERROR(INDEX(TableProduits[#Data],MATCH(E$12,TableProduits[Code produit],0),MATCH($A15,TableProduits[#Headers],0)),\"-\")","v":"Lundi à vendredi midis"},null,"Nom jour",{"$f":"IFERROR(INDEX(TableProduits[#Data],MATCH(H$12,TableProduits[Code produit],0),MATCH($A15,TableProduits[#Headers],0)),\"-\")","v":"Lundi à vendredi midis"}]
["Code conditionnement",{"$f":"IFERROR(INDEX(TableProduits[#Data],MATCH(B$12,TableProduits[Code produit],0),MATCH($A16,TableProduits[#Headers],0)),\"-\")","v":"COCO28"},null,"Code conditionnement",{"$f":"IFERROR(INDEX(TableProduits[#Data],MATCH(E$12,TableProduits[Code produit],0),MATCH($A16,TableProduits[#Headers],0)),\"-\")","v":"COCO09"},null,"Code conditionnement",{"$f":"IFERROR(INDEX(TableProduits[#Data],MATCH(H$12,TableProduits[Code produit],0),MATCH($A16,TableProduits[#Headers],0)),\"-\")","v":"COCO16"}]
["Nom conditionnement",{"$f":"IFERROR(INDEX(TableProduits[#Data],MATCH(B$12,TableProduits[Code produit],0),MATCH($A17,TableProduits[#Headers],0)),\"-\")","v":"Unité : 1 pour 1 repas"},null,"Nom conditionnement",{"$f":"IFERROR(INDEX(TableProduits[#Data],MATCH(E$12,TableProduits[Code produit],0),MATCH($A17,TableProduits[#Headers],0)),\"-\")","v":"1 morceau de 500 grammes pour 5 repas"},null,"Nom conditionnement",{"$f":"IFERROR(INDEX(TableProduits[#Data],MATCH(H$12,TableProduits[Code produit],0),MATCH($A17,TableProduits[#Headers],0)),\"-\")","v":"1 sachet de 2 kilogrammes. 1 pomme pour 1 repas"}]
["Quantité légume",1,null,"Quantité viande",100,null,"Quantité dessert",1]
[]
[null,null,null,"Code période viande weekend"]
[null,null,null,"Nom période viande weekend"]

{"sheet":"Menus MMR","index":9,"n_rows":325,"n_cols":7,"rows_kept":325,"cut":false,"hidden":false,"merged":[]}
[{"$f":"'Accueil Menus'!$D$1","v":2020}]
[null,null,null,null,""]
[1,{"$f":"\"Menus midi retraite du mois de \"&TEXT(A5,\"mmmm\")&\" \"&$A$1","v":"Menus midi retraite du mois de janvier 2020"}]
["Date du menu","Légume","Viande","Dessert","Observation","Nature du menu","Numéro menu"]
[{"$f":"IF(WEEKDAY(DATE($A$1,$A3,1),2)<=5,DATE($A$1,$A3,1),DATE($A$1,$A3,1)+8-WEEKDAY(DATE($A$1,$A3,1),2))","v":"2020-01-01"},null,null,null,null,{"$f":"IF(COUNTA(A5:D5)>1,\"Menus midi retraite \" &TEXT(A5,\"mmmm\"),\"\")","v":""},{"$f":"IF(F5<>\"\",\"MMR\" & TEXT(COUNTA($A$5:A5)-COUNTBLANK($A$5:A5),\"00\"),\"\")","v":""}]
[{"$f":"A5+IF(WEEKDAY(A5,2)<5,1,3)","v":"2020-01-02"},null,null,null,null,{"$f":"IF(COUNTA(A6:D6)>1,\"Menus midi retraite \" &TEXT(A6,\"mmmm\"),\"\")","v":""},{"$f":"IF(F6<>\"\",\"MMR\" & TEXT(COUNTA($A$5:A6)-COUNTBLANK($A$5:A6),\"00\"),\"\")","v":""}]
[{"$f":"A6+IF(WEEKDAY(A6,2)<5,1,3)","v":"2020-01-03"},null,null,null,null,"",{"$f":"IF(F7<>\"\",\"MMR\" & TEXT(COUNTA($A$5:A7)-COUNTBLANK($A$5:A7),\"00\"),\"\")","v":""}]
["2020-01-06",null,null,null,null,"",{"$f":"IF(F8<>\"\",\"MMR\" & TEXT(COUNTA($A$5:A8)-COUNTBLANK($A$5:A8),\"00\"),\"\")","v":""}]
["2020-01-07",null,null,null,null,"",{"$f":"IF(F9<>\"\",\"MMR\" & TEXT(COUNTA($A$5:A9)-COUNTBLANK($A$5:A9),\"00\"),\"\")","v":""}]
["2020-01-08",null,null,null,null,"",{"$f":"IF(F10<>\"\",\"MMR\" & TEXT(COUNTA($A$5:A10)-COUNTBLANK($A$5:A10),\"00\"),\"\")","v":""}]
["2020-01-09",null,null,null,null,"",{"$f":"IF(F11<>\"\",\"MMR\" & TEXT(COUNTA($A$5:A11)-COUNTBLANK($A$5:A11),\"00\"),\"\")","v":""}]
["2020-01-10",null,null,null,null,"",{"$f":"IF(F12<>\"\",\"MMR\" & TEXT(COUNTA($A$5:A12)-COUNTBLANK($A$5:A12),\"00\"),\"\")","v":""}]
["2020-01-13",null,null,null,null,"",{"$f":"IF(F13<>\"\",\"MMR\" & TEXT(COUNTA($A$5:A13)-COUNTBLANK($A$5:A13),\"00\"),\"\")","v":""}]
["2020-01-14",null,null,null,null,"",{"$f":"IF(F14<>\"\",\"MMR\" & TEXT(COUNTA($A$5:A14)-COUNTBLANK($A$5:A14),\"00\"),\"\")","v":""}]
["2020-01-15",null,null,null,null,"",{"$f":"IF(F15<>\"\",\"MMR\" & TEXT(COUNTA($A$5:A15)-COUNTBLANK($A$5:A15),\"00\"),\"\")","v":""}]
["2020-01-16",null,null,null,null,"",{"$f":"IF(F16<>\"\",\"MMR\" & TEXT(COUNTA($A$5:A16)-COUNTBLANK($A$5:A16),\"00\"),\"\")","v":""}]
["2020-01-17",null,null,null,null,"",{"$f":"IF(F17<>\"\",\"MMR\" & TEXT(COUNTA($A$5:A17)-COUNTBLANK($A$5:A17),\"00\"),\"\")","v":""}]
["2020-01-20",null,null,null,null,"",{"$f":"IF(F18<>\"\",\"MMR\" & TEXT(COUNTA($A$5:A18)-COUNTBLANK($A$5:A18),\"00\"),\"\")","v":""}]
["2020-01-21",null,null,null,null,"",{"$f":"IF(F19<>\"\",\"MMR\" & TEXT(COUNTA($A$5:A19)-COUNTBLANK($A$5:A19),\"00\"),\"\")","v":""}]
["2020-01-22",null,null,null,null,"",{"$f":"IF(F20<>\"\",\"MMR\" & TEXT(COUNTA($A$5:A20)-COUNTBLANK($A$5:A20),\"00\"),\"\")","v":""}]
["2020-01-23",null,null,null,null,"",{"$f":"IF(F21<>\"\",\"MMR\" & TEXT(COUNTA($A$5:A21)-COUNTBLANK($A$5:A21),\"00\"),\"\")","v":""}]
["2020-01-24",null,null,null,null,"",{"$f":"IF(F22<>\"\",\"MMR\" & TEXT(COUNTA($A$5:A22)-COUNTBLANK($A$5:A22),\"00\"),\"\")","v":""}]
["2020-01-27",null,null,null,null,"",{"$f":"IF(F23<>\"\",\"MMR\" & TEXT(COUNTA($A$5:A23)-COUNTBLANK($A$5:A23),\"00\"),\"\")","v":""}]
["2020-01-28",null,null,null,null,"",{"$f":"IF(F24<>\"\",\"MMR\" & TEXT(COUNTA($A$5:A24)-COUNTBLANK($A$5:A24),\"00\"),\"\")","v":""}]
[{"$f":"IFERROR(IF(MONTH(A24+IF(WEEKDAY(A24,2)<5,1,3))=MONTH(A23),A24+IF(WEEKDAY(A24,2)<5,1,3),\"\"),\"\")","v":"2020-01-29"},null,null,null,null,"",{"$f":"IF(F25<>\"\",\"MMR\" & TEXT(COUNTA($A$5:A25)-COUNTBLANK($A$5:A25),\"00\"),\"\")","v":""}]
[{"$f":"IFERROR(IF(MONTH(A25+IF(WEEKDAY(A25,2)<5,1,3))=MONTH(A24),A25+IF(WEEKDAY(A25,2)<5,1,3),\"\"),\"\")","v":"2020-01-30"},null,null,null,null,"",{"$f":"IF(F26<>\"\",\"MMR\" & TEXT(COUNTA($A$5:A26)-COUNTBLANK($A$5:A26),\"00\"),\"\")","v":""}]
[{"$f":"IFERROR(IF(MONTH(A26+IF(WEEKDAY(A26,2)<5,1,3))=MONTH(A25),A26+IF(WEEKDAY(A26,2)<5,1,3),\"\"),\"\")","v":"2020-01-31"},null,null,null,null,"",{"$f":"IF(F27<>\"\",\"MMR\" & TEXT(COUNTA($A$5:A27)-COUNTBLANK($A$5:A27),\"00\"),\"\")","v":""}]
[null,{"$f":"\"Fait à Limeil-Brévannes, le \"& IF(COUNTBLANK(A5:A27)-COUNTBLANK(G5:G27)=0,TEXT(TODAY(),\"jjjj j mmmm aaaa\"),\"\")","v":"Fait à Limeil-Brévannes, le "}]
[]
[{"$f":"A3+1","v":2},{"$f":"\"Menus midi retraite du mois de \"&TEXT(A32,\"mmmm\")&\" \"&$A$1","v":"Menus midi retraite du mois de février 2020"}]
["Date du menu","Légume","Viande","Dessert","Observation","Nature du menu","Numéro menu"]
[{"$f":"IF(WEEKDAY(DATE($A$1,$A30,1),2)<=5,DATE($A$1,$A30,1),DATE($A$1,$A30,1)+8-WEEKDAY(DATE($A$1,$A30,1),2))","v":"2020-02-03"},null,null,null,null,{"$f":"IF(COUNTA(A32:D32)>1,\"Menus midi retraite \" &TEXT(A32,\"mmmm\"),\"\")","v":""},{"$f":"IF(F32<>\"\",\"MMR\" & TEXT(COUNTA($A$5:A32)-COUNTBLANK($A$5:A32),\"00\"),\"\")","v":""}]
[{"$f":"A32+IF(WEEKDAY(A32,2)<5,1,3)","v":"2020-02-04"},null,null,null,null,{"$f":"IF(COUNTA(A33:D33)>1,\"Menus midi retraite \" &TEXT(A33,\"mmmm\"),\"\")","v":""},{"$f":"IF(F33<>\"\",\"MMR\" & TEXT(COUNTA($A$5:A33)-COUNTBLANK($A$5:A33),\"00\"),\"\")","v":""}]
[{"$f":"A33+IF(WEEKDAY(A33,2)<5,1,3)","v":"2020-02-05"},null,null,null,null,"",{"$f":"IF(F34<>\"\",\"MMR\" & TEXT(COUNTA($A$5:A34)-COUNTBLANK($A$5:A34),\"00\"),\"\")","v":""}]
["2020-02-06",null,null,null,null,"",{"$f":"IF(F35<>\"\",\"MMR\" & TEXT(COUNTA($A$5:A35)-COUNTBLANK($A$5:A35),\"00\"),\"\")","v":""}]
["2020-02-07",null,null,null,null,"",{"$f":"IF(F36<>\"\",\"MMR\" & TEXT(COUNTA($A$5:A36)-COUNTBLANK($A$5:A36),\"00\"),\"\")","v":""}]
["2020-02-10",null,null,null,null,"",{"$f":"IF(F37<>\"\",\"MMR\" & TEXT(COUNTA($A$5:A37)-COUNTBLANK($A$5:A37),\"00\"),\"\")","v":""}]
["2020-02-11",null,null,null,null,"",{"$f":"IF(F38<>\"\",\"MMR\" & TEXT(COUNTA($A$5:A38)-COUNTBLANK($A$5:A38),\"00\"),\"\")","v":""}]
["2020-02-12",null,null,null,null,"",{"$f":"IF(F39<>\"\",\"MMR\" & TEXT(COUNTA($A$5:A39)-COUNTBLANK($A$5:A39),\"00\"),\"\")","v":""}]
["2020-02-13",null,null,null,null,"",{"$f":"IF(F40<>\"\",\"MMR\" & TEXT(COUNTA($A$5:A40)-COUNTBLANK($A$5:A40),\"00\"),\"\")","v":""}]
["2020-02-14",null,null,null,null,"",{"$f":"IF(F41<>\"\",\"MMR\" & TEXT(COUNTA($A$5:A41)-COUNTBLANK($A$5:A41),\"00\"),\"\")","v":""}]
["2020-02-17",null,null,null,null,"",{"$f":"IF(F42<>\"\",\"MMR\" & TEXT(COUNTA($A$5:A42)-COUNTBLANK($A$5:A42),\"00\"),\"\")","v":""}]
["2020-02-18",null,null,null,null,"",{"$f":"IF(F43<>\"\",\"MMR\" & TEXT(COUNTA($A$5:A43)-COUNTBLANK($A$5:A43),\"00\"),\"\")","v":""}]
["2020-02-19",null,null,null,null,"",{"$f":"IF(F44<>\"\",\"MMR\" & TEXT(COUNTA($A$5:A44)-COUNTBLANK($A$5:A44),\"00\"),\"\")","v":""}]
["2020-02-20",null,null,null,null,"",{"$f":"IF(F45<>\"\",\"MMR\" & TEXT(COUNTA($A$5:A45)-COUNTBLANK($A$5:A45),\"00\"),\"\")","v":""}]
["2020-02-21",null,null,null,null,"",{"$f":"IF(F46<>\"\",\"MMR\" & TEXT(COUNTA($A$5:A46)-COUNTBLANK($A$5:A46),\"00\"),\"\")","v":""}]
["2020-02-24",null,null,null,null,"",{"$f":"IF(F47<>\"\",\"MMR\" & TEXT(COUNTA($A$5:A47)-COUNTBLANK($A$5:A47),\"00\"),\"\")","v":""}]
["2020-02-25",null,null,null,null,"",{"$f":"IF(F48<>\"\",\"MMR\" & TEXT(COUNTA($A$5:A48)-COUNTBLANK($A$5:A48),\"00\"),\"\")","v":""}]
["2020-02-26",null,null,null,null,"",{"$f":"IF(F49<>\"\",\"MMR\" & TEXT(COUNTA($A$5:A49)-COUNTBLANK($A$5:A49),\"00\"),\"\")","v":""}]
["2020-02-27",null,null,null,null,"",{"$f":"IF(F50<>\"\",\"MMR\" & TEXT(COUNTA($A$5:A50)-COUNTBLANK($A$5:A50),\"00\"),\"\")","v":""}]
["2020-02-28",null,null,null,null,"",{"$f":"IF(F51<>\"\",\"MMR\" & TEXT(COUNTA($A$5:A51)-COUNTBLANK($A$5:A51),\"00\"),\"\")","v":""}]
[{"$f":"IFERROR(IF(MONTH(A51+IF(WEEKDAY(A51,2)<5,1,3))=MONTH(A50),A51+IF(WEEKDAY(A51,2)<5,1,3),\"\"),\"\")","v":""},null,null,null,null,"",{"$f":"IF(F52<>\"\",\"MMR\" & TEXT(COUNTA($A$5:A52)-COUNTBLANK($A$5:A52),\"00\"),\"\")","v":""}]
[{"$f":"IFERROR(IF(MONTH(A52+IF(WEEKDAY(A52,2)<5,1,3))=MONTH(A51),A52+IF(WEEKDAY(A52,2)<5,1,3),\"\"),\"\")","v":""},null,null,null,null,"",{"$f":"IF(F53<>\"\",\"MMR\" & TEXT(COUNTA($A$5:A53)-COUNTBLANK($A$5:A53),\"00\"),\"\")","v":""}]
[{"$f":"IFERROR(IF(MONTH(A53+IF(WEEKDAY(A53,2)<5,1,3))=MONTH(A52),A53+IF(WEEKDAY(A53,2)<5,1,3),\"\"),\"\")","v":""},null,null,null,null,"",{"$f":"IF(F54<>\"\",\"MMR\" & TEXT(COUNTA($A$5:A54)-COUNTBLANK($A$5:A54),\"00\"),\"\")","v":""}]
[null,{"$f":"\"Fait à Limeil-Brévannes, le \"& IF(COUNTBLANK(A32:A54)-COUNTBLANK(G32:G54)=0,TEXT(TODAY(),\"jjjj j mmmm aaaa\"),\"\")","v":"Fait à Limeil-Brévannes, le "}]
[]
[{"$f":"A30+1","v":3},{"$f":"\"Menus midi retraite du mois de \"&TEXT(A59,\"mmmm\")&\" \"&$A$1","v":"Menus midi retraite du mois de mars 2020"}]
["Date du menu","Légume","Viande","Dessert","Observation","Nature du menu","Numéro menu"]
[{"$f":"IF(WEEKDAY(DATE($A$1,$A57,1),2)<=5,DATE($A$1,$A57,1),DATE($A$1,$A57,1)+8-WEEKDAY(DATE($A$1,$A57,1),2))","v":"2020-03-02"},null,null,null,null,{"$f":"IF(COUNTA(A59:D59)>1,\"Menus midi retraite \" &TEXT(A59,\"mmmm\"),\"\")","v":""},{"$f":"IF(F59<>\"\",\"MMR\" & TEXT(COUNTA($A$5:A59)-COUNTBLANK($A$5:A59),\"00\"),\"\")","v":""}]
[{"$f":"A59+IF(WEEKDAY(A59,2)<5,1,3)","v":"2020-03-03"},null,null,null,null,{"$f":"IF(COUNTA(A60:D60)>1,\"Menus midi retraite \" &TEXT(A60,\"mmmm\"),\"\")","v":""},{"$f":"IF(F60<>\"\",\"MMR\" & TEXT(COUNTA($A$5:A60)-COUNTBLANK($A$5:A60),\"00\"),\"\")","v":""}]
[{"$f":"A60+IF(WEEKDAY(A60,2)<5,1,3)","v":"2020-03-04"},null,null,null,null,"",{"$f":"IF(F61<>\"\",\"MMR\" & TEXT(COUNTA($A$5:A61)-COUNTBLANK($A$5:A61),\"00\"),\"\")","v":""}]
["2020-03-05",null,null,null,null,"",{"$f":"IF(F62<>\"\",\"MMR\" & TEXT(COUNTA($A$5:A62)-COUNTBLANK($A$5:A62),\"00\"),\"\")","v":""}]
["2020-03-06",null,null,null,null,"",{"$f":"IF(F63<>\"\",\"MMR\" & TEXT(COUNTA($A$5:A63)-COUNTBLANK($A$5:A63),\"00\"),\"\")","v":""}]
["2020-03-09",null,null,null,null,"",{"$f":"IF(F64<>\"\",\"MMR\" & TEXT(COUNTA($A$5:A64)-COUNTBLANK($A$5:A64),\"00\"),\"\")","v":""}]
["2020-03-10",null,null,null,null,"",{"$f":"IF(F65<>\"\",\"MMR\" & TEXT(COUNTA($A$5:A65)-COUNTBLANK($A$5:A65),\"00\"),\"\")","v":""}]
["2020-03-11",null,null,null,null,"",{"$f":"IF(F66<>\"\",\"MMR\" & TEXT(COUNTA($A$5:A66)-COUNTBLANK($A$5:A66),\"00\"),\"\")","v":""}]
["2020-03-12",null,null,null,null,"",{"$f":"IF(F67<>\"\",\"MMR\" & TEXT(COUNTA($A$5:A67)-COUNTBLANK($A$5:A67),\"00\"),\"\")","v":""}]
["2020-03-13",null,null,null,null,"",{"$f":"IF(F68<>\"\",\"MMR\" & TEXT(COUNTA($A$5:A68)-COUNTBLANK($A$5:A68),\"00\"),\"\")","v":""}]
["2020-03-16",null,null,null,null,"",{"$f":"IF(F69<>\"\",\"MMR\" & TEXT(COUNTA($A$5:A69)-COUNTBLANK($A$5:A69),\"00\"),\"\")","v":""}]
["2020-03-17",null,null,null,null,"",{"$f":"IF(F70<>\"\",\"MMR\" & TEXT(COUNTA($A$5:A70)-COUNTBLANK($A$5:A70),\"00\"),\"\")","v":""}]
["2020-03-18",null,null,null,null,"",{"$f":"IF(F71<>\"\",\"MMR\" & TEXT(COUNTA($A$5:A71)-COUNTBLANK($A$5:A71),\"00\"),\"\")","v":""}]
["2020-03-19",null,null,null,null,"",{"$f":"IF(F72<>\"\",\"MMR\" & TEXT(COUNTA($A$5:A72)-COUNTBLANK($A$5:A72),\"00\"),\"\")","v":""}]
["2020-03-20",null,null,null,null,"",{"$f":"IF(F73<>\"\",\"MMR\" & TEXT(COUNTA($A$5:A73)-COUNTBLANK($A$5:A73),\"00\"),\"\")","v":""}]
["2020-03-23",null,null,null,null,"",{"$f":"IF(F74<>\"\",\"MMR\" & TEXT(COUNTA($A$5:A74)-COUNTBLANK($A$5:A74),\"00\"),\"\")","v":""}]
["2020-03-24",null,null,null,null,"",{"$f":"IF(F75<>\"\",\"MMR\" & TEXT(COUNTA($A$5:A75)-COUNTBLANK($A$5:A75),\"00\"),\"\")","v":""}]
["2020-03-25",null,null,null,null,"",{"$f":"IF(F76<>\"\",\"MMR\" & TEXT(COUNTA($A$5:A76)-COUNTBLANK($A$5:A76),\"00\"),\"\")","v":""}]
["2020-03-26",null,null,null,null,"",{"$f":"IF(F77<>\"\",\"MMR\" & TEXT(COUNTA($A$5:A77)-COUNTBLANK($A$5:A77),\"00\"),\"\")","v":""}]
["2020-03-27",null,null,null,null,"",{"$f":"IF(F78<>\"\",\"MMR\" & TEXT(COUNTA($A$5:A78)-COUNTBLANK($A$5:A78),\"00\"),\"\")","v":""}]
[{"$f":"IFERROR(IF(MONTH(A78+IF(WEEKDAY(A78,2)<5,1,3))=MONTH(A77),A78+IF(WEEKDAY(A78,2)<5,1,3),\"\"),\"\")","v":"2020-03-30"},null,null,null,null,"",{"$f":"IF(F79<>\"\",\"MMR\" & TEXT(COUNTA($A$5:A79)-COUNTBLANK($A$5:A79),\"00\"),\"\")","v":""}]
[{"$f":"IFERROR(IF(MONTH(A79+IF(WEEKDAY(A79,2)<5,1,3))=MONTH(A78),A79+IF(WEEKDAY(A79,2)<5,1,3),\"\"),\"\")","v":"2020-03-31"},null,null,null,null,"",{"$f":"IF(F80<>\"\",\"MMR\" & TEXT(COUNTA($A$5:A80)-COUNTBLANK($A$5:A80),\"00\"),\"\")","v":""}]
[{"$f":"IFERROR(IF(MONTH(A80+IF(WEEKDAY(A80,2)<5,1,3))=MONTH(A79),A80+IF(WEEKDAY(A80,2)<5,1,3),\"\"),\"\")","v":""},null,null,null,null,"",{"$f":"IF(F81<>\"\",\"MMR\" & TEXT(COUNTA($A$5:A81)-COUNTBLANK($A$5:A81),\"00\"),\"\")","v":""}]
[null,{"$f":"\"Fait à Limeil-Brévannes, le \"& IF(COUNTBLANK(A59:A81)-COUNTBLANK(G59:G81)=0,TEXT(TODAY(),\"jjjj j mmmm aaaa\"),\"\")","v":"Fait à Limeil-Brévannes, le "}]
[]
[{"$f":"A57+1","v":4},{"$f":"\"Menus midi retraite du mois de \"&TEXT(A86,\"mmmm\")&\" \"&$A$1","v":"Menus midi retraite du mois de avril 2020"}]
["Date du menu","Légume","Viande","Dessert","Observation","Nature du menu","Numéro menu"]
[{"$f":"IF(WEEKDAY(DATE($A$1,$A84,1),2)<=5,DATE($A$1,$A84,1),DATE($A$1,$A84,1)+8-WEEKDAY(DATE($A$1,$A84,1),2))","v":"2020-04-01"},null,null,null,null,{"$f":"IF(COUNTA(A86:D86)>1,\"Menus midi retraite \" &TEXT(A86,\"mmmm\"),\"\")","v":""},{"$f":"IF(F86<>\"\",\"MMR\" & TEXT(COUNTA($A$5:A86)-COUNTBLANK($A$5:A86),\"00\"),\"\")","v":""}]
[{"$f":"A86+IF(WEEKDAY(A86,2)<5,1,3)","v":"2020-04-02"},null,null,null,null,{"$f":"IF(COUNTA(A87:D87)>1,\"Menus midi retraite \" &TEXT(A87,\"mmmm\"),\"\")","v":""},{"$f":"IF(F87<>\"\",\"MMR\" & TEXT(COUNTA($A$5:A87)-COUNTBLANK($A$5:A87),\"00\"),\"\")","v":""}]
[{"$f":"A87+IF(WEEKDAY(A87,2)<5,1,3)","v":"2020-04-03"},null,null,null,null,"",{"$f":"IF(F88<>\"\",\"MMR\" & TEXT(COUNTA($A$5:A88)-COUNTBLANK($A$5:A88),\"00\"),\"\")","v":""}]
["2020-04-06",null,null,null,null,"",{"$f":"IF(F89<>\"\",\"MMR\" & TEXT(COUNTA($A$5:A89)-COUNTBLANK($A$5:A89),\"00\"),\"\")","v":""}]
["2020-04-07",null,null,null,null,"",{"$f":"IF(F90<>\"\",\"MMR\" & TEXT(COUNTA($A$5:A90)-COUNTBLANK($A$5:A90),\"00\"),\"\")","v":""}]
["2020-04-08",null,null,null,null,"",{"$f":"IF(F91<>\"\",\"MMR\" & TEXT(COUNTA($A$5:A91)-COUNTBLANK($A$5:A91),\"00\"),\"\")","v":""}]
["2020-04-09",null,null,null,null,"",{"$f":"IF(F92<>\"\",\"MMR\" & TEXT(COUNTA($A$5:A92)-COUNTBLANK($A$5:A92),\"00\"),\"\")","v":""}]
["2020-04-10",null,null,null,null,"",{"$f":"IF(F93<>\"\",\"MMR\" & TEXT(COUNTA($A$5:A93)-COUNTBLANK($A$5:A93),\"00\"),\"\")","v":""}]
["2020-04-13",null,null,null,null,"",{"$f":"IF(F94<>\"\",\"MMR\" & TEXT(COUNTA($A$5:A94)-COUNTBLANK($A$5:A94),\"00\"),\"\")","v":""}]
["2020-04-14",null,null,null,null,"",{"$f":"IF(F95<>\"\",\"MMR\" & TEXT(COUNTA($A$5:A95)-COUNTBLANK($A$5:A95),\"00\"),\"\")","v":""}]
["2020-04-15",null,null,null,null,"",{"$f":"IF(F96<>\"\",\"MMR\" & TEXT(COUNTA($A$5:A96)-COUNTBLANK($A$5:A96),\"00\"),\"\")","v":""}]
["2020-04-16",null,null,null,null,"",{"$f":"IF(F97<>\"\",\"MMR\" & TEXT(COUNTA($A$5:A97)-COUNTBLANK($A$5:A97),\"00\"),\"\")","v":""}]
["2020-04-17",null,null,null,null,"",{"$f":"IF(F98<>\"\",\"MMR\" & TEXT(COUNTA($A$5:A98)-COUNTBLANK($A$5:A98),\"00\"),\"\")","v":""}]
["2020-04-20",null,null,null,null,"",{"$f":"IF(F99<>\"\",\"MMR\" & TEXT(COUNTA($A$5:A99)-COUNTBLANK($A$5:A99),\"00\"),\"\")","v":""}]
["2020-04-21",null,null,null,null,"",{"$f":"IF(F100<>\"\",\"MMR\" & TEXT(COUNTA($A$5:A100)-COUNTBLANK($A$5:A100),\"00\"),\"\")","v":""}]
["2020-04-22",null,null,null,null,"",{"$f":"IF(F101<>\"\",\"MMR\" & TEXT(COUNTA($A$5:A101)-COUNTBLANK($A$5:A101),\"00\"),\"\")","v":""}]
["2020-04-23",null,null,null,null,"",{"$f":"IF(F102<>\"\",\"MMR\" & TEXT(COUNTA($A$5:A102)-COUNTBLANK($A$5:A102),\"00\"),\"\")","v":""}]
["2020-04-24",null,null,null,null,"",{"$f":"IF(F103<>\"\",\"MMR\" & TEXT(COUNTA($A$5:A103)-COUNTBLANK($A$5:A103),\"00\"),\"\")","v":""}]
["2020-04-27",null,null,null,null,"",{"$f":"IF(F104<>\"\",\"MMR\" & TEXT(COUNTA($A$5:A104)-COUNTBLANK($A$5:A104),\"00\"),\"\")","v":""}]
["2020-04-28",null,null,null,null,"",{"$f":"IF(F105<>\"\",\"MMR\" & TEXT(COUNTA($A$5:A105)-COUNTBLANK($A$5:A105),\"00\"),\"\")","v":""}]
[{"$f":"IFERROR(IF(MONTH(A105+IF(WEEKDAY(A105,2)<5,1,3))=MONTH(A104),A105+IF(WEEKDAY(A105,2)<5,1,3),\"\"),\"\")","v":"2020-04-29"},null,null,null,null,"",{"$f":"IF(F106<>\"\",\"MMR\" & TEXT(COUNTA($A$5:A106)-COUNTBLANK($A$5:A106),\"00\"),\"\")","v":""}]
[{"$f":"IFERROR(IF(MONTH(A106+IF(WEEKDAY(A106,2)<5,1,3))=MONTH(A105),A106+IF(WEEKDAY(A106,2)<5,1,3),\"\"),\"\")","v":"2020-04-30"},null,null,null,null,"",{"$f":"IF(F107<>\"\",\"MMR\" & TEXT(COUNTA($A$5:A107)-COUNTBLANK($A$5:A107),\"00\"),\"\")","v":""}]
[{"$f":"IFERROR(IF(MONTH(A107+IF(WEEKDAY(A107,2)<5,1,3))=MONTH(A106),A107+IF(WEEKDAY(A107,2)<5,1,3),\"\"),\"\")","v":""},null,null,null,null,"",{"$f":"IF(F108<>\"\",\"MMR\" & TEXT(COUNTA($A$5:A108)-COUNTBLANK($A$5:A108),\"00\"),\"\")","v":""}]
[null,{"$f":"\"Fait à Limeil-Brévannes, le \"& IF(COUNTBLANK(A86:A108)-COUNTBLANK(G86:G108)=0,TEXT(TODAY(),\"jjjj j mmmm aaaa\"),\"\")","v":"Fait à Limeil-Brévannes, le "}]
[]
[{"$f":"A84+1","v":5},{"$f":"\"Menus midi retraite du mois de \"&TEXT(A113,\"mmmm\")&\" \"&$A$1","v":"Menus midi retraite du mois de mai 2020"}]
["Date du menu","Légume","Viande","Dessert","Observation","Nature du menu","Numéro menu"]
[{"$f":"IF(WEEKDAY(DATE($A$1,$A111,1),2)<=5,DATE($A$1,$A111,1),DATE($A$1,$A111,1)+8-WEEKDAY(DATE($A$1,$A111,1),2))","v":"2020-05-01"},null,null,null,null,{"$f":"IF(COUNTA(A113:D113)>1,\"Menus midi retraite \" &TEXT(A113,\"mmmm\"),\"\")","v":""},{"$f":"IF(F113<>\"\",\"MMR\" & TEXT(COUNTA($A$5:A113)-COUNTBLANK($A$5:A113),\"00\"),\"\")","v":""}]
[{"$f":"A113+IF(WEEKDAY(A113,2)<5,1,3)","v":"2020-05-04"},null,null,null,null,{"$f":"IF(COUNTA(A114:D114)>1,\"Menus midi retraite \" &TEXT(A114,\"mmmm\"),\"\")","v":""},{"$f":"IF(F114<>\"\",\"MMR\" & TEXT(COUNTA($A$5:A114)-COUNTBLANK($A$5:A114),\"00\"),\"\")","v":""}]
[{"$f":"A114+IF(WEEKDAY(A114,2)<5,1,3)","v":"2020-05-05"},null,null,null,null,"",{"$f":"IF(F115<>\"\",\"MMR\" & TEXT(COUNTA($A$5:A115)-COUNTBLANK($A$5:A115),\"00\"),\"\")","v":""}]
["2020-05-06",null,null,null,null,"",{"$f":"IF(F116<>\"\",\"MMR\" & TEXT(COUNTA($A$5:A116)-COUNTBLANK($A$5:A116),\"00\"),\"\")","v":""}]
["2020-05-07",null,null,null,null,"",{"$f":"IF(F117<>\"\",\"MMR\" & TEXT(COUNTA($A$5:A117)-COUNTBLANK($A$5:A117),\"00\"),\"\")","v":""}]
["2020-05-08",null,null,null,null,"",{"$f":"IF(F118<>\"\",\"MMR\" & TEXT(COUNTA($A$5:A118)-COUNTBLANK($A$5:A118),\"00\"),\"\")","v":""}]
["2020-05-11",null,null,null,null,"",{"$f":"IF(F119<>\"\",\"MMR\" & TEXT(COUNTA($A$5:A119)-COUNTBLANK($A$5:A119),\"00\"),\"\")","v":""}]
["2020-05-12",null,null,null,null,"",{"$f":"IF(F120<>\"\",\"MMR\" & TEXT(COUNTA($A$5:A120)-COUNTBLANK($A$5:A120),\"00\"),\"\")","v":""}]
["2020-05-13",null,null,null,null,"",{"$f":"IF(F121<>\"\",\"MMR\" & TEXT(COUNTA($A$5:A121)-COUNTBLANK($A$5:A121),\"00\"),\"\")","v":""}]
["2020-05-14",null,null,null,null,"",{"$f":"IF(F122<>\"\",\"MMR\" & TEXT(COUNTA($A$5:A122)-COUNTBLANK($A$5:A122),\"00\"),\"\")","v":""}]
["2020-05-15",null,null,null,null,"",{"$f":"IF(F123<>\"\",\"MMR\" & TEXT(COUNTA($A$5:A123)-COUNTBLANK($A$5:A123),\"00\"),\"\")","v":""}]
["2020-05-18",null,null,null,null,"",{"$f":"IF(F124<>\"\",\"MMR\" & TEXT(COUNTA($A$5:A124)-COUNTBLANK($A$5:A124),\"00\"),\"\")","v":""}]
["2020-05-19",null,null,null,null,"",{"$f":"IF(F125<>\"\",\"MMR\" & TEXT(COUNTA($A$5:A125)-COUNTBLANK($A$5:A125),\"00\"),\"\")","v":""}]
["2020-05-20",null,null,null,null,"",{"$f":"IF(F126<>\"\",\"MMR\" & TEXT(COUNTA($A$5:A126)-COUNTBLANK($A$5:A126),\"00\"),\"\")","v":""}]
["2020-05-21","Avocat","Rôti d'agneau","Pomme","Jeudi de l'ascension","Menus midi retraite mai",{"$f":"IF(F127<>\"\",\"MMR\" & TEXT(COUNTA($A$5:A127)-COUNTBLANK($A$5:A127),\"00\"),\"\")","v":"MMR102"}]
["2020-05-22",null,null,null,null,"",{"$f":"IF(F128<>\"\",\"MMR\" & TEXT(COUNTA($A$5:A128)-COUNTBLANK($A$5:A128),\"00\"),\"\")","v":""}]
["2020-05-25",null,null,null,null,"",{"$f":"IF(F129<>\"\",\"MMR\" & TEXT(COUNTA($A$5:A129)-COUNTBLANK($A$5:A129),\"00\"),\"\")","v":""}]
["2020-05-26",null,null,null,null,"",{"$f":"IF(F130<>\"\",\"MMR\" & TEXT(COUNTA($A$5:A130)-COUNTBLANK($A$5:A130),\"00\"),\"\")","v":""}]
["2020-05-27",null,null,null,null,"",{"$f":"IF(F131<>\"\",\"MMR\" & TEXT(COUNTA($A$5:A131)-COUNTBLANK($A$5:A131),\"00\"),\"\")","v":""}]
["2020-05-28",null,null,null,null,"",{"$f":"IF(F132<>\"\",\"MMR\" & TEXT(COUNTA($A$5:A132)-COUNTBLANK($A$5:A132),\"00\"),\"\")","v":""}]
[{"$f":"IFERROR(IF(MONTH(A132+IF(WEEKDAY(A132,2)<5,1,3))=MONTH(A131),A132+IF(WEEKDAY(A132,2)<5,1,3),\"\"),\"\")","v":"2020-05-29"},null,null,null,null,"",{"$f":"IF(F133<>\"\",\"MMR\" & TEXT(COUNTA($A$5:A133)-COUNTBLANK($A$5:A133),\"00\"),\"\")","v":""}]
[{"$f":"IFERROR(IF(MONTH(A133+IF(WEEKDAY(A133,2)<5,1,3))=MONTH(A132),A133+IF(WEEKDAY(A133,2)<5,1,3),\"\"),\"\")","v":""},null,null,null,null,"",{"$f":"IF(F134<>\"\",\"MMR\" & TEXT(COUNTA($A$5:A134)-COUNTBLANK($A$5:A134),\"00\"),\"\")","v":""}]
[{"$f":"IFERROR(IF(MONTH(A134+IF(WEEKDAY(A134,2)<5,1,3))=MONTH(A133),A134+IF(WEEKDAY(A134,2)<5,1,3),\"\"),\"\")","v":""},null,null,null,null,"",{"$f":"IF(F135<>\"\",\"MMR\" & TEXT(COUNTA($A$5:A135)-COUNTBLANK($A$5:A135),\"00\"),\"\")","v":""}]
[null,{"$f":"\"Fait à Limeil-Brévannes, le \"& IF(COUNTBLANK(A113:A135)-COUNTBLANK(G113:G135)=0,TEXT(TODAY(),\"jjjj j mmmm aaaa\"),\"\")","v":"Fait à Limeil-Brévannes, le "}]
[]
[{"$f":"A111+1","v":6},{"$f":"\"Menus midi retraite du mois de \"&TEXT(A140,\"mmmm\")&\" \"&$A$1","v":"Menus midi retraite du mois de juin 2020"}]
["Date du menu","Légume","Viande","Dessert","Observation","Nature du menu","Numéro menu"]
[{"$f":"IF(WEEKDAY(DATE($A$1,$A138,1),2)<=5,DATE($A$1,$A138,1),DATE($A$1,$A138,1)+8-WEEKDAY(DATE($A$1,$A138,1),2))","v":"2020-06-01"},null,null,null,null,{"$f":"IF(COUNTA(A140:D140)>1,\"Menus midi retraite \" &TEXT(A140,\"mmmm\"),\"\")","v":""},{"$f":"IF(F140<>\"\",\"MMR\" & TEXT(COUNTA($A$5:A140)-COUNTBLANK($A$5:A140),\"00\"),\"\")","v":""}]
[{"$f":"A140+IF(WEEKDAY(A140,2)<5,1,3)","v":"2020-06-02"},null,null,null,null,{"$f":"IF(COUNTA(A141:D141)>1,\"Menus midi retraite \" &TEXT(A141,\"mmmm\"),\"\")","v":""},{"$f":"IF(F141<>\"\",\"MMR\" & TEXT(COUNTA($A$5:A141)-COUNTBLANK($A$5:A141),\"00\"),\"\")","v":""}]
[{"$f":"A141+IF(WEEKDAY(A141,2)<5,1,3)","v":"2020-06-03"},null,null,null,null,"",{"$f":"IF(F142<>\"\",\"MMR\" & TEXT(COUNTA($A$5:A142)-COUNTBLANK($A$5:A142),\"00\"),\"\")","v":""}]
["2020-06-04",null,null,null,null,"",{"$f":"IF(F143<>\"\",\"MMR\" & TEXT(COUNTA($A$5:A143)-COUNTBLANK($A$5:A143),\"00\"),\"\")","v":""}]
["2020-06-05",null,null,null,null,"",{"$f":"IF(F144<>\"\",\"MMR\" & TEXT(COUNTA($A$5:A144)-COUNTBLANK($A$5:A144),\"00\"),\"\")","v":""}]
["2020-06-08",null,null,null,null,"",{"$f":"IF(F145<>\"\",\"MMR\" & TEXT(COUNTA($A$5:A145)-COUNTBLANK($A$5:A145),\"00\"),\"\")","v":""}]
["2020-06-09",null,null,null,null,"",{"$f":"IF(F146<>\"\",\"MMR\" & TEXT(COUNTA($A$5:A146)-COUNTBLANK($A$5:A146),\"00\"),\"\")","v":""}]
["2020-06-10",null,null,null,null,"",{"$f":"IF(F147<>\"\",\"MMR\" & TEXT(COUNTA($A$5:A147)-COUNTBLANK($A$5:A147),\"00\"),\"\")","v":""}]
["2020-06-11",null,null,null,null,"",{"$f":"IF(F148<>\"\",\"MMR\" & TEXT(COUNTA($A$5:A148)-COUNTBLANK($A$5:A148),\"00\"),\"\")","v":""}]
["2020-06-12",null,null,null,null,"",{"$f":"IF(F149<>\"\",\"MMR\" & TEXT(COUNTA($A$5:A149)-COUNTBLANK($A$5:A149),\"00\"),\"\")","v":""}]
["2020-06-15",null,null,null,null,"",{"$f":"IF(F150<>\"\",\"MMR\" & TEXT(COUNTA($A$5:A150)-COUNTBLANK($A$5:A150),\"00\"),\"\")","v":""}]
["2020-06-16",null,null,null,null,"",{"$f":"IF(F151<>\"\",\"MMR\" & TEXT(COUNTA($A$5:A151)-COUNTBLANK($A$5:A151),\"00\"),\"\")","v":""}]
["2020-06-17",null,null,null,null,"",{"$f":"IF(F152<>\"\",\"MMR\" & TEXT(COUNTA($A$5:A152)-COUNTBLANK($A$5:A152),\"00\"),\"\")","v":""}]
["2020-06-18",null,null,null,null,"",{"$f":"IF(F153<>\"\",\"MMR\" & TEXT(COUNTA($A$5:A153)-COUNTBLANK($A$5:A153),\"00\"),\"\")","v":""}]
["2020-06-19",null,null,null,null,"",{"$f":"IF(F154<>\"\",\"MMR\" & TEXT(COUNTA($A$5:A154)-COUNTBLANK($A$5:A154),\"00\"),\"\")","v":""}]
["2020-06-22",null,null,null,null,"",{"$f":"IF(F155<>\"\",\"MMR\" & TEXT(COUNTA($A$5:A155)-COUNTBLANK($A$5:A155),\"00\"),\"\")","v":""}]
["2020-06-23",null,null,null,null,"",{"$f":"IF(F156<>\"\",\"MMR\" & TEXT(COUNTA($A$5:A156)-COUNTBLANK($A$5:A156),\"00\"),\"\")","v":""}]
["2020-06-24",null,null,null,null,"",{"$f":"IF(F157<>\"\",\"MMR\" & TEXT(COUNTA($A$5:A157)-COUNTBLANK($A$5:A157),\"00\"),\"\")","v":""}]
["2020-06-25",null,null,null,null,"",{"$f":"IF(F158<>\"\",\"MMR\" & TEXT(COUNTA($A$5:A158)-COUNTBLANK($A$5:A158),\"00\"),\"\")","v":""}]
["2020-06-26","Asperges","Rôti d'agneau","Pomme",null,"Menus midi retraite juin",{"$f":"IF(F159<>\"\",\"MMR\" & TEXT(COUNTA($A$5:A159)-COUNTBLANK($A$5:A159),\"00\"),\"\")","v":"MMR128"}]
[{"$f":"IFERROR(IF(MONTH(A159+IF(WEEKDAY(A159,2)<5,1,3))=MONTH(A158),A159+IF(WEEKDAY(A159,2)<5,1,3),\"\"),\"\")","v":"2020-06-29"},null,null,null,null,"",{"$f":"IF(F160<>\"\",\"MMR\" & TEXT(COUNTA($A$5:A160)-COUNTBLANK($A$5:A160),\"00\"),\"\")","v":""}]
[{"$f":"IFERROR(IF(MONTH(A160+IF(WEEKDAY(A160,2)<5,1,3))=MONTH(A159),A160+IF(WEEKDAY(A160,2)<5,1,3),\"\"),\"\")","v":"2020-06-30"},null,null,null,null,"",{"$f":"IF(F161<>\"\",\"MMR\" & TEXT(COUNTA($A$5:A161)-COUNTBLANK($A$5:A161),\"00\"),\"\")","v":""}]
[{"$f":"IFERROR(IF(MONTH(A161+IF(WEEKDAY(A161,2)<5,1,3))=MONTH(A160),A161+IF(WEEKDAY(A161,2)<5,1,3),\"\"),\"\")","v":""},null,null,null,null,"",{"$f":"IF(F162<>\"\",\"MMR\" & TEXT(COUNTA($A$5:A162)-COUNTBLANK($A$5:A162),\"00\"),\"\")","v":""}]
[null,{"$f":"\"Fait à Limeil-Brévannes, le \"& IF(COUNTBLANK(A140:A162)-COUNTBLANK(G140:G162)=0,TEXT(TODAY(),\"jjjj j mmmm aaaa\"),\"\")","v":"Fait à Limeil-Brévannes, le "}]
[]
[{"$f":"A138+1","v":7},{"$f":"\"Menus midi retraite du mois de \"&TEXT(A167,\"mmmm\")&\" \"&$A$1","v":"Menus midi retraite du mois de juillet 2020"}]
["Date du menu","Légume","Viande","Dessert","Observation","Nature du menu","Numéro menu"]
[{"$f":"IF(WEEKDAY(DATE($A$1,$A165,1),2)<=5,DATE($A$1,$A165,1),DATE($A$1,$A165,1)+8-WEEKDAY(DATE($A$1,$A165,1),2))","v":"2020-07-01"},null,null,null,null,{"$f":"IF(COUNTA(A167:D167)>1,\"Menus midi retraite \" &TEXT(A167,\"mmmm\"),\"\")","v":""},{"$f":"IF(F167<>\"\",\"MMR\" & TEXT(COUNTA($A$5:A167)-COUNTBLANK($A$5:A167),\"00\"),\"\")","v":""}]
[{"$f":"A167+IF(WEEKDAY(A167,2)<5,1,3)","v":"2020-07-02"},"Asperges","Rôti d'agneau","Pomme",null,{"$f":"IF(COUNTA(A168:D168)>1,\"Menus midi retraite \" &TEXT(A168,\"mmmm\"),\"\")","v":"Menus midi retraite juillet"},{"$f":"IF(F168<>\"\",\"MMR\" & TEXT(COUNTA($A$5:A168)-COUNTBLANK($A$5:A168),\"00\"),\"\")","v":"MMR132"}]
[{"$f":"A168+IF(WEEKDAY(A168,2)<5,1,3)","v":"2020-07-03"},null,null,null,null,"",{"$f":"IF(F169<>\"\",\"MMR\" & TEXT(COUNTA($A$5:A169)-COUNTBLANK($A$5:A169),\"00\"),\"\")","v":""}]
["2020-07-06",null,null,null,null,"",{"$f":"IF(F170<>\"\",\"MMR\" & TEXT(COUNTA($A$5:A170)-COUNTBLANK($A$5:A170),\"00\"),\"\")","v":""}]
["2020-07-07",null,null,null,null,"",{"$f":"IF(F171<>\"\",\"MMR\" & TEXT(COUNTA($A$5:A171)-COUNTBLANK($A$5:A171),\"00\"),\"\")","v":""}]
["2020-07-08",null,null,null,null,"",{"$f":"IF(F172<>\"\",\"MMR\" & TEXT(COUNTA($A$5:A172)-COUNTBLANK($A$5:A172),\"00\"),\"\")","v":""}]
["2020-07-09",null,null,null,null,"",{"$f":"IF(F173<>\"\",\"MMR\" & TEXT(COUNTA($A$5:A173)-COUNTBLANK($A$5:A173),\"00\"),\"\")","v":""}]
["2020-07-10",null,null,null,null,"",{"$f":"IF(F174<>\"\",\"MMR\" & TEXT(COUNTA($A$5:A174)-COUNTBLANK($A$5:A174),\"00\"),\"\")","v":""}]
["2020-07-13",null,null,null,null,"",{"$f":"IF(F175<>\"\",\"MMR\" & TEXT(COUNTA($A$5:A175)-COUNTBLANK($A$5:A175),\"00\"),\"\")","v":""}]
["2020-07-14","Asperges","Rôti d'agneau","Pomme","Fête nationale","Menus midi retraite juillet",{"$f":"IF(F176<>\"\",\"MMR\" & TEXT(COUNTA($A$5:A176)-COUNTBLANK($A$5:A176),\"00\"),\"\")","v":"MMR140"}]
["2020-07-15",null,null,null,null,"",{"$f":"IF(F177<>\"\",\"MMR\" & TEXT(COUNTA($A$5:A177)-COUNTBLANK($A$5:A177),\"00\"),\"\")","v":""}]
["2020-07-16",null,null,null,null,"",{"$f":"IF(F178<>\"\",\"MMR\" & TEXT(COUNTA($A$5:A178)-COUNTBLANK($A$5:A178),\"00\"),\"\")","v":""}]
["2020-07-17",null,null,null,null,"",{"$f":"IF(F179<>\"\",\"MMR\" & TEXT(COUNTA($A$5:A179)-COUNTBLANK($A$5:A179),\"00\"),\"\")","v":""}]
["2020-07-20",null,null,null,null,"",{"$f":"IF(F180<>\"\",\"MMR\" & TEXT(COUNTA($A$5:A180)-COUNTBLANK($A$5:A180),\"00\"),\"\")","v":""}]
["2020-07-21",null,null,null,null,"",{"$f":"IF(F181<>\"\",\"MMR\" & TEXT(COUNTA($A$5:A181)-COUNTBLANK($A$5:A181),\"00\"),\"\")","v":""}]
["2020-07-22",null,null,null,null,"",{"$f":"IF(F182<>\"\",\"MMR\" & TEXT(COUNTA($A$5:A182)-COUNTBLANK($A$5:A182),\"00\"),\"\")","v":""}]
["2020-07-23",null,null,null,null,"",{"$f":"IF(F183<>\"\",\"MMR\" & TEXT(COUNTA($A$5:A183)-COUNTBLANK($A$5:A183),\"00\"),\"\")","v":""}]
["2020-07-24",null,null,null,null,"",{"$f":"IF(F184<>\"\",\"MMR\" & TEXT(COUNTA($A$5:A184)-COUNTBLANK($A$5:A184),\"00\"),\"\")","v":""}]
["2020-07-27",null,null,null,null,"",{"$f":"IF(F185<>\"\",\"MMR\" & TEXT(COUNTA($A$5:A185)-COUNTBLANK($A$5:A185),\"00\"),\"\")","v":""}]
["2020-07-28",null,null,null,null,"",{"$f":"IF(F186<>\"\",\"MMR\" & TEXT(COUNTA($A$5:A186)-COUNTBLANK($A$5:A186),\"00\"),\"\")","v":""}]
[{"$f":"IFERROR(IF(MONTH(A186+IF(WEEKDAY(A186,2)<5,1,3))=MONTH(A185),A186+IF(WEEKDAY(A186,2)<5,1,3),\"\"),\"\")","v":"2020-07-29"},null,null,null,null,"",{"$f":"IF(F187<>\"\",\"MMR\" & TEXT(COUNTA($A$5:A187)-COUNTBLANK($A$5:A187),\"00\"),\"\")","v":""}]
[{"$f":"IFERROR(IF(MONTH(A187+IF(WEEKDAY(A187,2)<5,1,3))=MONTH(A186),A187+IF(WEEKDAY(A187,2)<5,1,3),\"\"),\"\")","v":"2020-07-30"},null,null,null,null,"",{"$f":"IF(F188<>\"\",\"MMR\" & TEXT(COUNTA($A$5:A188)-COUNTBLANK($A$5:A188),\"00\"),\"\")","v":""}]
[{"$f":"IFERROR(IF(MONTH(A188+IF(WEEKDAY(A188,2)<5,1,3))=MONTH(A187),A188+IF(WEEKDAY(A188,2)<5,1,3),\"\"),\"\")","v":"2020-07-31"},null,null,null,null,"",{"$f":"IF(F189<>\"\",\"MMR\" & TEXT(COUNTA($A$5:A189)-COUNTBLANK($A$5:A189),\"00\"),\"\")","v":""}]
[null,{"$f":"\"Fait à Limeil-Brévannes, le \"& IF(COUNTBLANK(A167:A189)-COUNTBLANK(G167:G189)=0,TEXT(TODAY(),\"jjjj j mmmm aaaa\"),\"\")","v":"Fait à Limeil-Brévannes, le "}]
[]
[{"$f":"A165+1","v":8},{"$f":"\"Menus midi retraite du mois de \"&TEXT(A194,\"mmmm\")&\" \"&$A$1","v":"Menus midi retraite du mois de août 2020"}]
["Date du menu",null,null,null,null,"Nature du menu","Numéro menu"]
[{"$f":"IF(WEEKDAY(DATE($A$1,$A192,1),2)<=5,DATE($A$1,$A192,1),DATE($A$1,$A192,1)+8-WEEKDAY(DATE($A$1,$A192,1),2))","v":"2020-08-03"},null,null,null,null,{"$f":"IF(COUNTA(A194:D194)>1,\"Menus midi retraite \" &TEXT(A194,\"mmmm\"),\"\")","v":""},{"$f":"IF(F194<>\"\",\"MMR\" & TEXT(COUNTA($A$5:A194)-COUNTBLANK($A$5:A194),\"00\"),\"\")","v":""}]
[{"$f":"A194+IF(WEEKDAY(A194,2)<5,1,3)","v":"2020-08-04"},null,null,null,null,{"$f":"IF(COUNTA(A195:D195)>1,\"Menus midi retraite \" &TEXT(A195,\"mmmm\"),\"\")","v":""},{"$f":"IF(F195<>\"\",\"MMR\" & TEXT(COUNTA($A$5:A195)-COUNTBLANK($A$5:A195),\"00\"),\"\")","v":""}]
[{"$f":"A195+IF(WEEKDAY(A195,2)<5,1,3)","v":"2020-08-05"},null,null,null,null,"",{"$f":"IF(F196<>\"\",\"MMR\" & TEXT(COUNTA($A$5:A196)-COUNTBLANK($A$5:A196),\"00\"),\"\")","v":""}]
["2020-08-06",null,null,null,null,"",{"$f":"IF(F197<>\"\",\"MMR\" & TEXT(COUNTA($A$5:A197)-COUNTBLANK($A$5:A197),\"00\"),\"\")","v":""}]
["2020-08-07",null,null,null,null,"",{"$f":"IF(F198<>\"\",\"MMR\" & TEXT(COUNTA($A$5:A198)-COUNTBLANK($A$5:A198),\"00\"),\"\")","v":""}]
["2020-08-10",null,null,null,null,"",{"$f":"IF(F199<>\"\",\"MMR\" & TEXT(COUNTA($A$5:A199)-COUNTBLANK($A$5:A199),\"00\"),\"\")","v":""}]
["2020-08-11",null,null,null,null,"",{"$f":"IF(F200<>\"\",\"MMR\" & TEXT(COUNTA($A$5:A200)-COUNTBLANK($A$5:A200),\"00\"),\"\")","v":""}]
["2020-08-12",null,null,null,null,"",{"$f":"IF(F201<>\"\",\"MMR\" & TEXT(COUNTA($A$5:A201)-COUNTBLANK($A$5:A201),\"00\"),\"\")","v":""}]
["2020-08-13",null,null,null,null,"",{"$f":"IF(F202<>\"\",\"MMR\" & TEXT(COUNTA($A$5:A202)-COUNTBLANK($A$5:A202),\"00\"),\"\")","v":""}]
["2020-08-14",null,null,null,null,"",{"$f":"IF(F203<>\"\",\"MMR\" & TEXT(COUNTA($A$5:A203)-COUNTBLANK($A$5:A203),\"00\"),\"\")","v":""}]
["2020-08-17",null,null,null,null,"",{"$f":"IF(F204<>\"\",\"MMR\" & TEXT(COUNTA($A$5:A204)-COUNTBLANK($A$5:A204),\"00\"),\"\")","v":""}]
["2020-08-18",null,null,null,null,"",{"$f":"IF(F205<>\"\",\"MMR\" & TEXT(COUNTA($A$5:A205)-COUNTBLANK($A$5:A205),\"00\"),\"\")","v":""}]
["2020-08-19",null,null,null,null,"",{"$f":"IF(F206<>\"\",\"MMR\" & TEXT(COUNTA($A$5:A206)-COUNTBLANK($A$5:A206),\"00\"),\"\")","v":""}]
["2020-08-20",null,null,null,null,"",{"$f":"IF(F207<>\"\",\"MMR\" & TEXT(COUNTA($A$5:A207)-COUNTBLANK($A$5:A207),\"00\"),\"\")","v":""}]
["2020-08-21",null,null,null,null,"",{"$f":"IF(F208<>\"\",\"MMR\" & TEXT(COUNTA($A$5:A208)-COUNTBLANK($A$5:A208),\"00\"),\"\")","v":""}]
["2020-08-24",null,null,null,null,"",{"$f":"IF(F209<>\"\",\"MMR\" & TEXT(COUNTA($A$5:A209)-COUNTBLANK($A$5:A209),\"00\"),\"\")","v":""}]
["2020-08-25",null,null,null,null,"",{"$f":"IF(F210<>\"\",\"MMR\" & TEXT(COUNTA($A$5:A210)-COUNTBLANK($A$5:A210),\"00\"),\"\")","v":""}]
["2020-08-26",null,null,null,null,"",{"$f":"IF(F211<>\"\",\"MMR\" & TEXT(COUNTA($A$5:A211)-COUNTBLANK($A$5:A211),\"00\"),\"\")","v":""}]
["2020-08-27",null,null,null,null,"",{"$f":"IF(F212<>\"\",\"MMR\" & TEXT(COUNTA($A$5:A212)-COUNTBLANK($A$5:A212),\"00\"),\"\")","v":""}]
["2020-08-28",null,null,null,null,"",{"$f":"IF(F213<>\"\",\"MMR\" & TEXT(COUNTA($A$5:A213)-COUNTBLANK($A$5:A213),\"00\"),\"\")","v":""}]
[{"$f":"IFERROR(IF(MONTH(A213+IF(WEEKDAY(A213,2)<5,1,3))=MONTH(A212),A213+IF(WEEKDAY(A213,2)<5,1,3),\"\"),\"\")","v":"2020-08-31"},null,null,null,null,"",{"$f":"IF(F214<>\"\",\"MMR\" & TEXT(COUNTA($A$5:A214)-COUNTBLANK($A$5:A214),\"00\"),\"\")","v":""}]
[{"$f":"IFERROR(IF(MONTH(A214+IF(WEEKDAY(A214,2)<5,1,3))=MONTH(A213),A214+IF(WEEKDAY(A214,2)<5,1,3),\"\"),\"\")","v":""},null,null,null,null,"",{"$f":"IF(F215<>\"\",\"MMR\" & TEXT(COUNTA($A$5:A215)-COUNTBLANK($A$5:A215),\"00\"),\"\")","v":""}]
[{"$f":"IFERROR(IF(MONTH(A215+IF(WEEKDAY(A215,2)<5,1,3))=MONTH(A214),A215+IF(WEEKDAY(A215,2)<5,1,3),\"\"),\"\")","v":""},null,null,null,null,"",{"$f":"IF(F216<>\"\",\"MMR\" & TEXT(COUNTA($A$5:A216)-COUNTBLANK($A$5:A216),\"00\"),\"\")","v":""}]
[null,{"$f":"\"Fait à Limeil-Brévannes, le \"& IF(COUNTBLANK(A194:A216)-COUNTBLANK(G194:G216)=0,TEXT(TODAY(),\"jjjj j mmmm aaaa\"),\"\")","v":"Fait à Limeil-Brévannes, le "}]
[]
[{"$f":"A192+1","v":9},{"$f":"\"Menus midi retraite du mois de \"&TEXT(A221,\"mmmm\")&\" \"&$A$1","v":"Menus midi retraite du mois de septembre 2020"}]
["Date du menu","Légume","Viande","Dessert","Observation","Nature du menu","Numéro menu"]
[{"$f":"IF(WEEKDAY(DATE($A$1,$A219,1),2)<=5,DATE($A$1,$A219,1),DATE($A$1,$A219,1)+8-WEEKDAY(DATE($A$1,$A219,1),2))","v":"2020-09-01"},null,null,null,null,{"$f":"IF(COUNTA(A221:D221)>1,\"Menus midi retraite \" &TEXT(A221,\"mmmm\"),\"\")","v":""},{"$f":"IF(F221<>\"\",\"MMR\" & TEXT(COUNTA($A$5:A221)-COUNTBLANK($A$5:A221),\"00\"),\"\")","v":""}]
[{"$f":"A221+IF(WEEKDAY(A221,2)<5,1,3)","v":"2020-09-02"},null,null,null,null,{"$f":"IF(COUNTA(A222:D222)>1,\"Menus midi retraite \" &TEXT(A222,\"mmmm\"),\"\")","v":""},{"$f":"IF(F222<>\"\",\"MMR\" & TEXT(COUNTA($A$5:A222)-COUNTBLANK($A$5:A222),\"00\"),\"\")","v":""}]
[{"$f":"A222+IF(WEEKDAY(A222,2)<5,1,3)","v":"2020-09-03"},null,null,null,null,"",{"$f":"IF(F223<>\"\",\"MMR\" & TEXT(COUNTA($A$5:A223)-COUNTBLANK($A$5:A223),\"00\"),\"\")","v":""}]
["2020-09-04",null,null,null,null,"",{"$f":"IF(F224<>\"\",\"MMR\" & TEXT(COUNTA($A$5:A224)-COUNTBLANK($A$5:A224),\"00\"),\"\")","v":""}]
["2020-09-07",null,null,null,null,"",{"$f":"IF(F225<>\"\",\"MMR\" & TEXT(COUNTA($A$5:A225)-COUNTBLANK($A$5:A225),\"00\"),\"\")","v":""}]
["2020-09-08",null,null,null,null,"",{"$f":"IF(F226<>\"\",\"MMR\" & TEXT(COUNTA($A$5:A226)-COUNTBLANK($A$5:A226),\"00\"),\"\")","v":""}]
["2020-09-09",null,null,null,null,"",{"$f":"IF(F227<>\"\",\"MMR\" & TEXT(COUNTA($A$5:A227)-COUNTBLANK($A$5:A227),\"00\"),\"\")","v":""}]
["2020-09-10",null,null,null,null,"",{"$f":"IF(F228<>\"\",\"MMR\" & TEXT(COUNTA($A$5:A228)-COUNTBLANK($A$5:A228),\"00\"),\"\")","v":""}]
["2020-09-11",null,null,null,null,"",{"$f":"IF(F229<>\"\",\"MMR\" & TEXT(COUNTA($A$5:A229)-COUNTBLANK($A$5:A229),\"00\"),\"\")","v":""}]
["2020-09-14",null,null,null,null,"",{"$f":"IF(F230<>\"\",\"MMR\" & TEXT(COUNTA($A$5:A230)-COUNTBLANK($A$5:A230),\"00\"),\"\")","v":""}]
["2020-09-15",null,null,null,null,"",{"$f":"IF(F231<>\"\",\"MMR\" & TEXT(COUNTA($A$5:A231)-COUNTBLANK($A$5:A231),\"00\"),\"\")","v":""}]
["2020-09-16",null,null,null,null,"",{"$f":"IF(F232<>\"\",\"MMR\" & TEXT(COUNTA($A$5:A232)-COUNTBLANK($A$5:A232),\"00\"),\"\")","v":""}]
["2020-09-17",null,null,null,null,"",{"$f":"IF(F233<>\"\",\"MMR\" & TEXT(COUNTA($A$5:A233)-COUNTBLANK($A$5:A233),\"00\"),\"\")","v":""}]
["2020-09-18",null,null,null,null,"",{"$f":"IF(F234<>\"\",\"MMR\" & TEXT(COUNTA($A$5:A234)-COUNTBLANK($A$5:A234),\"00\"),\"\")","v":""}]
["2020-09-21",null,null,null,null,"",{"$f":"IF(F235<>\"\",\"MMR\" & TEXT(COUNTA($A$5:A235)-COUNTBLANK($A$5:A235),\"00\"),\"\")","v":""}]
["2020-09-22",null,null,null,null,"",{"$f":"IF(F236<>\"\",\"MMR\" & TEXT(COUNTA($A$5:A236)-COUNTBLANK($A$5:A236),\"00\"),\"\")","v":""}]
["2020-09-23",null,null,null,null,"",{"$f":"IF(F237<>\"\",\"MMR\" & TEXT(COUNTA($A$5:A237)-COUNTBLANK($A$5:A237),\"00\"),\"\")","v":""}]
["2020-09-24",null,null,null,null,"",{"$f":"IF(F238<>\"\",\"MMR\" & TEXT(COUNTA($A$5:A238)-COUNTBLANK($A$5:A238),\"00\"),\"\")","v":""}]
["2020-09-25",null,null,null,null,"",{"$f":"IF(F239<>\"\",\"MMR\" & TEXT(COUNTA($A$5:A239)-COUNTBLANK($A$5:A239),\"00\"),\"\")","v":""}]
["2020-09-28",null,null,null,null,"",{"$f":"IF(F240<>\"\",\"MMR\" & TEXT(COUNTA($A$5:A240)-COUNTBLANK($A$5:A240),\"00\"),\"\")","v":""}]
[{"$f":"IFERROR(IF(MONTH(A240+IF(WEEKDAY(A240,2)<5,1,3))=MONTH(A239),A240+IF(WEEKDAY(A240,2)<5,1,3),\"\"),\"\")","v":"2020-09-29"},null,null,null,null,"",{"$f":"IF(F241<>\"\",\"MMR\" & TEXT(COUNTA($A$5:A241)-COUNTBLANK($A$5:A241),\"00\"),\"\")","v":""}]
[{"$f":"IFERROR(IF(MONTH(A241+IF(WEEKDAY(A241,2)<5,1,3))=MONTH(A240),A241+IF(WEEKDAY(A241,2)<5,1,3),\"\"),\"\")","v":"2020-09-30"},null,null,null,null,"",{"$f":"IF(F242<>\"\",\"MMR\" & TEXT(COUNTA($A$5:A242)-COUNTBLANK($A$5:A242),\"00\"),\"\")","v":""}]
[{"$f":"IFERROR(IF(MONTH(A242+IF(WEEKDAY(A242,2)<5,1,3))=MONTH(A241),A242+IF(WEEKDAY(A242,2)<5,1,3),\"\"),\"\")","v":""},null,null,null,null,"",{"$f":"IF(F243<>\"\",\"MMR\" & TEXT(COUNTA($A$5:A243)-COUNTBLANK($A$5:A243),\"00\"),\"\")","v":""}]
[null,{"$f":"\"Fait à Limeil-Brévannes, le \"& IF(COUNTBLANK(A221:A243)-COUNTBLANK(G221:G243)=0,TEXT(TODAY(),\"jjjj j mmmm aaaa\"),\"\")","v":"Fait à Limeil-Brévannes, le "}]
[]
[{"$f":"A219+1","v":10},{"$f":"\"Menus midi retraite du mois de \"&TEXT(A248,\"mmmm\")&\" \"&$A$1","v":"Menus midi retraite du mois de octobre 2020"}]
["Date du menu",null,null,null,null,"Nature du menu","Numéro menu"]
[{"$f":"IF(WEEKDAY(DATE($A$1,$A246,1),2)<=5,DATE($A$1,$A246,1),DATE($A$1,$A246,1)+8-WEEKDAY(DATE($A$1,$A246,1),2))","v":"2020-10-01"},null,null,null,null,{"$f":"IF(COUNTA(A248:D248)>1,\"Menus midi retraite \" &TEXT(A248,\"mmmm\"),\"\")","v":""},{"$f":"IF(F248<>\"\",\"MMR\" & TEXT(COUNTA($A$5:A248)-COUNTBLANK($A$5:A248),\"00\"),\"\")","v":""}]
[{"$f":"A248+IF(WEEKDAY(A248,2)<5,1,3)","v":"2020-10-02"},null,null,null,null,{"$f":"IF(COUNTA(A249:D249)>1,\"Menus midi retraite \" &TEXT(A249,\"mmmm\"),\"\")","v":""},{"$f":"IF(F249<>\"\",\"MMR\" & TEXT(COUNTA($A$5:A249)-COUNTBLANK($A$5:A249),\"00\"),\"\")","v":""}]
[{"$f":"A249+IF(WEEKDAY(A249,2)<5,1,3)","v":"2020-10-05"},null,null,null,null,"",{"$f":"IF(F250<>\"\",\"MMR\" & TEXT(COUNTA($A$5:A250)-COUNTBLANK($A$5:A250),\"00\"),\"\")","v":""}]
["2020-10-06",null,null,null,null,"",{"$f":"IF(F251<>\"\",\"MMR\" & TEXT(COUNTA($A$5:A251)-COUNTBLANK($A$5:A251),\"00\"),\"\")","v":""}]
["2020-10-07",null,null,null,null,"",{"$f":"IF(F252<>\"\",\"MMR\" & TEXT(COUNTA($A$5:A252)-COUNTBLANK($A$5:A252),\"00\"),\"\")","v":""}]
["2020-10-08",null,null,null,null,"",{"$f":"IF(F253<>\"\",\"MMR\" & TEXT(COUNTA($A$5:A253)-COUNTBLANK($A$5:A253),\"00\"),\"\")","v":""}]
["2020-10-09",null,null,null,null,"",{"$f":"IF(F254<>\"\",\"MMR\" & TEXT(COUNTA($A$5:A254)-COUNTBLANK($A$5:A254),\"00\"),\"\")","v":""}]
["2020-10-12",null,null,null,null,"",{"$f":"IF(F255<>\"\",\"MMR\" & TEXT(COUNTA($A$5:A255)-COUNTBLANK($A$5:A255),\"00\"),\"\")","v":""}]
["2020-10-13",null,null,null,null,"",{"$f":"IF(F256<>\"\",\"MMR\" & TEXT(COUNTA($A$5:A256)-COUNTBLANK($A$5:A256),\"00\"),\"\")","v":""}]
["2020-10-14",null,null,null,null,"",{"$f":"IF(F257<>\"\",\"MMR\" & TEXT(COUNTA($A$5:A257)-COUNTBLANK($A$5:A257),\"00\"),\"\")","v":""}]
["2020-10-15",null,null,null,null,"",{"$f":"IF(F258<>\"\",\"MMR\" & TEXT(COUNTA($A$5:A258)-COUNTBLANK($A$5:A258),\"00\"),\"\")","v":""}]
["2020-10-16",null,null,null,null,"",{"$f":"IF(F259<>\"\",\"MMR\" & TEXT(COUNTA($A$5:A259)-COUNTBLANK($A$5:A259),\"00\"),\"\")","v":""}]
["2020-10-19",null,null,null,null,"",{"$f":"IF(F260<>\"\",\"MMR\" & TEXT(COUNTA($A$5:A260)-COUNTBLANK($A$5:A260),\"00\"),\"\")","v":""}]
["2020-10-20",null,null,null,null,"",{"$f":"IF(F261<>\"\",\"MMR\" & TEXT(COUNTA($A$5:A261)-COUNTBLANK($A$5:A261),\"00\"),\"\")","v":""}]
["2020-10-21",null,null,null,null,"",{"$f":"IF(F262<>\"\",\"MMR\" & TEXT(COUNTA($A$5:A262)-COUNTBLANK($A$5:A262),\"00\"),\"\")","v":""}]
["2020-10-22",null,null,null,null,"",{"$f":"IF(F263<>\"\",\"MMR\" & TEXT(COUNTA($A$5:A263)-COUNTBLANK($A$5:A263),\"00\"),\"\")","v":""}]
["2020-10-23",null,null,null,null,"",{"$f":"IF(F264<>\"\",\"MMR\" & TEXT(COUNTA($A$5:A264)-COUNTBLANK($A$5:A264),\"00\"),\"\")","v":""}]
["2020-10-26",null,null,null,null,"",{"$f":"IF(F265<>\"\",\"MMR\" & TEXT(COUNTA($A$5:A265)-COUNTBLANK($A$5:A265),\"00\"),\"\")","v":""}]
["2020-10-27",null,null,null,null,"",{"$f":"IF(F266<>\"\",\"MMR\" & TEXT(COUNTA($A$5:A266)-COUNTBLANK($A$5:A266),\"00\"),\"\")","v":""}]
["2020-10-28",null,null,null,null,"",{"$f":"IF(F267<>\"\",\"MMR\" & TEXT(COUNTA($A$5:A267)-COUNTBLANK($A$5:A267),\"00\"),\"\")","v":""}]
[{"$f":"IFERROR(IF(MONTH(A267+IF(WEEKDAY(A267,2)<5,1,3))=MONTH(A266),A267+IF(WEEKDAY(A267,2)<5,1,3),\"\"),\"\")","v":"2020-10-29"},null,null,null,null,"",{"$f":"IF(F268<>\"\",\"MMR\" & TEXT(COUNTA($A$5:A268)-COUNTBLANK($A$5:A268),\"00\"),\"\")","v":""}]
[{"$f":"IFERROR(IF(MONTH(A268+IF(WEEKDAY(A268,2)<5,1,3))=MONTH(A267),A268+IF(WEEKDAY(A268,2)<5,1,3),\"\"),\"\")","v":"2020-10-30"},null,null,null,null,"",{"$f":"IF(F269<>\"\",\"MMR\" & TEXT(COUNTA($A$5:A269)-COUNTBLANK($A$5:A269),\"00\"),\"\")","v":""}]
[{"$f":"IFERROR(IF(MONTH(A269+IF(WEEKDAY(A269,2)<5,1,3))=MONTH(A268),A269+IF(WEEKDAY(A269,2)<5,1,3),\"\"),\"\")","v":""},null,null,null,null,"",{"$f":"IF(F270<>\"\",\"MMR\" & TEXT(COUNTA($A$5:A270)-COUNTBLANK($A$5:A270),\"00\"),\"\")","v":""}]
[null,{"$f":"\"Fait à Limeil-Brévannes, le \"& IF(COUNTBLANK(A248:A270)-COUNTBLANK(G248:G270)=0,TEXT(TODAY(),\"jjjj j mmmm aaaa\"),\"\")","v":"Fait à Limeil-Brévannes, le "}]
[]
[{"$f":"A246+1","v":11},{"$f":"\"Menus midi retraite du mois de \"&TEXT(A275,\"mmmm\")&\" \"&$A$1","v":"Menus midi retraite du mois de novembre 2020"}]
["Date du menu","Légume","Viande","Dessert","Observation","Nature du menu","Numéro menu"]
[{"$f":"IF(WEEKDAY(DATE($A$1,$A273,1),2)<=5,DATE($A$1,$A273,1),DATE($A$1,$A273,1)+8-WEEKDAY(DATE($A$1,$A273,1),2))","v":"2020-11-02"},null,null,null,null,{"$f":"IF(COUNTA(A275:D275)>1,\"Menus midi retraite \" &TEXT(A275,\"mmmm\"),\"\")","v":""},{"$f":"IF(F275<>\"\",\"MMR\" & TEXT(COUNTA($A$5:A275)-COUNTBLANK($A$5:A275),\"00\"),\"\")","v":""}]
[{"$f":"A275+IF(WEEKDAY(A275,2)<5,1,3)","v":"2020-11-03"},null,null,null,null,{"$f":"IF(COUNTA(A276:D276)>1,\"Menus midi retraite \" &TEXT(A276,\"mmmm\"),\"\")","v":""},{"$f":"IF(F276<>\"\",\"MMR\" & TEXT(COUNTA($A$5:A276)-COUNTBLANK($A$5:A276),\"00\"),\"\")","v":""}]
[{"$f":"A276+IF(WEEKDAY(A276,2)<5,1,3)","v":"2020-11-04"},null,null,null,null,"",{"$f":"IF(F277<>\"\",\"MMR\" & TEXT(COUNTA($A$5:A277)-COUNTBLANK($A$5:A277),\"00\"),\"\")","v":""}]
["2020-11-05",null,null,null,null,"",{"$f":"IF(F278<>\"\",\"MMR\" & TEXT(COUNTA($A$5:A278)-COUNTBLANK($A$5:A278),\"00\"),\"\")","v":""}]
["2020-11-06",null,null,null,null,"",{"$f":"IF(F279<>\"\",\"MMR\" & TEXT(COUNTA($A$5:A279)-COUNTBLANK($A$5:A279),\"00\"),\"\")","v":""}]
["2020-11-09",null,null,null,null,"",{"$f":"IF(F280<>\"\",\"MMR\" & TEXT(COUNTA($A$5:A280)-COUNTBLANK($A$5:A280),\"00\"),\"\")","v":""}]
["2020-11-10",null,null,null,null,"",{"$f":"IF(F281<>\"\",\"MMR\" & TEXT(COUNTA($A$5:A281)-COUNTBLANK($A$5:A281),\"00\"),\"\")","v":""}]
["2020-11-11",null,null,null,null,"",{"$f":"IF(F282<>\"\",\"MMR\" & TEXT(COUNTA($A$5:A282)-COUNTBLANK($A$5:A282),\"00\"),\"\")","v":""}]
["2020-11-12",null,null,null,null,"",{"$f":"IF(F283<>\"\",\"MMR\" & TEXT(COUNTA($A$5:A283)-COUNTBLANK($A$5:A283),\"00\"),\"\")","v":""}]
["2020-11-13",null,null,null,null,"",{"$f":"IF(F284<>\"\",\"MMR\" & TEXT(COUNTA($A$5:A284)-COUNTBLANK($A$5:A284),\"00\"),\"\")","v":""}]
["2020-11-16",null,null,null,null,"",{"$f":"IF(F285<>\"\",\"MMR\" & TEXT(COUNTA($A$5:A285)-COUNTBLANK($A$5:A285),\"00\"),\"\")","v":""}]
["2020-11-17",null,null,null,null,"",{"$f":"IF(F286<>\"\",\"MMR\" & TEXT(COUNTA($A$5:A286)-COUNTBLANK($A$5:A286),\"00\"),\"\")","v":""}]
["2020-11-18",null,null,null,null,"",{"$f":"IF(F287<>\"\",\"MMR\" & TEXT(COUNTA($A$5:A287)-COUNTBLANK($A$5:A287),\"00\"),\"\")","v":""}]
["2020-11-19",null,null,null,null,"",{"$f":"IF(F288<>\"\",\"MMR\" & TEXT(COUNTA($A$5:A288)-COUNTBLANK($A$5:A288),\"00\"),\"\")","v":""}]
["2020-11-20",null,null,null,null,"",{"$f":"IF(F289<>\"\",\"MMR\" & TEXT(COUNTA($A$5:A289)-COUNTBLANK($A$5:A289),\"00\"),\"\")","v":""}]
["2020-11-23",null,null,null,null,"",{"$f":"IF(F290<>\"\",\"MMR\" & TEXT(COUNTA($A$5:A290)-COUNTBLANK($A$5:A290),\"00\"),\"\")","v":""}]
["2020-11-24",null,null,null,null,"",{"$f":"IF(F291<>\"\",\"MMR\" & TEXT(COUNTA($A$5:A291)-COUNTBLANK($A$5:A291),\"00\"),\"\")","v":""}]
["2020-11-25",null,null,null,null,"",{"$f":"IF(F292<>\"\",\"MMR\" & TEXT(COUNTA($A$5:A292)-COUNTBLANK($A$5:A292),\"00\"),\"\")","v":""}]
["2020-11-26",null,null,null,null,"",{"$f":"IF(F293<>\"\",\"MMR\" & TEXT(COUNTA($A$5:A293)-COUNTBLANK($A$5:A293),\"00\"),\"\")","v":""}]
["2020-11-27",null,null,null,null,"",{"$f":"IF(F294<>\"\",\"MMR\" & TEXT(COUNTA($A$5:A294)-COUNTBLANK($A$5:A294),\"00\"),\"\")","v":""}]
[{"$f":"IFERROR(IF(MONTH(A294+IF(WEEKDAY(A294,2)<5,1,3))=MONTH(A293),A294+IF(WEEKDAY(A294,2)<5,1,3),\"\"),\"\")","v":"2020-11-30"},null,null,null,null,"",{"$f":"IF(F295<>\"\",\"MMR\" & TEXT(COUNTA($A$5:A295)-COUNTBLANK($A$5:A295),\"00\"),\"\")","v":""}]
[{"$f":"IFERROR(IF(MONTH(A295+IF(WEEKDAY(A295,2)<5,1,3))=MONTH(A294),A295+IF(WEEKDAY(A295,2)<5,1,3),\"\"),\"\")","v":""},null,null,null,null,"",{"$f":"IF(F296<>\"\",\"MMR\" & TEXT(COUNTA($A$5:A296)-COUNTBLANK($A$5:A296),\"00\"),\"\")","v":""}]
[{"$f":"IFERROR(IF(MONTH(A296+IF(WEEKDAY(A296,2)<5,1,3))=MONTH(A295),A296+IF(WEEKDAY(A296,2)<5,1,3),\"\"),\"\")","v":""},null,null,null,null,"",{"$f":"IF(F297<>\"\",\"MMR\" & TEXT(COUNTA($A$5:A297)-COUNTBLANK($A$5:A297),\"00\"),\"\")","v":""}]
[null,{"$f":"\"Fait à Limeil-Brévannes, le \"& IF(COUNTBLANK(A275:A297)-COUNTBLANK(G275:G297)=0,TEXT(TODAY(),\"jjjj j mmmm aaaa\"),\"\")","v":"Fait à Limeil-Brévannes, le "}]
[]
[{"$f":"A273+1","v":12},{"$f":"\"Menus midi retraite du mois de \"&TEXT(A302,\"mmmm\")&\" \"&$A$1","v":"Menus midi retraite du mois de décembre 2020"}]
["Date du menu","Légume","Viande","Dessert","Observation","Nature du menu","Numéro menu"]
[{"$f":"IF(WEEKDAY(DATE($A$1,$A300,1),2)<=5,DATE($A$1,$A300,1),DATE($A$1,$A300,1)+8-WEEKDAY(DATE($A$1,$A300,1),2))","v":"2020-12-01"},null,null,null,null,{"$f":"IF(COUNTA(A302:D302)>1,\"Menus midi retraite \" &TEXT(A302,\"mmmm\"),\"\")","v":""},{"$f":"IF(F302<>\"\",\"MMR\" & TEXT(COUNTA($A$5:A302)-COUNTBLANK($A$5:A302),\"00\"),\"\")","v":""}]
[{"$f":"A302+IF(WEEKDAY(A302,2)<5,1,3)","v":"2020-12-02"},null,null,null,null,{"$f":"IF(COUNTA(A303:D303)>1,\"Menus midi retraite \" &TEXT(A303,\"mmmm\"),\"\")","v":""},{"$f":"IF(F303<>\"\",\"MMR\" & TEXT(COUNTA($A$5:A303)-COUNTBLANK($A$5:A303),\"00\"),\"\")","v":""}]
[{"$f":"A303+IF(WEEKDAY(A303,2)<5,1,3)","v":"2020-12-03"},null,null,null,null,"",{"$f":"IF(F304<>\"\",\"MMR\" & TEXT(COUNTA($A$5:A304)-COUNTBLANK($A$5:A304),\"00\"),\"\")","v":""}]
["2020-12-04",null,null,null,null,"",{"$f":"IF(F305<>\"\",\"MMR\" & TEXT(COUNTA($A$5:A305)-COUNTBLANK($A$5:A305),\"00\"),\"\")","v":""}]
["2020-12-07",null,null,null,null,"",{"$f":"IF(F306<>\"\",\"MMR\" & TEXT(COUNTA($A$5:A306)-COUNTBLANK($A$5:A306),\"00\"),\"\")","v":""}]
["2020-12-08",null,null,null,null,"",{"$f":"IF(F307<>\"\",\"MMR\" & TEXT(COUNTA($A$5:A307)-COUNTBLANK($A$5:A307),\"00\"),\"\")","v":""}]
["2020-12-09",null,null,null,null,"",{"$f":"IF(F308<>\"\",\"MMR\" & TEXT(COUNTA($A$5:A308)-COUNTBLANK($A$5:A308),\"00\"),\"\")","v":""}]
["2020-12-10",null,null,null,null,"",{"$f":"IF(F309<>\"\",\"MMR\" & TEXT(COUNTA($A$5:A309)-COUNTBLANK($A$5:A309),\"00\"),\"\")","v":""}]
["2020-12-11",null,null,null,null,"",{"$f":"IF(F310<>\"\",\"MMR\" & TEXT(COUNTA($A$5:A310)-COUNTBLANK($A$5:A310),\"00\"),\"\")","v":""}]
["2020-12-14",null,null,null,null,"",{"$f":"IF(F311<>\"\",\"MMR\" & TEXT(COUNTA($A$5:A311)-COUNTBLANK($A$5:A311),\"00\"),\"\")","v":""}]
["2020-12-15",null,null,null,null,"",{"$f":"IF(F312<>\"\",\"MMR\" & TEXT(COUNTA($A$5:A312)-COUNTBLANK($A$5:A312),\"00\"),\"\")","v":""}]
["2020-12-16",null,null,null,null,"",{"$f":"IF(F313<>\"\",\"MMR\" & TEXT(COUNTA($A$5:A313)-COUNTBLANK($A$5:A313),\"00\"),\"\")","v":""}]
["2020-12-17",null,null,null,null,"",{"$f":"IF(F314<>\"\",\"MMR\" & TEXT(COUNTA($A$5:A314)-COUNTBLANK($A$5:A314),\"00\"),\"\")","v":""}]
["2020-12-18",null,null,null,null,"",{"$f":"IF(F315<>\"\",\"MMR\" & TEXT(COUNTA($A$5:A315)-COUNTBLANK($A$5:A315),\"00\"),\"\")","v":""}]
["2020-12-21",null,null,null,null,"",{"$f":"IF(F316<>\"\",\"MMR\" & TEXT(COUNTA($A$5:A316)-COUNTBLANK($A$5:A316),\"00\"),\"\")","v":""}]
["2020-12-22",null,null,null,null,"",{"$f":"IF(F317<>\"\",\"MMR\" & TEXT(COUNTA($A$5:A317)-COUNTBLANK($A$5:A317),\"00\"),\"\")","v":""}]
["2020-12-23",null,null,null,null,"",{"$f":"IF(F318<>\"\",\"MMR\" & TEXT(COUNTA($A$5:A318)-COUNTBLANK($A$5:A318),\"00\"),\"\")","v":""}]
["2020-12-24",null,null,null,null,"",{"$f":"IF(F319<>\"\",\"MMR\" & TEXT(COUNTA($A$5:A319)-COUNTBLANK($A$5:A319),\"00\"),\"\")","v":""}]
["2020-12-25",null,null,null,null,"",{"$f":"IF(F320<>\"\",\"MMR\" & TEXT(COUNTA($A$5:A320)-COUNTBLANK($A$5:A320),\"00\"),\"\")","v":""}]
["2020-12-28",null,null,null,null,"",{"$f":"IF(F321<>\"\",\"MMR\" & TEXT(COUNTA($A$5:A321)-COUNTBLANK($A$5:A321),\"00\"),\"\")","v":""}]
[{"$f":"IFERROR(IF(MONTH(A321+IF(WEEKDAY(A321,2)<5,1,3))=MONTH(A320),A321+IF(WEEKDAY(A321,2)<5,1,3),\"\"),\"\")","v":"2020-12-29"},null,null,null,null,"",{"$f":"IF(F322<>\"\",\"MMR\" & TEXT(COUNTA($A$5:A322)-COUNTBLANK($A$5:A322),\"00\"),\"\")","v":""}]
[{"$f":"IFERROR(IF(MONTH(A322+IF(WEEKDAY(A322,2)<5,1,3))=MONTH(A321),A322+IF(WEEKDAY(A322,2)<5,1,3),\"\"),\"\")","v":"2020-12-30"},null,null,null,null,"",{"$f":"IF(F323<>\"\",\"MMR\" & TEXT(COUNTA($A$5:A323)-COUNTBLANK($A$5:A323),\"00\"),\"\")","v":""}]
[{"$f":"IFERROR(IF(MONTH(A323+IF(WEEKDAY(A323,2)<5,1,3))=MONTH(A322),A323+IF(WEEKDAY(A323,2)<5,1,3),\"\"),\"\")","v":"2020-12-31"},null,null,null,null,"",{"$f":"IF(F324<>\"\",\"MMR\" & TEXT(COUNTA($A$5:A324)-COUNTBLANK($A$5:A324),\"00\"),\"\")","v":""}]
[null,{"$f":"\"Fait à Limeil-Brévannes, le \"& IF(COUNTBLANK(A302:A324)-COUNTBLANK(G302:G324)=0,TEXT(TODAY(),\"jjjj j mmmm aaaa\"),\"\")","v":"Fait à Limeil-Brévannes, le "}]

{"sheet":"Jours Fériés","index":10,"n_rows":19,"n_cols":2,"rows_kept":19,"cut":false,"hidden":true,"merged":[]}
[]
["Jours fériés et fêtes",{"$f":"'Accueil Menus'!$D$1","v":2020}]
["Jour de l'an",{"$f":"DATE(B2,1,1)","v":"2020-01-01"}]
["Pâques",{"$f":"DATE(YEAR(B3),3,29.56+0.979*MOD(204-11*MOD(YEAR(B3),19),30)-WEEKDAY(DATE(YEAR(B3),3,28.56+0.979*MOD(204-11*MOD(YEAR(B3),19),30))))","v":"2020-04-12"}]
["Lundi de Pâques",{"$f":"B4+1","v":"2020-04-13"}]
["Fête du travail",{"$f":"DATE(B2,5,1)","v":"2020-05-01"}]
["Victoire 1945",{"$f":"DATE(B2,5,8)","v":"2020-05-08"}]
["Jeudi de l'ascension",{"$f":"B5+38","v":"2020-05-21"}]
["Pentecôte",{"$f":"B4+49","v":"2020-05-31"}]
["Lundi de Pentecôte",{"$f":"B9+1","v":"2020-06-01"}]
["Fête nationale",{"$f":"DATE(B2,7,14)","v":"2020-07-14"}]
["Assomption",{"$f":"DATE(B2,8,15)","v":"2020-08-15"}]
["Toussaint",{"$f":"DATE(B2,11,1)","v":"2020-11-01"}]
["Armistice 1918",{"$f":"DATE(B2,11,11)","v":"2020-11-11"}]
["Noël",{"$f":"DATE(B2,12,25)","v":"2020-12-25"}]
[]
[]
[null,"Samedi"]
[null,"Dimanche"]

{"sheet":"Menus VWE","index":11,"n_rows":117,"n_cols":6,"rows_kept":117,"cut":false,"hidden":false,"merged":[]}
[{"$f":"'Accueil Menus'!D1","v":2020}]
[]
[1,{"$f":"\"Menus viande weekend \"&IF(A3=1,\"premier\",\"deuxième\")&\" semestre\"","v":"Menus viande weekend premier semestre"}]
["Date du menu","Nom viande","Nom observation","Nature du menu","Numéro menu","Nom période viande weekend"]
[{"$f":"IF(WEEKDAY(DATE($A$1,A3*6-5,1),2)>=6,DATE($A$1,A3*6-5,1),DATE($A$1,A3*6-5,1)+7-WEEKDAY(DATE($A$1,A3*6-5,1)))","v":"2020-01-04"},"Veau",null,{"$f":"IF(COUNTA(A5:B5)>1,\"Menus viandes weekend  \" &TEXT(F5,\"\"),\"\")","v":"Menus viandes weekend  premier semestre"},{"$f":"IF(COUNTA(A5:B5)>1,\"MVWE\" & TEXT(COUNTA($A$5:A5)-COUNTBLANK($A$5:A5),\"00\"),\"\")","v":"MVWE01"},"premier semestre"]
[{"$f":"A5+IF(WEEKDAY(A5,2)=6,1,6)","v":"2020-01-05"},"Agneau",null,{"$f":"IF(COUNTA(A6:B6)>1,\"Menus viandes weekend  \" &TEXT(F6,\"\"),\"\")","v":"Menus viandes weekend  premier semestre"},{"$f":"IF(COUNTA(A6:B6)>1,\"MVWE\" & TEXT(COUNTA($A$5:A6)-COUNTBLANK($A$5:A6),\"00\"),\"\")","v":"MVWE02"},"premier semestre"]
[{"$f":"A6+IF(WEEKDAY(A6,2)=6,1,6)","v":"2020-01-11"},"Dinde",null,"Menus viandes weekend  premier semestre",{"$f":"IF(COUNTA(A7:B7)>1,\"MVWE\" & TEXT(COUNTA($A$5:A7)-COUNTBLANK($A$5:A7),\"00\"),\"\")","v":"MVWE03"},"premier semestre"]
["2020-01-12","Poisson",null,"Menus viandes weekend  premier semestre",{"$f":"IF(COUNTA(A8:B8)>1,\"MVWE\" & TEXT(COUNTA($A$5:A8)-COUNTBLANK($A$5:A8),\"00\"),\"\")","v":"MVWE04"},"premier semestre"]
["2020-01-18","Veau","","Menus viandes weekend  premier semestre",{"$f":"IF(COUNTA(A9:B9)>1,\"MVWE\" & TEXT(COUNTA($A$5:A9)-COUNTBLANK($A$5:A9),\"00\"),\"\")","v":"MVWE05"},"premier semestre"]
["2020-01-19",null,null,"",{"$f":"IF(COUNTA(A10:B10)>1,\"MVWE\" & TEXT(COUNTA($A$5:A10)-COUNTBLANK($A$5:A10),\"00\"),\"\")","v":""}]
["2020-01-25",null,null,"",{"$f":"IF(COUNTA(A11:B11)>1,\"MVWE\" & TEXT(COUNTA($A$5:A11)-COUNTBLANK($A$5:A11),\"00\"),\"\")","v":""}]
["2020-01-26",null,null,"",{"$f":"IF(COUNTA(A12:B12)>1,\"MVWE\" & TEXT(COUNTA($A$5:A12)-COUNTBLANK($A$5:A12),\"00\"),\"\")","v":""}]
["2020-02-01",null,null,"",{"$f":"IF(COUNTA(A13:B13)>1,\"MVWE\" & TEXT(COUNTA($A$5:A13)-COUNTBLANK($A$5:A13),\"00\"),\"\")","v":""}]
["2020-02-02",null,null,"",{"$f":"IF(COUNTA(A14:B14)>1,\"MVWE\" & TEXT(COUNTA($A$5:A14)-COUNTBLANK($A$5:A14),\"00\"),\"\")","v":""}]
["2020-02-08",null,null,"",{"$f":"IF(COUNTA(A15:B15)>1,\"MVWE\" & TEXT(COUNTA($A$5:A15)-COUNTBLANK($A$5:A15),\"00\"),\"\")","v":""}]
["2020-02-09",null,null,"",{"$f":"IF(COUNTA(A16:B16)>1,\"MVWE\" & TEXT(COUNTA($A$5:A16)-COUNTBLANK($A$5:A16),\"00\"),\"\")","v":""}]
["2020-02-15",null,null,"",{"$f":"IF(COUNTA(A17:B17)>1,\"MVWE\" & TEXT(COUNTA($A$5:A17)-COUNTBLANK($A$5:A17),\"00\"),\"\")","v":""}]
["2020-02-16",null,null,"",{"$f":"IF(COUNTA(A18:B18)>1,\"MVWE\" & TEXT(COUNTA($A$5:A18)-COUNTBLANK($A$5:A18),\"00\"),\"\")","v":""}]
["2020-02-22",null,null,"",{"$f":"IF(COUNTA(A19:B19)>1,\"MVWE\" & TEXT(COUNTA($A$5:A19)-COUNTBLANK($A$5:A19),\"00\"),\"\")","v":""}]
["2020-02-23",null,null,"",{"$f":"IF(COUNTA(A20:B20)>1,\"MVWE\" & TEXT(COUNTA($A$5:A20)-COUNTBLANK($A$5:A20),\"00\"),\"\")","v":""}]
["2020-02-29",null,null,"",{"$f":"IF(COUNTA(A21:B21)>1,\"MVWE\" & TEXT(COUNTA($A$5:A21)-COUNTBLANK($A$5:A21),\"00\"),\"\")","v":""}]
["2020-03-01",null,null,"",{"$f":"IF(COUNTA(A22:B22)>1,\"MVWE\" & TEXT(COUNTA($A$5:A22)-COUNTBLANK($A$5:A22),\"00\"),\"\")","v":""}]
["2020-03-07",null,null,"",{"$f":"IF(COUNTA(A23:B23)>1,\"MVWE\" & TEXT(COUNTA($A$5:A23)-COUNTBLANK($A$5:A23),\"00\"),\"\")","v":""}]
["2020-03-08",null,null,"",{"$f":"IF(COUNTA(A24:B24)>1,\"MVWE\" & TEXT(COUNTA($A$5:A24)-COUNTBLANK($A$5:A24),\"00\"),\"\")","v":""}]
["2020-03-14",null,null,"",{"$f":"IF(COUNTA(A25:B25)>1,\"MVWE\" & TEXT(COUNTA($A$5:A25)-COUNTBLANK($A$5:A25),\"00\"),\"\")","v":""}]
["2020-03-15",null,null,"",{"$f":"IF(COUNTA(A26:B26)>1,\"MVWE\" & TEXT(COUNTA($A$5:A26)-COUNTBLANK($A$5:A26),\"00\"),\"\")","v":""}]
["2020-03-21",null,null,"",{"$f":"IF(COUNTA(A27:B27)>1,\"MVWE\" & TEXT(COUNTA($A$5:A27)-COUNTBLANK($A$5:A27),\"00\"),\"\")","v":""}]
["2020-03-22","Poisson",null,"Menus viandes weekend  premier semestre",{"$f":"IF(COUNTA(A28:B28)>1,\"MVWE\" & TEXT(COUNTA($A$5:A28)-COUNTBLANK($A$5:A28),\"00\"),\"\")","v":"MVWE24"},"premier semestre"]
["2020-03-28",null,null,"",{"$f":"IF(COUNTA(A29:B29)>1,\"MVWE\" & TEXT(COUNTA($A$5:A29)-COUNTBLANK($A$5:A29),\"00\"),\"\")","v":""}]
["2020-03-29",null,null,"",{"$f":"IF(COUNTA(A30:B30)>1,\"MVWE\" & TEXT(COUNTA($A$5:A30)-COUNTBLANK($A$5:A30),\"00\"),\"\")","v":""}]
["2020-04-04",null,null,"",{"$f":"IF(COUNTA(A31:B31)>1,\"MVWE\" & TEXT(COUNTA($A$5:A31)-COUNTBLANK($A$5:A31),\"00\"),\"\")","v":""}]
["2020-04-05",null,null,"",{"$f":"IF(COUNTA(A32:B32)>1,\"MVWE\" & TEXT(COUNTA($A$5:A32)-COUNTBLANK($A$5:A32),\"00\"),\"\")","v":""}]
["2020-04-11",null,null,"",{"$f":"IF(COUNTA(A33:B33)>1,\"MVWE\" & TEXT(COUNTA($A$5:A33)-COUNTBLANK($A$5:A33),\"00\"),\"\")","v":""}]
["2020-04-12","Agneau","Pâques","Menus viandes weekend  premier semestre",{"$f":"IF(COUNTA(A34:B34)>1,\"MVWE\" & TEXT(COUNTA($A$5:A34)-COUNTBLANK($A$5:A34),\"00\"),\"\")","v":"MVWE30"},"premier semestre"]
["2020-04-18",null,null,"",{"$f":"IF(COUNTA(A35:B35)>1,\"MVWE\" & TEXT(COUNTA($A$5:A35)-COUNTBLANK($A$5:A35),\"00\"),\"\")","v":""}]
["2020-04-19",null,null,"",{"$f":"IF(COUNTA(A36:B36)>1,\"MVWE\" & TEXT(COUNTA($A$5:A36)-COUNTBLANK($A$5:A36),\"00\"),\"\")","v":""}]
["2020-04-25",null,null,"",{"$f":"IF(COUNTA(A37:B37)>1,\"MVWE\" & TEXT(COUNTA($A$5:A37)-COUNTBLANK($A$5:A37),\"00\"),\"\")","v":""}]
["2020-04-26",null,null,"",{"$f":"IF(COUNTA(A38:B38)>1,\"MVWE\" & TEXT(COUNTA($A$5:A38)-COUNTBLANK($A$5:A38),\"00\"),\"\")","v":""}]
["2020-05-02",null,null,"",{"$f":"IF(COUNTA(A39:B39)>1,\"MVWE\" & TEXT(COUNTA($A$5:A39)-COUNTBLANK($A$5:A39),\"00\"),\"\")","v":""}]
["2020-05-03",null,null,"",{"$f":"IF(COUNTA(A40:B40)>1,\"MVWE\" & TEXT(COUNTA($A$5:A40)-COUNTBLANK($A$5:A40),\"00\"),\"\")","v":""}]
["2020-05-09",null,null,"",{"$f":"IF(COUNTA(A41:B41)>1,\"MVWE\" & TEXT(COUNTA($A$5:A41)-COUNTBLANK($A$5:A41),\"00\"),\"\")","v":""}]
["2020-05-10",null,null,"",{"$f":"IF(COUNTA(A42:B42)>1,\"MVWE\" & TEXT(COUNTA($A$5:A42)-COUNTBLANK($A$5:A42),\"00\"),\"\")","v":""}]
["2020-05-16",null,null,"",{"$f":"IF(COUNTA(A43:B43)>1,\"MVWE\" & TEXT(COUNTA($A$5:A43)-COUNTBLANK($A$5:A43),\"00\"),\"\")","v":""}]
["2020-05-17",null,null,"",{"$f":"IF(COUNTA(A44:B44)>1,\"MVWE\" & TEXT(COUNTA($A$5:A44)-COUNTBLANK($A$5:A44),\"00\"),\"\")","v":""}]
["2020-05-23",null,null,"",{"$f":"IF(COUNTA(A45:B45)>1,\"MVWE\" & TEXT(COUNTA($A$5:A45)-COUNTBLANK($A$5:A45),\"00\"),\"\")","v":""}]
["2020-05-24",null,null,"",{"$f":"IF(COUNTA(A46:B46)>1,\"MVWE\" & TEXT(COUNTA($A$5:A46)-COUNTBLANK($A$5:A46),\"00\"),\"\")","v":""}]
["2020-05-30",null,null,"",{"$f":"IF(COUNTA(A47:B47)>1,\"MVWE\" & TEXT(COUNTA($A$5:A47)-COUNTBLANK($A$5:A47),\"00\"),\"\")","v":""}]
["2020-05-31","Bœuf","Pentecôte","Menus viandes weekend  premier semestre",{"$f":"IF(COUNTA(A48:B48)>1,\"MVWE\" & TEXT(COUNTA($A$5:A48)-COUNTBLANK($A$5:A48),\"00\"),\"\")","v":"MVWE44"},"premier semestre"]
["2020-06-06",null,null,"",{"$f":"IF(COUNTA(A49:B49)>1,\"MVWE\" & TEXT(COUNTA($A$5:A49)-COUNTBLANK($A$5:A49),\"00\"),\"\")","v":""}]
["2020-06-07",null,null,"",{"$f":"IF(COUNTA(A50:B50)>1,\"MVWE\" & TEXT(COUNTA($A$5:A50)-COUNTBLANK($A$5:A50),\"00\"),\"\")","v":""}]
["2020-06-13",null,null,"",{"$f":"IF(COUNTA(A51:B51)>1,\"MVWE\" & TEXT(COUNTA($A$5:A51)-COUNTBLANK($A$5:A51),\"00\"),\"\")","v":""}]
["2020-06-14",null,null,"",{"$f":"IF(COUNTA(A52:B52)>1,\"MVWE\" & TEXT(COUNTA($A$5:A52)-COUNTBLANK($A$5:A52),\"00\"),\"\")","v":""}]
["2020-06-20",null,null,"",{"$f":"IF(COUNTA(A53:B53)>1,\"MVWE\" & TEXT(COUNTA($A$5:A53)-COUNTBLANK($A$5:A53),\"00\"),\"\")","v":""}]
["2020-06-21",null,null,"",{"$f":"IF(COUNTA(A54:B54)>1,\"MVWE\" & TEXT(COUNTA($A$5:A54)-COUNTBLANK($A$5:A54),\"00\"),\"\")","v":""}]
["2020-06-27","Dinde",null,"Menus viandes weekend  premier semestre",{"$f":"IF(COUNTA(A55:B55)>1,\"MVWE\" & TEXT(COUNTA($A$5:A55)-COUNTBLANK($A$5:A55),\"00\"),\"\")","v":"MVWE51"},"premier semestre"]
[{"$f":"IFERROR(IF(MONTH(A55+IF(WEEKDAY(A55,2)=6,1,6))=MONTH(A55),A55+IF(WEEKDAY(A55,2)=6,1,6),\"\"),\"\")","v":"2020-06-28"},"Porc",null,"Menus viandes weekend  premier semestre",{"$f":"IF(COUNTA(A56:B56)>1,\"MVWE\" & TEXT(COUNTA($A$5:A56)-COUNTBLANK($A$5:A56),\"00\"),\"\")","v":"MVWE52"},"premier semestre"]
[{"$f":"IFERROR(IF(MONTH(A56+IF(WEEKDAY(A56,2)=6,1,6))=MONTH(A56),A56+IF(WEEKDAY(A56,2)=6,1,6),\"\"),\"\")","v":""},null,null,{"$f":"IF(COUNTA(A57:B57)>1,\"Menus viandes weekend  \" &TEXT(F57,\"\"),\"\")","v":""},{"$f":"IF(COUNTA(A57:B57)>1,\"MVWE\" & TEXT(COUNTA($A$5:A57)-COUNTBLANK($A$5:A57),\"00\"),\"\")","v":""}]
[{"$f":"IFERROR(IF(MONTH(A57+IF(WEEKDAY(A57,2)=6,1,6))=MONTH(A57),A57+IF(WEEKDAY(A57,2)=6,1,6),\"\"),\"\")","v":""},null,null,{"$f":"IF(COUNTA(A58:B58)>1,\"Menus viandes weekend  \" &TEXT(F58,\"\"),\"\")","v":""},{"$f":"IF(COUNTA(A58:B58)>1,\"MVWE\" & TEXT(COUNTA($A$5:A58)-COUNTBLANK($A$5:A58),\"00\"),\"\")","v":""}]
[null,{"$f":"\"Fait à Limeil-Brévannes, le \"&TEXT(TODAY(),\"jjjj j mmmm aaaa\")","v":"Fait à Limeil-Brévannes, le jeudi 26 septembre 2019"}]
[]
[2,{"$f":"\"Menus viande weekend \"&IF(A61=1,\"premier\",\"deuxième\")&\" semestre\"","v":"Menus viande weekend deuxième semestre"}]
["Date du menu",null,null,"Nature du menu","Numéro menu"]
[{"$f":"IF(WEEKDAY(DATE($A$1,A61*6-5,1),2)>=6,DATE($A$1,A61*6-5,1),DATE($A$1,A61*6-5,1)+7-WEEKDAY(DATE($A$1,A61*6-5,1)))","v":"2020-07-04"},"Rôti de bœuf",null,{"$f":"IF(COUNTA(A63:B63)>1,\"Menus viandes weekend  \" &TEXT(F63,\"\"),\"\")","v":"Menus viandes weekend  deuxième semestre"},{"$f":"IF(COUNTA(A63:B63)>1,\"MVWE\" & TEXT(COUNTA($A$5:A63)-COUNTBLANK($A$5:A63),\"00\"),\"\")","v":"MVWE53"},"deuxième semestre"]
[{"$f":"A63+IF(WEEKDAY(A63,2)=6,1,6)","v":"2020-07-05"},"Poisson",null,{"$f":"IF(COUNTA(A64:B64)>1,\"Menus viandes weekend  \" &TEXT(F64,\"\"),\"\")","v":"Menus viandes weekend  deuxième semestre"},{"$f":"IF(COUNTA(A64:B64)>1,\"MVWE\" & TEXT(COUNTA($A$5:A64)-COUNTBLANK($A$5:A64),\"00\"),\"\")","v":"MVWE54"},"deuxième semestre"]
[{"$f":"A64+IF(WEEKDAY(A64,2)=6,1,6)","v":"2020-07-11"},null,null,"",{"$f":"IF(COUNTA(A65:B65)>1,\"MVWE\" & TEXT(COUNTA($A$5:A65)-COUNTBLANK($A$5:A65),\"00\"),\"\")","v":""}]
["2020-07-12",null,null,"",{"$f":"IF(COUNTA(A66:B66)>1,\"MVWE\" & TEXT(COUNTA($A$5:A66)-COUNTBLANK($A$5:A66),\"00\"),\"\")","v":""}]
["2020-07-18",null,null,"",{"$f":"IF(COUNTA(A67:B67)>1,\"MVWE\" & TEXT(COUNTA($A$5:A67)-COUNTBLANK($A$5:A67),\"00\"),\"\")","v":""}]
["2020-07-19",null,null,"",{"$f":"IF(COUNTA(A68:B68)>1,\"MVWE\" & TEXT(COUNTA($A$5:A68)-COUNTBLANK($A$5:A68),\"00\"),\"\")","v":""}]
["2020-07-25",null,null,"",{"$f":"IF(COUNTA(A69:B69)>1,\"MVWE\" & TEXT(COUNTA($A$5:A69)-COUNTBLANK($A$5:A69),\"00\"),\"\")","v":""}]
["2020-07-26",null,null,"",{"$f":"IF(COUNTA(A70:B70)>1,\"MVWE\" & TEXT(COUNTA($A$5:A70)-COUNTBLANK($A$5:A70),\"00\"),\"\")","v":""}]
["2020-08-01",null,null,"",{"$f":"IF(COUNTA(A71:B71)>1,\"MVWE\" & TEXT(COUNTA($A$5:A71)-COUNTBLANK($A$5:A71),\"00\"),\"\")","v":""}]
["2020-08-02",null,null,"",{"$f":"IF(COUNTA(A72:B72)>1,\"MVWE\" & TEXT(COUNTA($A$5:A72)-COUNTBLANK($A$5:A72),\"00\"),\"\")","v":""}]
["2020-08-08",null,null,"",{"$f":"IF(COUNTA(A73:B73)>1,\"MVWE\" & TEXT(COUNTA($A$5:A73)-COUNTBLANK($A$5:A73),\"00\"),\"\")","v":""}]
["2020-08-09",null,null,"",{"$f":"IF(COUNTA(A74:B74)>1,\"MVWE\" & TEXT(COUNTA($A$5:A74)-COUNTBLANK($A$5:A74),\"00\"),\"\")","v":""}]
["2020-08-15","Dinde","Assomption","Menus viandes weekend  deuxième semestre",{"$f":"IF(COUNTA(A75:B75)>1,\"MVWE\" & TEXT(COUNTA($A$5:A75)-COUNTBLANK($A$5:A75),\"00\"),\"\")","v":"MVWE65"},"deuxième semestre"]
["2020-08-16",null,null,"",{"$f":"IF(COUNTA(A76:B76)>1,\"MVWE\" & TEXT(COUNTA($A$5:A76)-COUNTBLANK($A$5:A76),\"00\"),\"\")","v":""}]
["2020-08-22",null,null,"",{"$f":"IF(COUNTA(A77:B77)>1,\"MVWE\" & TEXT(COUNTA($A$5:A77)-COUNTBLANK($A$5:A77),\"00\"),\"\")","v":""}]
["2020-08-23",null,null,"",{"$f":"IF(COUNTA(A78:B78)>1,\"MVWE\" & TEXT(COUNTA($A$5:A78)-COUNTBLANK($A$5:A78),\"00\"),\"\")","v":""}]
["2020-08-29",null,null,"",{"$f":"IF(COUNTA(A79:B79)>1,\"MVWE\" & TEXT(COUNTA($A$5:A79)-COUNTBLANK($A$5:A79),\"00\"),\"\")","v":""}]
["2020-08-30",null,null,"",{"$f":"IF(COUNTA(A80:B80)>1,\"MVWE\" & TEXT(COUNTA($A$5:A80)-COUNTBLANK($A$5:A80),\"00\"),\"\")","v":""}]
["2020-09-05",null,null,"",{"$f":"IF(COUNTA(A81:B81)>1,\"MVWE\" & TEXT(COUNTA($A$5:A81)-COUNTBLANK($A$5:A81),\"00\"),\"\")","v":""}]
["2020-09-06",null,null,"",{"$f":"IF(COUNTA(A82:B82)>1,\"MVWE\" & TEXT(COUNTA($A$5:A82)-COUNTBLANK($A$5:A82),\"00\"),\"\")","v":""}]
["2020-09-12",null,null,"",{"$f":"IF(COUNTA(A83:B83)>1,\"MVWE\" & TEXT(COUNTA($A$5:A83)-COUNTBLANK($A$5:A83),\"00\"),\"\")","v":""}]
["2020-09-13",null,null,"",{"$f":"IF(COUNTA(A84:B84)>1,\"MVWE\" & TEXT(COUNTA($A$5:A84)-COUNTBLANK($A$5:A84),\"00\"),\"\")","v":""}]
["2020-09-19",null,null,"",{"$f":"IF(COUNTA(A85:B85)>1,\"MVWE\" & TEXT(COUNTA($A$5:A85)-COUNTBLANK($A$5:A85),\"00\"),\"\")","v":""}]
["2020-09-20","Dinde",null,"Menus viandes weekend  deuxième semestre",{"$f":"IF(COUNTA(A86:B86)>1,\"MVWE\" & TEXT(COUNTA($A$5:A86)-COUNTBLANK($A$5:A86),\"00\"),\"\")","v":"MVWE76"},"deuxième semestre"]
["2020-09-26",null,null,"",{"$f":"IF(COUNTA(A87:B87)>1,\"MVWE\" & TEXT(COUNTA($A$5:A87)-COUNTBLANK($A$5:A87),\"00\"),\"\")","v":""}]
["2020-09-27",null,null,"",{"$f":"IF(COUNTA(A88:B88)>1,\"MVWE\" & TEXT(COUNTA($A$5:A88)-COUNTBLANK($A$5:A88),\"00\"),\"\")","v":""}]
["2020-10-03",null,null,"",{"$f":"IF(COUNTA(A89:B89)>1,\"MVWE\" & TEXT(COUNTA($A$5:A89)-COUNTBLANK($A$5:A89),\"00\"),\"\")","v":""}]
["2020-10-04",null,null,"",{"$f":"IF(COUNTA(A90:B90)>1,\"MVWE\" & TEXT(COUNTA($A$5:A90)-COUNTBLANK($A$5:A90),\"00\"),\"\")","v":""}]
["2020-10-10",null,null,"",{"$f":"IF(COUNTA(A91:B91)>1,\"MVWE\" & TEXT(COUNTA($A$5:A91)-COUNTBLANK($A$5:A91),\"00\"),\"\")","v":""}]
["2020-10-11",null,null,"",{"$f":"IF(COUNTA(A92:B92)>1,\"MVWE\" & TEXT(COUNTA($A$5:A92)-COUNTBLANK($A$5:A92),\"00\"),\"\")","v":""}]
["2020-10-17",null,null,"",{"$f":"IF(COUNTA(A93:B93)>1,\"MVWE\" & TEXT(COUNTA($A$5:A93)-COUNTBLANK($A$5:A93),\"00\"),\"\")","v":""}]
["2020-10-18",null,null,"",{"$f":"IF(COUNTA(A94:B94)>1,\"MVWE\" & TEXT(COUNTA($A$5:A94)-COUNTBLANK($A$5:A94),\"00\"),\"\")","v":""}]
["2020-10-24",null,null,"",{"$f":"IF(COUNTA(A95:B95)>1,\"MVWE\" & TEXT(COUNTA($A$5:A95)-COUNTBLANK($A$5:A95),\"00\"),\"\")","v":""}]
["2020-10-25",null,null,"",{"$f":"IF(COUNTA(A96:B96)>1,\"MVWE\" & TEXT(COUNTA($A$5:A96)-COUNTBLANK($A$5:A96),\"00\"),\"\")","v":""}]
["2020-10-31",null,null,"",{"$f":"IF(COUNTA(A97:B97)>1,\"MVWE\" & TEXT(COUNTA($A$5:A97)-COUNTBLANK($A$5:A97),\"00\"),\"\")","v":""}]
["2020-11-01","Porc","Toussaint","Menus viandes weekend  deuxième semestre",{"$f":"IF(COUNTA(A98:B98)>1,\"MVWE\" & TEXT(COUNTA($A$5:A98)-COUNTBLANK($A$5:A98),\"00\"),\"\")","v":"MVWE88"},"deuxième semestre"]
["2020-11-07",null,null,"",{"$f":"IF(COUNTA(A99:B99)>1,\"MVWE\" & TEXT(COUNTA($A$5:A99)-COUNTBLANK($A$5:A99),\"00\"),\"\")","v":""}]
["2020-11-08",null,null,"",{"$f":"IF(COUNTA(A100:B100)>1,\"MVWE\" & TEXT(COUNTA($A$5:A100)-COUNTBLANK($A$5:A100),\"00\"),\"\")","v":""}]
["2020-11-14",null,null,"",{"$f":"IF(COUNTA(A101:B101)>1,\"MVWE\" & TEXT(COUNTA($A$5:A101)-COUNTBLANK($A$5:A101),\"00\"),\"\")","v":""}]
["2020-11-15",null,null,"",{"$f":"IF(COUNTA(A102:B102)>1,\"MVWE\" & TEXT(COUNTA($A$5:A102)-COUNTBLANK($A$5:A102),\"00\"),\"\")","v":""}]
["2020-11-21",null,null,"",{"$f":"IF(COUNTA(A103:B103)>1,\"MVWE\" & TEXT(COUNTA($A$5:A103)-COUNTBLANK($A$5:A103),\"00\"),\"\")","v":""}]
["2020-11-22",null,null,"",{"$f":"IF(COUNTA(A104:B104)>1,\"MVWE\" & TEXT(COUNTA($A$5:A104)-COUNTBLANK($A$5:A104),\"00\"),\"\")","v":""}]
["2020-11-28",null,null,"",{"$f":"IF(COUNTA(A105:B105)>1,\"MVWE\" & TEXT(COUNTA($A$5:A105)-COUNTBLANK($A$5:A105),\"00\"),\"\")","v":""}]
["2020-11-29","Dinde",null,"Menus viandes weekend  deuxième semestre",{"$f":"IF(COUNTA(A106:B106)>1,\"MVWE\" & TEXT(COUNTA($A$5:A106)-COUNTBLANK($A$5:A106),\"00\"),\"\")","v":"MVWE96"},"deuxième semestre"]
["2020-12-05",null,null,"",{"$f":"IF(COUNTA(A107:B107)>1,\"MVWE\" & TEXT(COUNTA($A$5:A107)-COUNTBLANK($A$5:A107),\"00\"),\"\")","v":""}]
["2020-12-06",null,null,"",{"$f":"IF(COUNTA(A108:B108)>1,\"MVWE\" & TEXT(COUNTA($A$5:A108)-COUNTBLANK($A$5:A108),\"00\"),\"\")","v":""}]
["2020-12-12",null,null,"",{"$f":"IF(COUNTA(A109:B109)>1,\"MVWE\" & TEXT(COUNTA($A$5:A109)-COUNTBLANK($A$5:A109),\"00\"),\"\")","v":""}]
["2020-12-13",null,null,"",{"$f":"IF(COUNTA(A110:B110)>1,\"MVWE\" & TEXT(COUNTA($A$5:A110)-COUNTBLANK($A$5:A110),\"00\"),\"\")","v":""}]
["2020-12-19",null,null,"",{"$f":"IF(COUNTA(A111:B111)>1,\"MVWE\" & TEXT(COUNTA($A$5:A111)-COUNTBLANK($A$5:A111),\"00\"),\"\")","v":""}]
["2020-12-20",null,null,"",{"$f":"IF(COUNTA(A112:B112)>1,\"MVWE\" & TEXT(COUNTA($A$5:A112)-COUNTBLANK($A$5:A112),\"00\"),\"\")","v":""}]
["2020-12-26","Bœuf",null,"Menus viandes weekend  deuxième semestre",{"$f":"IF(COUNTA(A113:B113)>1,\"MVWE\" & TEXT(COUNTA($A$5:A113)-COUNTBLANK($A$5:A113),\"00\"),\"\")","v":"MVWE103"},"deuxième semestre"]
[{"$f":"IFERROR(IF(MONTH(A113+IF(WEEKDAY(A113,2)=6,1,6))=MONTH(A113),A113+IF(WEEKDAY(A113,2)=6,1,6),\"\"),\"\")","v":"2020-12-27"},"Agneau",null,"Menus viandes weekend  deuxième semestre",{"$f":"IF(COUNTA(A114:B114)>1,\"MVWE\" & TEXT(COUNTA($A$5:A114)-COUNTBLANK($A$5:A114),\"00\"),\"\")","v":"MVWE104"},"deuxième semestre"]
["",null,null,{"$f":"IF(COUNTA(A115:B115)>1,\"Menus viandes weekend  \" &TEXT(F115,\"\"),\"\")","v":""},{"$f":"IF(COUNTA(A115:B115)>1,\"MVWE\" & TEXT(COUNTA($A$5:A115)-COUNTBLANK($A$5:A115),\"00\"),\"\")","v":""}]
["",null,null,{"$f":"IF(COUNTA(A116:B116)>1,\"Menus viandes weekend  \" &TEXT(F116,\"\"),\"\")","v":""},{"$f":"IF(COUNTA(A116:B116)>1,\"MVWE\" & TEXT(COUNTA($A$5:A116)-COUNTBLANK($A$5:A116),\"00\"),\"\")","v":""}]
[null,{"$f":"\"Fait à Limeil-Brévannes, le \"&TEXT(TODAY(),\"jjjj j mmmm aaaa\")","v":"Fait à Limeil-Brévannes, le jeudi 26 septembre 2019"}]

{"sheet":"Saisie VWE","index":12,"n_rows":20,"n_cols":8,"rows_kept":20,"cut":false,"hidden":true,"merged":[]}
[{"$f":"\"Création menus viandes weekend \"&'Accueil Menus'!D1","v":"Création menus viandes weekend 2020"}]
[]
["Code menu","CD03",null,"Code observation",{"$f":"IFERROR(INDEX(ListeCodesFériés,MATCH(E4,ListeNomsFériés,0)),\"\")","v":""},null,"Code à modifier","LCÀM02"]
["Nom menu",{"$f":"IFERROR(INDEX(ListeNomsDestination,MATCH($B$3,ListeCodesDestination,0)),\"-\")","v":"Menus viandes weekend"},null,"Nom observation",{"$f":"IF(COUNTIF('Jours Fériés'!$B$3:$B$15,B7)=0,\"\",INDEX('Jours Fériés'!$A$3:$A$15,MATCH(B7,'Jours Fériés'!$B$3:$B$15,0)))","v":""},null,"Nom à modifier",{"$f":"IFERROR(INDEX(ListeNomsAModifier,MATCH($H$3,ListeCodesAModifier,0)),\"-\")","v":"Oui"}]
[null,null,null,"Code période concernée",{"$f":"IFERROR(INDEX(ListeCodesMois,MATCH(E6,ListeNomsMois,0)),\"-\")","v":"CM01"}]
[null,null,null,"Nom période concernée",{"$f":"IF(B7=\"\",\"\",TEXT(B7,\"mmmm\"))","v":"janvier"}]
["Date du menu","2020-01-18",null,"Date création menu",{"$f":"TODAY()","v":"2019-09-26"}]
[]
[]
["Code catégorie","CC15"]
["Nom catégorie",{"$f":"IFERROR(INDEX(ListeNomscatégorie,MATCH(B10,ListeCodesCatégorie,0)),\"-\")","v":"VWE"}]
["Code produit","VWE07"]
["Nom produit",{"$f":"IFERROR(INDEX(TableProduits[#Data],MATCH(B$12,TableProduits[Code produit],0),MATCH($A13,TableProduits[#Headers],0)),\"-\")","v":"Veau"}]
["Code jour",{"$f":"IFERROR(INDEX(TableProduits[#Data],MATCH(B$12,TableProduits[Code produit],0),MATCH($A14,TableProduits[#Headers],0)),\"-\")","v":"CJ09"}]
["Nom jour",{"$f":"IFERROR(INDEX(TableProduits[#Data],MATCH(B$12,TableProduits[Code produit],0),MATCH($A15,TableProduits[#Headers],0)),\"-\")","v":"Samedi et dimanche midis"}]
["Code conditionnement",{"$f":"IFERROR(INDEX(TableProduits[#Data],MATCH(B$12,TableProduits[Code produit],0),MATCH($A16,TableProduits[#Headers],0)),\"-\")","v":"COCO20"}]
["Nom conditionnement",{"$f":"IFERROR(INDEX(TableProduits[#Data],MATCH(B$12,TableProduits[Code produit],0),MATCH($A17,TableProduits[#Headers],0)),\"-\")","v":"1 tranche pour 1 repas"}]
["Quantité viande",100]
["Code période viande weekend",{"$f":"IF(MONTH(B7)<=6,\"PVWE01\",\"PVWE02\")","v":"PVWE01"}]
["Nom période viande weekend",{"$f":"IFERROR(INDEX(Nom_PVWE,MATCH($B$19,Code_PVWE,0)),\"-\")","v":"premier semestre"}]

{"sheet":"Modif VWE","index":13,"n_rows":20,"n_cols":8,"rows_kept":20,"cut":false,"hidden":true,"merged":[]}
[{"$f":"\"Modification menus viandes weekend \"&'Accueil Menus'!D1","v":"Modification menus viandes weekend 2020"}]
[]
["Code menu","CD03",null,"Code observation",{"$f":"IFERROR(INDEX(ListeCodesFériés,MATCH(E4,ListeNomsFériés,0)),\"\")","v":""},null,"Code à modifier","LCÀM01"]
["Nom menu",{"$f":"IFERROR(INDEX(ListeNomsDestination,MATCH(B3,ListeCodesDestination,0)),\"-\")","v":"Menus viandes weekend"},null,"Nom observation",{"$f":"IF(COUNTIF('Jours Fériés'!$B$3:$B$15,B7)=0,\"\",INDEX('Jours Fériés'!$A$3:$A$15,MATCH(B7,'Jours Fériés'!$B$3:$B$15,0)))","v":""},null,"Nom à modifier",{"$f":"IFERROR(INDEX(ListeNomsAModifier,MATCH(H3,ListeCodesAModifier,0)),\"-\")","v":"Non"}]
[null,null,null,"Code période concernée",{"$f":"IFERROR(INDEX(ListeCodesMois,MATCH(E6,ListeNomsMois,0)),\"-\")","v":"CM07"}]
[null,null,null,"Nom période concernée",{"$f":"IF(B7=\"\",\"\",TEXT(B7,\"mmmm\"))","v":"juillet"}]
["Date du menu","2020-07-04",null,"Date création menu",{"$f":"TODAY()","v":"2019-09-26"}]
[]
[]
["Code catégorie","CC15"]
["Nom catégorie",{"$f":"IFERROR(INDEX(ListeNomscatégorie,MATCH(B10,ListeCodesCatégorie,0)),\"-\")","v":"VWE"}]
["Code produit","VMR02"]
["Nom produit",{"$f":"IFERROR(INDEX(TableProduits[#Data],MATCH(B$12,TableProduits[Code produit],0),MATCH($A13,TableProduits[#Headers],0)),\"-\")","v":"Rôti de bœuf"}]
["Code jour",{"$f":"IFERROR(INDEX(TableProduits[#Data],MATCH(B$12,TableProduits[Code produit],0),MATCH($A14,TableProduits[#Headers],0)),\"-\")","v":"CJ05"}]
["Nom jour",{"$f":"IFERROR(INDEX(TableProduits[#Data],MATCH(B$12,TableProduits[Code produit],0),MATCH($A15,TableProduits[#Headers],0)),\"-\")","v":"Lundi à vendredi midis"}]
["Code conditionnement",{"$f":"IFERROR(INDEX(TableProduits[#Data],MATCH(B$12,TableProduits[Code produit],0),MATCH($A16,TableProduits[#Headers],0)),\"-\")","v":"COCO09"}]
["Nom conditionnement",{"$f":"IFERROR(INDEX(TableProduits[#Data],MATCH(B$12,TableProduits[Code produit],0),MATCH($A17,TableProduits[#Headers],0)),\"-\")","v":"1 morceau de 500 grammes pour 5 repas"}]
["Quantité viande",100]
["Code période viande weekend",{"$f":"IF(MONTH(B7)<=6,\"PVWE01\",\"PVWE02\")","v":"PVWE02"}]
["Nom période viande weekend",{"$f":"IFERROR(INDEX(Nom_PVWE,MATCH($B$19,Code_PVWE,0)),\"-\")","v":"deuxième semestre"}]

{"sheet":"Saisie MJ","index":14,"n_rows":21,"n_cols":8,"rows_kept":21,"cut":false,"hidden":false,"merged":[[8,0,8,1],[8,3,8,4],[8,6,8,7]]}
[{"$f":"\"Création Menu journalier \"&'Accueil Menus'!$D$1","v":"Création Menu journalier 2020"}]
[]
["Code menu","CD01",null,"Code observation",{"$f":"IFERROR(INDEX(ListeCodesFériés,MATCH(E4,ListeNomsFériés,0)),\"\")","v":"CF01"},null,"Code à modifier","LCÀM02"]
["Nom menu",{"$f":"IFERROR(INDEX(ListeNomsDestination,MATCH(B3,ListeCodesDestination,0)),\"-\")","v":"Menus journaliers"},null,"Nom observation",{"$f":"IF(COUNTIF('Jours Fériés'!$B$3:$B$15,B7)=0,\"\",INDEX('Jours Fériés'!$A$3:$A$15,MATCH(B7,'Jours Fériés'!$B$3:$B$15,0)))","v":"Jour de l'an"},null,"Nom à modifier",{"$f":"IFERROR(INDEX(ListeNomsAModifier,MATCH(H3,ListeCodesAModifier,0)),\"-\")","v":"Oui"}]
[null,null,null,"Code période concernée",{"$f":"IFERROR(INDEX(ListeCodesMois,MATCH(E6,ListeNomsMois,0)),\"-\")","v":"CM01"}]
[null,null,null,"Nom période concernée",{"$f":"IF(B7=\"\",\"\",TEXT(B7,\"mmmm\"))","v":"janvier"}]
["Date du menu","2020-01-01",null,"Date création menu",{"$f":"TODAY()","v":"2019-09-26"}]
[]
["Légume",null,null,"Viande",null,null,"Dessert"]
["Code catégorie",{"$f":"IF(WEEKDAY($B$7,2)<=2,\"CC05\",IF(WEEKDAY($B$7,2)<=4,\"CC06\",IF(WEEKDAY($B$7,2)=5,\"CC07\",IF(WEEKDAY($B$7,2)=6,\"CC09\",IF(WEEKDAY($B$7,2)=7,\"CC08\",\"\")))))","v":"CC06"},null,"Code catégorie","CC13",null,"Code catégorie","CC01"]
["Nom catégorie",{"$f":"IFERROR(INDEX(ListeNomscatégorie,MATCH(B10,ListeCodesCatégorie,0)),\"-\")","v":"LSMJ"},null,"Nom catégorie",{"$f":"IFERROR(INDEX(ListeNomscatégorie,MATCH(E10,ListeCodesCatégorie,0)),\"-\")","v":"VMR"},null,"Nom catégorie",{"$f":"IFERROR(INDEX(ListeNomscatégorie,MATCH(H10,ListeCodesCatégorie,0)),\"-\")","v":"DMR"}]
["Code produit",null,null,"Code produit","VMR02",null,"Code produit","DMR01"]
["Nom produit",{"$f":"IFERROR(INDEX(TableProduits[#Data],MATCH(B$12,TableProduits[Code produit],0),MATCH($A13,TableProduits[#Headers],0)),\"-\")","v":"-"},null,"Nom produit",{"$f":"IFERROR(INDEX(TableProduits[#Data],MATCH(E$12,TableProduits[Code produit],0),MATCH($A13,TableProduits[#Headers],0)),\"-\")","v":"Rôti de bœuf"},null,"Nom produit",{"$f":"IFERROR(INDEX(TableProduits[#Data],MATCH(H$12,TableProduits[Code produit],0),MATCH($A13,TableProduits[#Headers],0)),\"-\")","v":"Pomme"}]
["Code jour",{"$f":"IFERROR(INDEX(TableProduits[#Data],MATCH(B$12,TableProduits[Code produit],0),MATCH($A14,TableProduits[#Headers],0)),\"-\")","v":"-"},null,"Code jour",{"$f":"IFERROR(INDEX(TableProduits[#Data],MATCH(E$12,TableProduits[Code produit],0),MATCH($A14,TableProduits[#Headers],0)),\"-\")","v":"CJ05"},null,"Code jour",{"$f":"IFERROR(INDEX(TableProduits[#Data],MATCH(H$12,TableProduits[Code produit],0),MATCH($A14,TableProduits[#Headers],0)),\"-\")","v":"CJ05"}]
["Nom jour",{"$f":"IFERROR(INDEX(TableProduits[#Data],MATCH(B$12,TableProduits[Code produit],0),MATCH($A15,TableProduits[#Headers],0)),\"-\")","v":"-"},null,"Nom jour",{"$f":"IFERROR(INDEX(TableProduits[#Data],MATCH(E$12,TableProduits[Code produit],0),MATCH($A15,TableProduits[#Headers],0)),\"-\")","v":"Lundi à vendredi midis"},null,"Nom jour",{"$f":"IFERROR(INDEX(TableProduits[#Data],MATCH(H$12,TableProduits[Code produit],0),MATCH($A15,TableProduits[#Headers],0)),\"-\")","v":"Lundi à vendredi midis"}]
["Code conditionnement",{"$f":"IFERROR(INDEX(TableProduits[#Data],MATCH(B$12,TableProduits[Code produit],0),MATCH($A16,TableProduits[#Headers],0)),\"-\")","v":"-"},null,"Code conditionnement",{"$f":"IFERROR(INDEX(TableProduits[#Data],MATCH(E$12,TableProduits[Code produit],0),MATCH($A16,TableProduits[#Headers],0)),\"-\")","v":"COCO09"},null,"Code conditionnement",{"$f":"IFERROR(INDEX(TableProduits[#Data],MATCH(H$12,TableProduits[Code produit],0),MATCH($A16,TableProduits[#Headers],0)),\"-\")","v":"COCO16"}]
["Nom conditionnement",{"$f":"IFERROR(INDEX(TableProduits[#Data],MATCH(B$12,TableProduits[Code produit],0),MATCH($A17,TableProduits[#Headers],0)),\"-\")","v":"-"},null,"Nom conditionnement",{"$f":"IFERROR(INDEX(TableProduits[#Data],MATCH(E$12,TableProduits[Code produit],0),MATCH($A17,TableProduits[#Headers],0)),\"-\")","v":"1 morceau de 500 grammes pour 5 repas"},null,"Nom conditionnement",{"$f":"IFERROR(INDEX(TableProduits[#Data],MATCH(H$12,TableProduits[Code produit],0),MATCH($A17,TableProduits[#Headers],0)),\"-\")","v":"1 sachet de 2 kilogrammes. 1 pomme pour 1 repas"}]
["Quantité légume",1,null,"Quantité viande",100,null,"Quantité dessert",1]
[]
[null,null,null,"Code période viande weekend"]
[null,null,null,"Nom période viande weekend"]